,Directorate,Supplier Name,Supplier Invoice No,Payment Date,Gross Invoice Value,Vat Amount,Vendor Id,Purpose of Expenditure,Description,Redact flag,Year,Period
1,Community and Housing,SOUTHPARK RESIDENTIAL HOME,1000162,03-Aug-23,3400,0,19,Older People Placements - East,321017              Nursing & Residential Care Homes,A,2023,5
2,Community and Housing,SOUTHPARK RESIDENTIAL HOME,999813,03-Aug-23,3400,0,19,Older People Placements - East,321017              Nursing & Residential Care Homes,A,2023,5
3,Community and Housing,SOUTHPARK RESIDENTIAL HOME,999883,03-Aug-23,3400,0,19,Older People Placements - East,321017              Nursing & Residential Care Homes,A,2023,5
4,Community and Housing,SOUTHPARK RESIDENTIAL HOME,1014274,30-Aug-23,3400,0,19,Older People Placements - East,321017              Nursing & Residential Care Homes,A,2023,5
5,Community and Housing,SOUTHPARK RESIDENTIAL HOME,1014344,30-Aug-23,3400,0,19,Older People Placements - East,321017              Nursing & Residential Care Homes,A,2023,5
6,Community and Housing,SOUTHPARK RESIDENTIAL HOME,1014633,30-Aug-23,3400,0,19,Older People Placements - East,321017              Nursing & Residential Care Homes,A,2023,5
7,Community and Housing,ST TERESA`S HOME FOR THE ELDERLY,999741,30-Aug-23,3764.24,0,362,Older People Placements - East,321017              Nursing & Residential Care Homes,A,2023,5
8,Community and Housing,ST TERESA`S HOME FOR THE ELDERLY,1014208,30-Aug-23,3764.24,0,362,Older People Placements - East,321017              Nursing & Residential Care Homes,A,2023,5
9,Community and Housing,THE WHITE HOUSE NURSING HOME,1000140,03-Aug-23,3396,0,611,Older People Placements - East,321000              Social Community Care Supplies & Services - Adult,A,2023,5
10,Community and Housing,THE WHITE HOUSE NURSING HOME,1014611,30-Aug-23,3396,0,611,Older People Placements - East,321000              Social Community Care Supplies & Services - Adult,A,2023,5
11,"Children, Schools and Family",BLOSSOM HOUSE SCHOOL,9344,18-Aug-23,19575,0,777,Non-Delegated Statements,170000              Education,A,2023,5
12,"Children, Schools and Family",BLOSSOM HOUSE SCHOOL,9646,23-Aug-23,16747.5,0,777,Non-Delegated Statements,170000              Education,A,2023,5
13,"Children, Schools and Family",BLOSSOM HOUSE SCHOOL,9697,23-Aug-23,17587.5,0,777,Non-Delegated Statements,170000              Education,A,2023,5
14,"Children, Schools and Family",BLOSSOM HOUSE SCHOOL,9681,23-Aug-23,16012.5,0,777,Non-Delegated Statements,170000              Education,A,2023,5
15,"Children, Schools and Family",BLOSSOM HOUSE SCHOOL,9649,23-Aug-23,16012.5,0,777,Non-Delegated Statements,170000              Education,A,2023,5
16,"Children, Schools and Family",BLOSSOM HOUSE SCHOOL,9657,23-Aug-23,17587.5,0,777,Non-Delegated Statements,170000              Education,A,2023,5
17,"Children, Schools and Family",BLOSSOM HOUSE SCHOOL,9707,23-Aug-23,13387.5,0,777,Non-Delegated Statements,170000              Education,A,2023,5
18,"Children, Schools and Family",BLOSSOM HOUSE SCHOOL,9651,23-Aug-23,17587.5,0,777,Non-Delegated Statements,170000              Education,A,2023,5
19,"Children, Schools and Family",BLOSSOM HOUSE SCHOOL,9669,23-Aug-23,15172.5,0,777,Non-Delegated Statements,170000              Education,A,2023,5
20,"Children, Schools and Family",BLOSSOM HOUSE SCHOOL,9706,23-Aug-23,13807.5,0,777,Non-Delegated Statements,170000              Education,A,2023,5
21,"Children, Schools and Family",BLOSSOM HOUSE SCHOOL,9686,23-Aug-23,16747.5,0,777,Non-Delegated Statements,170000              Education,A,2023,5
22,"Children, Schools and Family",BLOSSOM HOUSE SCHOOL,9848,23-Aug-23,15165,0,777,Non-Delegated Statements,170000              Education,A,2023,5
23,"Children, Schools and Family",BLOSSOM HOUSE SCHOOL,9693,23-Aug-23,17587.5,0,777,Non-Delegated Statements,170000              Education,A,2023,5
24,"Children, Schools and Family",BLOSSOM HOUSE SCHOOL,9712,23-Aug-23,18112.5,0,777,Non-Delegated Statements,170000              Education,A,2023,5
25,"Children, Schools and Family",BLOSSOM HOUSE SCHOOL,9653,23-Aug-23,16747.5,0,777,Non-Delegated Statements,170000              Education,A,2023,5
26,"Children, Schools and Family",BLOSSOM HOUSE SCHOOL,9710,23-Aug-23,18112.5,0,777,Non-Delegated Statements,170000              Education,A,2023,5
27,"Children, Schools and Family",BLOSSOM HOUSE SCHOOL,9658,23-Aug-23,18850,0,777,Non-Delegated Statements,170000              Education,A,2023,5
28,"Children, Schools and Family",BLOSSOM HOUSE SCHOOL,9703,23-Aug-23,18850,0,777,Non-Delegated Statements,170000              Education,A,2023,5
29,"Children, Schools and Family",BLOSSOM HOUSE SCHOOL,9685,22-Aug-23,24750,0,777,Non-Delegated Statements,170000              Education,A,2023,5
30,"Children, Schools and Family",BLOSSOM HOUSE SCHOOL,9711,23-Aug-23,18112.5,0,777,Non-Delegated Statements,170000              Education,A,2023,5
31,"Children, Schools and Family",BLOSSOM HOUSE SCHOOL,9664,23-Aug-23,13387.5,0,777,Non-Delegated Statements,170000              Education,A,2023,5
32,"Children, Schools and Family",BLOSSOM HOUSE SCHOOL,9648,23-Aug-23,16012.5,0,777,Non-Delegated Statements,170000              Education,A,2023,5
33,"Children, Schools and Family",BLOSSOM HOUSE SCHOOL,9680,23-Aug-23,15067.5,0,777,Non-Delegated Statements,170000              Education,A,2023,5
34,"Children, Schools and Family",BLOSSOM HOUSE SCHOOL,9667,23-Aug-23,12967.5,0,777,Non-Delegated Statements,170000              Education,A,2023,5
35,"Children, Schools and Family",BLOSSOM HOUSE SCHOOL,9689,23-Aug-23,17587.5,0,777,Non-Delegated Statements,170000              Education,A,2023,5
36,"Children, Schools and Family",BLOSSOM HOUSE SCHOOL,9647,23-Aug-23,18112.5,0,777,Non-Delegated Statements,170000              Education,A,2023,5
37,"Children, Schools and Family",BLOSSOM HOUSE SCHOOL,9696,23-Aug-23,13807.5,0,777,Non-Delegated Statements,170000              Education,A,2023,5
38,"Children, Schools and Family",BLOSSOM HOUSE SCHOOL,9683,23-Aug-23,17587.5,0,777,Non-Delegated Statements,170000              Education,A,2023,5
39,"Children, Schools and Family",BLOSSOM HOUSE SCHOOL,9678,23-Aug-23,16012.5,0,777,Non-Delegated Statements,170000              Education,A,2023,5
40,"Children, Schools and Family",BLOSSOM HOUSE SCHOOL,9679,23-Aug-23,12967.5,0,777,Non-Delegated Statements,170000              Education,A,2023,5
41,"Children, Schools and Family",BLOSSOM HOUSE SCHOOL,9665,23-Aug-23,18112.5,0,777,Non-Delegated Statements,170000              Education,A,2023,5
42,"Children, Schools and Family",BLOSSOM HOUSE SCHOOL,9675,23-Aug-23,16747.5,0,777,Non-Delegated Statements,170000              Education,A,2023,5
43,"Children, Schools and Family",BLOSSOM HOUSE SCHOOL,9702,23-Aug-23,13807.5,0,777,Non-Delegated Statements,170000              Education,A,2023,5
44,"Children, Schools and Family",BLOSSOM HOUSE SCHOOL,9660,23-Aug-23,16012.5,0,777,Non-Delegated Statements,170000              Education,A,2023,5
45,"Children, Schools and Family",BLOSSOM HOUSE SCHOOL,9701,23-Aug-23,18112.5,0,777,Non-Delegated Statements,170000              Education,A,2023,5
46,"Children, Schools and Family",BLOSSOM HOUSE SCHOOL,9670,23-Aug-23,16747.5,0,777,Non-Delegated Statements,170000              Education,A,2023,5
47,"Children, Schools and Family",BLOSSOM HOUSE SCHOOL,9690,23-Aug-23,16747.5,0,777,Non-Delegated Statements,170000              Education,A,2023,5
48,"Children, Schools and Family",BLOSSOM HOUSE SCHOOL,9688,22-Aug-23,21612.5,0,777,Non-Delegated Statements,170000              Education,A,2023,5
49,"Children, Schools and Family",BLOSSOM HOUSE SCHOOL,9699,23-Aug-23,18112.5,0,777,Non-Delegated Statements,170000              Education,A,2023,5
50,"Children, Schools and Family",BLOSSOM HOUSE SCHOOL,9713,23-Aug-23,18112.5,0,777,Non-Delegated Statements,170000              Education,A,2023,5
51,"Children, Schools and Family",BLOSSOM HOUSE SCHOOL,9673,23-Aug-23,13807.5,0,777,Non-Delegated Statements,170000              Education,A,2023,5
52,"Children, Schools and Family",BLOSSOM HOUSE SCHOOL,9656,23-Aug-23,18850,0,777,Non-Delegated Statements,170000              Education,A,2023,5
53,"Children, Schools and Family",BLOSSOM HOUSE SCHOOL,9694,23-Aug-23,15172.5,0,777,Non-Delegated Statements,170000              Education,A,2023,5
54,"Children, Schools and Family",BLOSSOM HOUSE SCHOOL,9682,23-Aug-23,16747.5,0,777,Non-Delegated Statements,170000              Education,A,2023,5
55,"Children, Schools and Family",BLOSSOM HOUSE SCHOOL,9684,23-Aug-23,15172.5,0,777,Non-Delegated Statements,170000              Education,A,2023,5
56,"Children, Schools and Family",BLOSSOM HOUSE SCHOOL,9650,23-Aug-23,15172.5,0,777,Non-Delegated Statements,170000              Education,A,2023,5
57,"Children, Schools and Family",BLOSSOM HOUSE SCHOOL,9666,23-Aug-23,16012.5,0,777,Non-Delegated Statements,170000              Education,A,2023,5
58,"Children, Schools and Family",BLOSSOM HOUSE SCHOOL,9645,23-Aug-23,13807.5,0,777,Non-Delegated Statements,170000              Education,A,2023,5
59,"Children, Schools and Family",BLOSSOM HOUSE SCHOOL,9654,23-Aug-23,17587.5,0,777,Non-Delegated Statements,170000              Education,A,2023,5
60,"Children, Schools and Family",BLOSSOM HOUSE SCHOOL,9704,23-Aug-23,18850,0,777,Non-Delegated Statements,170000              Education,A,2023,5
61,"Children, Schools and Family",BLOSSOM HOUSE SCHOOL,9700,23-Aug-23,16012.5,0,777,Non-Delegated Statements,170000              Education,A,2023,5
62,"Children, Schools and Family",BLOSSOM HOUSE SCHOOL,9708,23-Aug-23,12967.5,0,777,Non-Delegated Statements,170000              Education,A,2023,5
63,"Children, Schools and Family",BLOSSOM HOUSE SCHOOL,9695,23-Aug-23,18850,0,777,Non-Delegated Statements,170000              Education,A,2023,5
64,"Children, Schools and Family",BLOSSOM HOUSE SCHOOL,9709,23-Aug-23,17587.5,0,777,Non-Delegated Statements,170000              Education,A,2023,5
65,"Children, Schools and Family",BLOSSOM HOUSE SCHOOL,9672,23-Aug-23,17587.5,0,777,Non-Delegated Statements,170000              Education,A,2023,5
66,"Children, Schools and Family",BLOSSOM HOUSE SCHOOL,9687,23-Aug-23,12967.5,0,777,Non-Delegated Statements,170000              Education,A,2023,5
67,"Children, Schools and Family",BLOSSOM HOUSE SCHOOL,9674,23-Aug-23,18112.5,0,777,Non-Delegated Statements,170000              Education,A,2023,5
68,"Children, Schools and Family",BLOSSOM HOUSE SCHOOL,9691,23-Aug-23,18112.5,0,777,Non-Delegated Statements,170000              Education,A,2023,5
69,"Children, Schools and Family",BLOSSOM HOUSE SCHOOL,9652,23-Aug-23,16747.5,0,777,Non-Delegated Statements,170000              Education,A,2023,5
70,"Children, Schools and Family",BLOSSOM HOUSE SCHOOL,9668,23-Aug-23,17587.5,0,777,Non-Delegated Statements,170000              Education,A,2023,5
71,"Children, Schools and Family",BLOSSOM HOUSE SCHOOL,9698,23-Aug-23,13807.5,0,777,Non-Delegated Statements,170000              Education,A,2023,5
72,Community and Housing,The Wimbledon Guild of Social Welfare,INV-16466,18-Aug-23,34000,0,802,PH - Falls Prevention,190000              Facilities & Management Services,A,2023,5
73,Unassigned,PERSEID SCHOOL,SCHOOLS 2324/5 A,08-Aug-23,455150.29,0,983,Schools,170000              Education,A,2023,5
74,Community and Housing,SUTTON NURSING HOMES LTD,999757,03-Aug-23,3056.44,0,1208,Older People Placements - East,321017              Nursing & Residential Care Homes,A,2023,5
75,Community and Housing,SUTTON NURSING HOMES LTD,999855,03-Aug-23,3087.16,0,1208,Older People Placements - East,321017              Nursing & Residential Care Homes,A,2023,5
76,Community and Housing,SUTTON NURSING HOMES LTD,1006020,15-Aug-23,16905.8,0,1208,Older People Placements - East,321017              Nursing & Residential Care Homes,A,2023,5
77,Community and Housing,SUTTON NURSING HOMES LTD,1006025,15-Aug-23,16905.8,0,1208,Older People Placements - East,321017              Nursing & Residential Care Homes,A,2023,5
78,Community and Housing,SUTTON NURSING HOMES LTD,1014246,30-Aug-23,3381.16,0,1208,Older People Placements - East,321017              Nursing & Residential Care Homes,A,2023,5
79,Community and Housing,SUTTON NURSING HOMES LTD,1014596,30-Aug-23,3381.16,0,1208,Older People Placements - East,321017              Nursing & Residential Care Homes,A,2023,5
80,Unassigned,LONDON BOROUGH OF CROYDON,3022661,17-Aug-23,28260,4710,1258,Environment and Regeneration,OLA,A,2023,5
81,Environment and Regeneration,LONDON BOROUGH OF CROYDON,3023180,25-Aug-23,542533.58,90422.27,1258,PARK OPERATIONS,OLA,A,2023,5
82,Environment and Regeneration,LONDON BOROUGH OF CROYDON,3023358,31-Aug-23,312221.3,52036.88,1258,PARK OPERATIONS,OLA,A,2023,5
83,Environment and Regeneration,LONDON BOROUGH OF CROYDON,3023343,31-Aug-23,8941.27,0,1258,Greenspaces Team (General),OLA,A,2023,5
84,Corporate Services,L.B OF RICHMOND UPON THAMES,RC376792128M04E,11-Aug-23,6350,0,1353,SLLP Client Income,OLA,A,2023,5
85,Unassigned,L.B OF RICHMOND UPON THAMES,S106/22/1442/FUL,10-Aug-23,31808,0,1353,Corporate Services,OLA,A,2023,5
86,Corporate Services,L.B OF RICHMOND UPON THAMES,3001812013],22-Aug-23,83601.14,13933.52,1353,SLLP Client Income,OLA,A,2023,5
87,Unassigned,MELROSE SPECIAL SCHOOL,SCHOOLS 2324/5 A,08-Aug-23,637031.11,0,1393,Schools,170000              Education,A,2023,5
88,Unassigned,WILLIAM MORRIS PRIMARY SCHOOL,SCHOOLS 2324/5 A,08-Aug-23,221443.23,0,1416,Schools,170000              Education,A,2023,5
89,Unassigned,ST THOMAS OF CANTERBURY PRIMARY,SCHOOLS 2324/5 A,08-Aug-23,177970.67,0,1418,Schools,170000              Education,A,2023,5
90,Unassigned,PRIORY C OF E MIDDLE SCHOOL,SCHOOLS 2324/5 A,08-Aug-23,116287.66,0,1420,Schools,170000              Education,A,2023,5
91,Unassigned,LIBERTY PRIMARY SCHOOL,SCHOOLS 2324/5 A,08-Aug-23,186838.87,0,1424,Schools,170000              Education,A,2023,5
92,Unassigned,HILLCROSS PRIMARY SCHOOL,SCHOOLS 2324/5 A,08-Aug-23,176539.16,0,1425,Schools,170000              Education,A,2023,5
93,Unassigned,CRANMER PRIMARY SCHOOL,SCHOOLS 2324/5 A,08-Aug-23,326879.89,0,1426,Schools,170000              Education,A,2023,5
94,Unassigned,WIMBLEDON COLLEGE SCHOOL,SCHOOLS 2324/5 A,08-Aug-23,835490.92,0,1428,Schools,170000              Education,A,2023,5
95,Unassigned,URSULINE HIGH SCHOOL,SCHOOLS 2324/5 A,08-Aug-23,669086.56,0,1429,Schools,170000              Education,A,2023,5
96,"Children, Schools and Family",URSULINE HIGH SCHOOL,HAFSUM-P1,08-Aug-23,1837.5,0,1429,Holiday Act Food Prog grntfnd,170000              Education,A,2023,5
97,"Children, Schools and Family",URSULINE HIGH SCHOOL,HAFSUM-P2,30-Aug-23,812.5,0,1429,Holiday Act Food Prog grntfnd,170000              Education,A,2023,5
98,Unassigned,RUTLISH SCHOOL,SCHOOLS 2324/5 A,08-Aug-23,768076.73,0,1431,Schools,170000              Education,A,2023,5
99,Unassigned,RICARDS LODGE SECONDARY SCHOOL,SCHOOLS 2324/5 A,08-Aug-23,638671.03,0,1433,Schools,170000              Education,A,2023,5
100,Unassigned,WIMBLEDON PARK PRIMARY SCHOOL,SCHOOLS 2324/5 A,08-Aug-23,215768.83,0,1436,Schools,170000              Education,A,2023,5
101,Unassigned,ST TERESA'S R C PRIMARY SCHOOL,SCHOOLS 2324/5 A,08-Aug-23,203451.72,0,1438,Schools,170000              Education,A,2023,5
102,Unassigned,ST MARYS CATHOLIC PRIMARY SCHOOL,SCHOOLS 2324/5 A,08-Aug-23,153569.37,0,1439,Schools,170000              Education,A,2023,5
103,Unassigned,ST MARKS PRIMARY SCHOOL,SCHOOLS 2324/5 A,08-Aug-23,137339.93,0,1440,Schools,170000              Education,A,2023,5
104,Unassigned,ST JOHN FISHER RC PRIMARY SCH.,SCHOOLS 2324/5 A,08-Aug-23,176576.24,0,1441,Schools,170000              Education,A,2023,5
105,Unassigned,SINGLEGATE PRIMARY SCHOOL,SCHOOLS 2324/5 A,08-Aug-23,246259.36,0,1442,Schools,170000              Education,A,2023,5
106,Unassigned,SHERWOOD PRIMARY SCHOOL,SCHOOLS 2324/5 A,08-Aug-23,111584.22,0,1443,Schools,170000              Education,A,2023,5
107,Unassigned,POPLAR PRIMARY SCHOOL,SCHOOLS 2324/5 A,08-Aug-23,245380.41,0,1444,Schools,170000              Education,A,2023,5
108,Unassigned,PELHAM PRIMARY SCHOOL,SCHOOLS 2324/5 A,08-Aug-23,162368.44,0,1445,Schools,170000              Education,A,2023,5
109,Unassigned,MORDEN PRIMARY SCHOOL,SCHOOLS 2324/5 A,08-Aug-23,129423.98,0,1446,Schools,170000              Education,A,2023,5
110,Unassigned,MERTON PARK PRIMARY SCHOOL,SCHOOLS 2324/5 A,08-Aug-23,105060.93,0,1447,Schools,170000              Education,A,2023,5
111,Unassigned,MERTON ABBEY PRIMARY SCHOOL,SCHOOLS 2324/5 A,08-Aug-23,153705.03,0,1448,Schools,170000              Education,A,2023,5
112,Unassigned,LONESOME PRIMARY SCHOOL,SCHOOLS 2324/5 A,08-Aug-23,164227.68,0,1450,Schools,170000              Education,A,2023,5
113,Unassigned,LINKS PRIMARY SCHOOL,SCHOOLS 2324/5 A,08-Aug-23,146692.73,0,1451,Schools,170000              Education,A,2023,5
114,Unassigned,JOSEPH HOOD PRIMARY SCHOOL,SCHOOLS 2324/5 A,08-Aug-23,159482.59,0,1452,Schools,170000              Education,A,2023,5
115,Unassigned,HOLY TRINITY C OF E PRIMARY SCHOOL,SCHOOLS 2324/5 A,08-Aug-23,178464.56,0,1453,Schools,170000              Education,A,2023,5
116,Unassigned,HOLLYMOUNT PRIMARY SCHOOL,SCHOOLS 2324/5 A,08-Aug-23,176045.3,0,1454,Schools,170000              Education,A,2023,5
117,Unassigned,HATFEILD PRIMARY SCHOOL,SCHOOLS 2324/5 A,08-Aug-23,185147.83,0,1455,Schools,170000              Education,A,2023,5
118,Unassigned,HASLEMERE PRIMARY SCHOOL,SCHOOLS 2324/5 A,08-Aug-23,184184.74,0,1456,Schools,170000              Education,A,2023,5
119,Unassigned,GARFIELD PRIMARY SCHOOL,SCHOOLS 2324/5 A,08-Aug-23,162659.86,0,1460,Schools,170000              Education,A,2023,5
120,Unassigned,BOND PRIMARY SCHOOL,SCHOOLS 2324/5 A,08-Aug-23,153236.85,0,1462,Schools,170000              Education,A,2023,5
121,Unassigned,BISHOP GILPIN C OF E PRIMARY,SCHOOLS 2324/5 A,08-Aug-23,160607.96,0,1463,Schools,170000              Education,A,2023,5
122,Unassigned,ABBOTSBURY PRIMARY SCHOOL,SCHOOLS 2324/5 A,08-Aug-23,176941.88,0,1467,Schools,170000              Education,A,2023,5
123,Unassigned,WIMBLEDON CHASE PRIMARY SCHOOL,SCHOOLS 2324/5 A,08-Aug-23,261499.14,0,1469,Schools,170000              Education,A,2023,5
124,Unassigned,GORRINGE PARK PRIMARY SCHOOL,SCHOOLS 2324/5 A,08-Aug-23,179603.16,0,1470,Schools,170000              Education,A,2023,5
125,Unassigned,RAYNES PARK SECONDARY SCHOOL,SCHOOLS 2324/5 A,08-Aug-23,759769.61,0,1471,Schools,170000              Education,A,2023,5
126,Unassigned,SS PETER AND PAUL RC PRIMARY SCH,SCHOOLS 2324/5 A,08-Aug-23,158406.94,0,1472,Schools,170000              Education,A,2023,5
127,Unassigned,DUNDONALD PRIMARY SCHOOL,SCHOOLS 2324/5 A,08-Aug-23,190252.6,0,1473,Schools,170000              Education,A,2023,5
128,Unassigned,ALL SAINTS C OF E PRIMARY SCH,SCHOOLS 2324/5 A,08-Aug-23,173447.09,0,1680,Schools,170000              Education,A,2023,5
129,"Children, Schools and Family",REDACTED PERSONAL DATA,1003056,04-Aug-23,548.09,0,1801,Placements Under 18,321100              Social Community Care Supplies & Services - Children,R,2023,5
130,"Children, Schools and Family",REDACTED PERSONAL DATA,1005826,11-Aug-23,548.09,0,1801,Placements Under 18,321100              Social Community Care Supplies & Services - Children,R,2023,5
131,Corporate Services,CIVICA UK LIMITED,M/RB117948,09-Aug-23,1710,285,1873,Benefits Administration,270000              Information Communication Technology,A,2023,5
132,Corporate Services,CIVICA UK LIMITED,C/BN281841,01-Sep-23,3986.5,664.42,1873,Local Taxation Services,270000              Information Communication Technology,A,2023,5
133,Community and Housing,CIVICA UK LIMITED,C/BN280067,25-Aug-23,4762.8,793.8,1873,Financial Assessment Team (FA),270000              Information Communication Technology,A,2023,5
134,Community and Housing,CIVICA UK LIMITED,C/BN280066,25-Aug-23,3469.2,578.2,1873,Financial Assessment Team (FA),270000              Information Communication Technology,A,2023,5
135,"Children, Schools and Family",THE CHILDRENS TRUST,6515,14-Aug-23,5927.82,0,1980,Non-Delegated Statements,170000              Education,A,2023,5
136,"Children, Schools and Family",THE CHILDRENS TRUST,6672,18-Aug-23,5927.82,0,1980,Non-Delegated Statements,170000              Education,A,2023,5
137,"Children, Schools and Family",THE CHILDRENS TRUST,6679,18-Aug-23,9570.32,0,1980,Non-Delegated Statements,170000              Education,A,2023,5
138,Community and Housing,THE FRANCES TAYLOR FOUNDATION,1000143,03-Aug-23,3485.28,0,2011,Learning Disabilities Placemnt,321017              Nursing & Residential Care Homes,A,2023,5
139,Community and Housing,THE FRANCES TAYLOR FOUNDATION,999838,03-Aug-23,3812.04,0,2011,Learning Disabilities Placemnt,321017              Nursing & Residential Care Homes,A,2023,5
140,Community and Housing,THE FRANCES TAYLOR FOUNDATION,1014302,30-Aug-23,3812.04,0,2011,Learning Disabilities Placemnt,321017              Nursing & Residential Care Homes,A,2023,5
141,Community and Housing,THE FRANCES TAYLOR FOUNDATION,1014614,30-Aug-23,6970.56,0,2011,Learning Disabilities Placemnt,321017              Nursing & Residential Care Homes,A,2023,5
142,Unassigned,SACRED HEART R C PRIMARY SCH.,SCHOOLS 2324/5 A,08-Aug-23,167403.01,0,2076,Schools,170000              Education,A,2023,5
143,Community and Housing,GENEVA ROAD LIMITED,310822JW,15-Aug-23,781.07,130.16,2198,Older People Placements - East,321000              Social Community Care Supplies & Services - Adult,A,2023,5
144,Community and Housing,GENEVA ROAD LIMITED,310723JW,24-Aug-23,781.09,130.18,2198,Older People Placements - East,321000              Social Community Care Supplies & Services - Adult,A,2023,5
145,"Children, Schools and Family",LONDON BOROUGH OF SUTTON,3190699080,04-Aug-23,33586.37,0,2313,Children & Families Hub,OLA,A,2023,5
146,"Children, Schools and Family",LONDON BOROUGH OF SUTTON,3190477564,04-Aug-23,37389.36,0,2313,Children & Families Hub,OLA,A,2023,5
147,"Children, Schools and Family",LONDON BOROUGH OF SUTTON,3190408825,04-Aug-23,37678.09,0,2313,Children & Families Hub,OLA,A,2023,5
148,"Children, Schools and Family",LONDON BOROUGH OF SUTTON,3190291660,04-Aug-23,33207.44,0,2313,Children & Families Hub,OLA,A,2023,5
149,"Children, Schools and Family",LONDON BOROUGH OF SUTTON,3190604110,04-Aug-23,42132.88,0,2313,Children & Families Hub,OLA,A,2023,5
150,"Children, Schools and Family",LONDON BOROUGH OF SUTTON,3190346301,04-Aug-23,34780.59,0,2313,Children & Families Hub,OLA,A,2023,5
151,Corporate Services,LONDON BOROUGH OF SUTTON,SLLPINCM0423/24,07-Aug-23,9500,0,2313,SLLP Client Income,OLA,A,2023,5
152,"Children, Schools and Family",LONDON BOROUGH OF SUTTON,3190223105,04-Aug-23,36162.92,0,2313,Children & Families Hub,OLA,A,2023,5
153,Unassigned,LONDON BOROUGH OF SUTTON,4MOLLISONSQUARE,10-Aug-23,800,0,2313,Corporate Services,OLA,A,2023,5
154,Corporate Services,GREENHAM TRADING LTD,07/500171,09-Aug-23,2410.92,401.82,2445,Corporate Contracts - FM,130000              Cleaning & Janitorial,A,2023,5
155,Community and Housing,FREEWAYS TRUST LTD,999736,03-Aug-23,3186.04,0,2474,Learning Disabilities Placemnt,321017              Nursing & Residential Care Homes,A,2023,5
156,Community and Housing,FREEWAYS TRUST LTD,1014202,30-Aug-23,3186.04,0,2474,Learning Disabilities Placemnt,321017              Nursing & Residential Care Homes,A,2023,5
157,Unassigned,WIMBLEDON AND PUTNEY COMMON,2.02308E+11,02-Aug-23,42294.8,0,10566,WPCC,PRECEPT,A,2023,5
158,Unassigned,WIMBLEDON AND PUTNEY COMMON,2.02308E+11,29-Aug-23,42294.8,0,10566,WPCC,PRECEPT,A,2023,5
159,Environment and Regeneration,FREIGHT TRANSPORT ASSOCIATION,300387628,29-Aug-23,1650,275,10681,Transport-Contract Hire,380000              Vehicle Management,A,2023,5
160,Community and Housing,CLOYDA LTD,1000025,03-Aug-23,3520,0,10762,Older People Placements - East,321017              Nursing & Residential Care Homes,A,2023,5
161,Community and Housing,CLOYDA LTD,1014487,30-Aug-23,3520,0,10762,Older People Placements - East,321017              Nursing & Residential Care Homes,A,2023,5
162,Community and Housing,CHEGWORTH N.H. (BAYSWIFT LTD),999983,03-Aug-23,3056.4,0,11057,Learning Disabilities Placemnt,321000              Social Community Care Supplies & Services - Adult,A,2023,5
163,Community and Housing,CHEGWORTH N.H. (BAYSWIFT LTD),1014444,30-Aug-23,3056.4,0,11057,Learning Disabilities Placemnt,321000              Social Community Care Supplies & Services - Adult,A,2023,5
164,"Children, Schools and Family",REDACTED PERSONAL DATA,1003012,04-Aug-23,692.46,0,11130,Placements Under 18,321100              Social Community Care Supplies & Services - Children,R,2023,5
165,"Children, Schools and Family",REDACTED PERSONAL DATA,1005785,11-Aug-23,692.46,0,11130,Placements Under 18,321100              Social Community Care Supplies & Services - Children,R,2023,5
166,"Children, Schools and Family",REDACTED PERSONAL DATA,1010872,21-Aug-23,692.46,0,11130,Placements Under 18,321100              Social Community Care Supplies & Services - Children,R,2023,5
167,"Children, Schools and Family",REDACTED PERSONAL DATA,1013071,24-Aug-23,692.46,0,11130,Placements Under 18,321100              Social Community Care Supplies & Services - Children,R,2023,5
168,Community and Housing,Queens Court,999772,03-Aug-23,3220.32,0,12747,Older People Placements - East,321017              Nursing & Residential Care Homes,A,2023,5
169,Community and Housing,Queens Court,1004065,09-Aug-23,22506.88,0,12747,Older People Placements - East,321017              Nursing & Residential Care Homes,A,2023,5
170,Community and Housing,Queens Court,1014480,30-Aug-23,3220.32,0,12747,Older People Placements - East,321017              Nursing & Residential Care Homes,A,2023,5
171,Environment and Regeneration,CIPFA,3169699,25-Aug-23,1350,225,13055,Property Mgt & Review,200000              Financial Services,A,2023,5
172,Community and Housing,ASHCROFT CARE SERVICES,999982,03-Aug-23,6116.88,0,13287,Learning Disabilities Placemnt,321017              Nursing & Residential Care Homes,A,2023,5
173,Community and Housing,ASHCROFT CARE SERVICES,1014442,30-Aug-23,6116.88,0,13287,Learning Disabilities Placemnt,321017              Nursing & Residential Care Homes,A,2023,5
174,Community and Housing,SHARE COMMUNITY LTD,240777,23-Aug-23,900,0,13487,Learning Disabilities Placemnt,321017              Nursing & Residential Care Homes,A,2023,5
175,Community and Housing,SHARE COMMUNITY LTD,240769,23-Aug-23,840,0,13487,Learning Disabilities Placemnt,321017              Nursing & Residential Care Homes,A,2023,5
176,Community and Housing,SHARE COMMUNITY LTD,240767,23-Aug-23,1120,0,13487,Learning Disabilities Placemnt,321017              Nursing & Residential Care Homes,A,2023,5
177,Community and Housing,SHARE COMMUNITY LTD,240764,23-Aug-23,560,0,13487,Learning Disabilities Placemnt,321017              Nursing & Residential Care Homes,A,2023,5
178,Community and Housing,SHARE COMMUNITY LTD,240759,23-Aug-23,840,0,13487,Learning Disabilities Placemnt,321017              Nursing & Residential Care Homes,A,2023,5
179,Community and Housing,SHARE COMMUNITY LTD,240757,23-Aug-23,600,0,13487,Learning Disabilities Placemnt,321017              Nursing & Residential Care Homes,A,2023,5
180,Community and Housing,FITZROY SUPPORT,1000271,01-Aug-23,2823.52,0,13535,Learning Disabilities Placemnt,321017              Nursing & Residential Care Homes,A,2023,5
181,Community and Housing,FITZROY SUPPORT,1000089,03-Aug-23,9010.16,0,13535,Learning Disabilities Placemnt,321017              Nursing & Residential Care Homes,A,2023,5
182,Community and Housing,FITZROY SUPPORT,1014556,30-Aug-23,9010.16,0,13535,Learning Disabilities Placemnt,321017              Nursing & Residential Care Homes,A,2023,5
183,Community and Housing,CANTERBURY OAST TRUST LTD,999749,03-Aug-23,2496.88,0,13566,Learning Disabilities Placemnt,321017              Nursing & Residential Care Homes,A,2023,5
184,Community and Housing,CANTERBURY OAST TRUST LTD,1014214,30-Aug-23,2496.88,0,13566,Learning Disabilities Placemnt,321017              Nursing & Residential Care Homes,A,2023,5
185,Community and Housing,MACINTYRE,1000057,03-Aug-23,5641.36,0,13585,Older People Placements - East,321017              Nursing & Residential Care Homes,A,2023,5
186,Community and Housing,MACINTYRE,1000088,03-Aug-23,4825.24,0,13585,Learning Disabilities Placemnt,321017              Nursing & Residential Care Homes,A,2023,5
187,Community and Housing,MACINTYRE,999763,03-Aug-23,5731.64,0,13585,Learning Disabilities Placemnt,321017              Nursing & Residential Care Homes,A,2023,5
188,Community and Housing,MACINTYRE,999955,03-Aug-23,5641.36,0,13585,Learning Disabilities Placemnt,321017              Nursing & Residential Care Homes,A,2023,5
189,Community and Housing,MACINTYRE,1006437,15-Aug-23,2397.6,0,13585,Older People Placements - East,321017              Nursing & Residential Care Homes,A,2023,5
190,Community and Housing,MACINTYRE,1007445,15-Aug-23,2641.2,0,13585,Learning Disabilities Placemnt,321017              Nursing & Residential Care Homes,A,2023,5
191,Community and Housing,MACINTYRE,1007446,15-Aug-23,2397.6,0,13585,Learning Disabilities Placemnt,321017              Nursing & Residential Care Homes,A,2023,5
192,Community and Housing,MACINTYRE,1014224,30-Aug-23,6259.88,0,13585,Learning Disabilities Placemnt,321017              Nursing & Residential Care Homes,A,2023,5
193,Community and Housing,MACINTYRE,1014414,30-Aug-23,6120.88,0,13585,Learning Disabilities Placemnt,321017              Nursing & Residential Care Homes,A,2023,5
194,Community and Housing,MACINTYRE,1014520,30-Aug-23,6120.88,0,13585,Older People Placements - East,321017              Nursing & Residential Care Homes,A,2023,5
195,Community and Housing,MACINTYRE,1014555,30-Aug-23,4825.24,0,13585,Learning Disabilities Placemnt,321017              Nursing & Residential Care Homes,A,2023,5
196,Community and Housing,KENT AUTISTIC TRUST,1000066,03-Aug-23,7494.72,0,13670,Learning Disabilities Placemnt,321017              Nursing & Residential Care Homes,A,2023,5
197,Community and Housing,KENT AUTISTIC TRUST,1014530,30-Aug-23,7494.72,0,13670,Learning Disabilities Placemnt,321017              Nursing & Residential Care Homes,A,2023,5
198,Environment and Regeneration,WIMBLEDON TREE SURGEONS,INV-0739,24-Aug-23,2340,390,14038,Street Lighting,240000              Horticultural,A,2023,5
199,Community and Housing,UNITED RESPONSE,VSMR844524RH,01-Aug-23,4134.62,689.1,14616,Learning Disabilities Placemnt,321000              Social Community Care Supplies & Services - Adult,A,2023,5
200,Community and Housing,UNITED RESPONSE,VSMR844524DH,01-Aug-23,3842.88,640.48,14616,Learning Disabilities Placemnt,321000              Social Community Care Supplies & Services - Adult,A,2023,5
201,Community and Housing,UNITED RESPONSE,VSMR844524HM,01-Aug-23,4572.24,762.04,14616,Learning Disabilities Placemnt,321000              Social Community Care Supplies & Services - Adult,A,2023,5
202,Community and Housing,UNITED RESPONSE,VSMR844524BS,01-Aug-23,4086.05,681.01,14616,Learning Disabilities Placemnt,321000              Social Community Care Supplies & Services - Adult,A,2023,5
203,Community and Housing,UNITED RESPONSE,VSMR844524CW,01-Aug-23,4766.4,794.4,14616,Learning Disabilities Placemnt,321000              Social Community Care Supplies & Services - Adult,A,2023,5
204,Community and Housing,UNITED RESPONSE,VSMR845813BA,07-Aug-23,4837.78,806.3,14616,Learning Disabilities Placemnt,321000              Social Community Care Supplies & Services - Adult,A,2023,5
205,Community and Housing,UNITED RESPONSE,VSMR845813BO,07-Aug-23,4837.78,806.3,14616,Learning Disabilities Placemnt,321000              Social Community Care Supplies & Services - Adult,A,2023,5
206,Community and Housing,UNITED RESPONSE,VSMR845813,07-Aug-23,4837.78,806.3,14616,Learning Disabilities Placemnt,321000              Social Community Care Supplies & Services - Adult,A,2023,5
207,Community and Housing,UNITED RESPONSE,VSMR845813SV,07-Aug-23,4837.78,806.3,14616,Learning Disabilities Placemnt,321000              Social Community Care Supplies & Services - Adult,A,2023,5
208,Community and Housing,UNITED RESPONSE,VSMR845813RW,07-Aug-23,4837.78,806.3,14616,Learning Disabilities Placemnt,321000              Social Community Care Supplies & Services - Adult,A,2023,5
209,Community and Housing,UNITED RESPONSE,1007432,15-Aug-23,2238.53,373.09,14616,Learning Disabilities Placemnt,321000              Social Community Care Supplies & Services - Adult,A,2023,5
210,Community and Housing,UNITED RESPONSE,1007437,15-Aug-23,2795.89,465.97,14616,Learning Disabilities Placemnt,321000              Social Community Care Supplies & Services - Adult,A,2023,5
211,Community and Housing,UNITED RESPONSE,VSMR850142-RH,23-Aug-23,4134.62,689.1,14616,Learning Disabilities Placemnt,321000              Social Community Care Supplies & Services - Adult,A,2023,5
212,Community and Housing,UNITED RESPONSE,VSMR850142-DHH,23-Aug-23,3842.88,640.48,14616,Learning Disabilities Placemnt,321000              Social Community Care Supplies & Services - Adult,A,2023,5
213,Community and Housing,UNITED RESPONSE,VSMR850142-HM,23-Aug-23,4572.24,762.04,14616,Learning Disabilities Placemnt,321000              Social Community Care Supplies & Services - Adult,A,2023,5
214,Community and Housing,UNITED RESPONSE,VSMR850142-BS,23-Aug-23,4086.05,681.01,14616,Learning Disabilities Placemnt,321000              Social Community Care Supplies & Services - Adult,A,2023,5
215,Community and Housing,UNITED RESPONSE,VSMR850142-CFW,23-Aug-23,4766.4,794.4,14616,Learning Disabilities Placemnt,321000              Social Community Care Supplies & Services - Adult,A,2023,5
216,Corporate Services,KINGSTON CORPORATION,M04LEGAL23/24,07-Aug-23,2500,0,21573,SLLP Client Income,180000              Environmental Services,A,2023,5
217,Environment and Regeneration,KINGSTON CORPORATION,37542720,08-Aug-23,7094.73,0,21573,Food Waste Service,180000              Environmental Services,A,2023,5
218,Environment and Regeneration,KINGSTON CORPORATION,37575327,08-Aug-23,36676.15,0,21573,Garden Waste Service,180000              Environmental Services,A,2023,5
219,Environment and Regeneration,KINGSTON CORPORATION,37575319,08-Aug-23,7972.49,0,21573,Food Waste Service,180000              Environmental Services,A,2023,5
220,Environment and Regeneration,KINGSTON CORPORATION,37575360,09-Aug-23,13754.25,0,21573,Recycling Activities,180000              Environmental Services,A,2023,5
221,Corporate Services,KINGSTON CORPORATION,37576846,24-Aug-23,8013.36,1335.56,21573,SLLP Client Income,180000              Environmental Services,A,2023,5
222,Corporate Services,KINGSTON CORPORATION,37580860,31-Aug-23,3369.48,257.58,21573,HR TRANSACTIONS,180000              Environmental Services,A,2023,5
223,Unassigned, GREATER LONDON AUTHORITY (LPFA),2.02308E+11,02-Aug-23,69988.1,0,21763,London Pens Fund Auth,PRECEPT,A,2023,5
224,Community and Housing,NORTH EAST MITCHAM COMM ASSOC,427,21-Aug-23,1000,0,27999,PH - Elderly Care Pilot,321100              Social Community Care Supplies & Services - Children,A,2023,5
225,Community and Housing,TRINITY COURT NURSING HOME,1000002,03-Aug-23,3355.92,0,30306,Phys/Sens Placements - East,321017              Nursing & Residential Care Homes,A,2023,5
226,Community and Housing,TRINITY COURT NURSING HOME,1000065,03-Aug-23,2985.6,0,30306,Older People Placements - East,321017              Nursing & Residential Care Homes,A,2023,5
227,Community and Housing,TRINITY COURT NURSING HOME,1000073,03-Aug-23,2861.6,0,30306,Older People Placements - East,321017              Nursing & Residential Care Homes,A,2023,5
228,Community and Housing,TRINITY COURT NURSING HOME,1000081,03-Aug-23,3063.24,0,30306,Older People Placements - East,321017              Nursing & Residential Care Homes,A,2023,5
229,Community and Housing,TRINITY COURT NURSING HOME,1000137,03-Aug-23,2985.6,0,30306,Older People Placements - East,321017              Nursing & Residential Care Homes,A,2023,5
230,Community and Housing,TRINITY COURT NURSING HOME,1000168,03-Aug-23,2876.32,0,30306,Older People Placements - East,321017              Nursing & Residential Care Homes,A,2023,5
231,Community and Housing,TRINITY COURT NURSING HOME,1000170,03-Aug-23,3149.6,0,30306,Older People Placements - East,321017              Nursing & Residential Care Homes,A,2023,5
232,Community and Housing,TRINITY COURT NURSING HOME,1000172,03-Aug-23,2521.12,0,30306,Older People Placements - East,321017              Nursing & Residential Care Homes,A,2023,5
233,Community and Housing,TRINITY COURT NURSING HOME,999808,03-Aug-23,2861.6,0,30306,Older People Placements - East,321017              Nursing & Residential Care Homes,A,2023,5
234,Community and Housing,TRINITY COURT NURSING HOME,999956,03-Aug-23,2985.6,0,30306,Older People Placements - East,321017              Nursing & Residential Care Homes,A,2023,5
235,Community and Housing,TRINITY COURT NURSING HOME,999988,03-Aug-23,3063.24,0,30306,Older People Placements - East,321017              Nursing & Residential Care Homes,A,2023,5
236,Community and Housing,TRINITY COURT NURSING HOME,1006017,15-Aug-23,40887.17,0,30306,Older People Placements - East,321017              Nursing & Residential Care Homes,A,2023,5
237,Community and Housing,TRINITY COURT NURSING HOME,1006433,15-Aug-23,2103.52,0,30306,Older People Placements - East,321017              Nursing & Residential Care Homes,A,2023,5
238,Community and Housing,TRINITY COURT NURSING HOME,1014269,30-Aug-23,2861.6,0,30306,Older People Placements - East,321017              Nursing & Residential Care Homes,A,2023,5
239,Community and Housing,TRINITY COURT NURSING HOME,1014415,30-Aug-23,2985.6,0,30306,Older People Placements - East,321017              Nursing & Residential Care Homes,A,2023,5
240,Community and Housing,TRINITY COURT NURSING HOME,1014450,30-Aug-23,3063.24,0,30306,Older People Placements - East,321017              Nursing & Residential Care Homes,A,2023,5
241,Community and Housing,TRINITY COURT NURSING HOME,1014465,30-Aug-23,3355.92,0,30306,Phys/Sens Placements - East,321017              Nursing & Residential Care Homes,A,2023,5
242,Community and Housing,TRINITY COURT NURSING HOME,1014529,30-Aug-23,2985.6,0,30306,Older People Placements - East,321017              Nursing & Residential Care Homes,A,2023,5
243,Community and Housing,TRINITY COURT NURSING HOME,1014537,30-Aug-23,2861.6,0,30306,Older People Placements - East,321017              Nursing & Residential Care Homes,A,2023,5
244,Community and Housing,TRINITY COURT NURSING HOME,1014546,30-Aug-23,3063.24,0,30306,Older People Placements - East,321017              Nursing & Residential Care Homes,A,2023,5
245,Community and Housing,TRINITY COURT NURSING HOME,1014608,30-Aug-23,2985.6,0,30306,Older People Placements - East,321017              Nursing & Residential Care Homes,A,2023,5
246,Community and Housing,TRINITY COURT NURSING HOME,1014638,30-Aug-23,2876.32,0,30306,Older People Placements - East,321017              Nursing & Residential Care Homes,A,2023,5
247,Community and Housing,TRINITY COURT NURSING HOME,1014640,30-Aug-23,3149.6,0,30306,Older People Placements - East,321017              Nursing & Residential Care Homes,A,2023,5
248,Community and Housing,TRINITY COURT NURSING HOME,1014642,30-Aug-23,2521.12,0,30306,Older People Placements - East,321017              Nursing & Residential Care Homes,A,2023,5
249,Capital,INCOM TELECOMMUNICATIONS,INV0474019,16-Aug-23,4427.99,738,30976,Planned Replacement Programme,270000              Information Communication Technology,A,2023,5
250,Community and Housing,HAYDON PARK LODGE,1000010,03-Aug-23,5070.76,0,31434,Learning Disabilities Placemnt,321017              Nursing & Residential Care Homes,A,2023,5
251,Community and Housing,HAYDON PARK LODGE,1000052,03-Aug-23,4420.08,0,31434,Learning Disabilities Placemnt,321017              Nursing & Residential Care Homes,A,2023,5
252,Community and Housing,HAYDON PARK LODGE,1000094,03-Aug-23,7000,0,31434,Learning Disabilities Placemnt,321017              Nursing & Residential Care Homes,A,2023,5
253,Community and Housing,HAYDON PARK LODGE,999902,03-Aug-23,3485,0,31434,Learning Disabilities Placemnt,321017              Nursing & Residential Care Homes,A,2023,5
254,Community and Housing,HAYDON PARK LODGE,999932,03-Aug-23,4591.44,0,31434,Learning Disabilities Placemnt,321017              Nursing & Residential Care Homes,A,2023,5
255,Community and Housing,HAYDON PARK LODGE,1014363,30-Aug-23,3485,0,31434,Learning Disabilities Placemnt,321017              Nursing & Residential Care Homes,A,2023,5
256,Community and Housing,HAYDON PARK LODGE,1014390,30-Aug-23,4591.44,0,31434,Learning Disabilities Placemnt,321017              Nursing & Residential Care Homes,A,2023,5
257,Community and Housing,HAYDON PARK LODGE,1014473,30-Aug-23,5070.76,0,31434,Learning Disabilities Placemnt,321017              Nursing & Residential Care Homes,A,2023,5
258,Community and Housing,HAYDON PARK LODGE,1014516,30-Aug-23,4420.08,0,31434,Learning Disabilities Placemnt,321017              Nursing & Residential Care Homes,A,2023,5
259,Community and Housing,HAYDON PARK LODGE,1014561,30-Aug-23,7000,0,31434,Learning Disabilities Placemnt,321017              Nursing & Residential Care Homes,A,2023,5
260,Community and Housing,Barchester Healthcare Wimbledon Beaumont,999737,03-Aug-23,3220.32,0,33384,Older People Placements - East,321017              Nursing & Residential Care Homes,A,2023,5
261,Community and Housing,Barchester Healthcare Wimbledon Beaumont,999844,03-Aug-23,4056,0,33384,Older People Placements - East,321017              Nursing & Residential Care Homes,A,2023,5
262,Community and Housing,Barchester Healthcare Wimbledon Beaumont,999864,03-Aug-23,3000,0,33384,Older People Placements - East,321017              Nursing & Residential Care Homes,A,2023,5
263,Community and Housing,Barchester Healthcare Wimbledon Beaumont,1014203,30-Aug-23,3220.32,0,33384,Older People Placements - East,321017              Nursing & Residential Care Homes,A,2023,5
264,Community and Housing,Barchester Healthcare Wimbledon Beaumont,1014309,30-Aug-23,4056,0,33384,Older People Placements - East,321017              Nursing & Residential Care Homes,A,2023,5
265,Capital,SOUTH MITCHAM COMMUNITY ASS,SMCA NFUND22,24-Aug-23,85930,0,33871,Mitcham Area Regeneration,190000              Facilities & Management Services,A,2023,5
266,Community and Housing,COMFORT CARE SERVICES (UK) LTD,SU1102/1651,14-Aug-23,2380,0,34932,Mental Health Placements,321000              Social Community Care Supplies & Services - Adult,A,2023,5
267,Community and Housing,COMFORT CARE SERVICES (UK) LTD,SU1051/1396-97,14-Aug-23,3295,0,34932,Mental Health Placements,321000              Social Community Care Supplies & Services - Adult,A,2023,5
268,Community and Housing,COMFORT CARE SERVICES (UK) LTD,SU0291/1158,21-Aug-23,2380,0,34932,Mental Health Placements,321000              Social Community Care Supplies & Services - Adult,A,2023,5
269,Community and Housing,COMFORT CARE SERVICES (UK) LTD,SU0133/1156,21-Aug-23,2380,0,34932,Mental Health Placements,321000              Social Community Care Supplies & Services - Adult,A,2023,5
270,Community and Housing,COMFORT CARE SERVICES (UK) LTD,SU0208/1650,21-Aug-23,2380,0,34932,Mental Health Placements,321000              Social Community Care Supplies & Services - Adult,A,2023,5
271,Community and Housing,COMFORT CARE SERVICES (UK) LTD,SU0210/1157,21-Aug-23,2380,0,34932,Mental Health Placements,321000              Social Community Care Supplies & Services - Adult,A,2023,5
272,Community and Housing,COMFORT CARE SERVICES (UK) LTD,SU0146/1508,21-Aug-23,2380,0,34932,Mental Health Placements,321000              Social Community Care Supplies & Services - Adult,A,2023,5
273,Community and Housing,COMFORT CARE SERVICES (UK) LTD,SU0184/1067,21-Aug-23,2380,0,34932,Mental Health Placements,321000              Social Community Care Supplies & Services - Adult,A,2023,5
274,Community and Housing,COMFORT CARE SERVICES (UK) LTD,SU0298/1068,21-Aug-23,2380,0,34932,Mental Health Placements,321000              Social Community Care Supplies & Services - Adult,A,2023,5
275,Community and Housing,COMFORT CARE SERVICES (UK) LTD,SU0294/1633,21-Aug-23,2380,0,34932,Mental Health Placements,321000              Social Community Care Supplies & Services - Adult,A,2023,5
276,Community and Housing,COMFORT CARE SERVICES (UK) LTD,SU0201/1509,21-Aug-23,2380,0,34932,Mental Health Placements,321000              Social Community Care Supplies & Services - Adult,A,2023,5
277,Community and Housing,COMFORT CARE SERVICES (UK) LTD,SU0266/1592,14-Aug-23,2380,0,34932,Mental Health Placements,321000              Social Community Care Supplies & Services - Adult,A,2023,5
278,Community and Housing,COMFORT CARE SERVICES (UK) LTD,SU1102/1565,15-Aug-23,2380,0,34932,Mental Health Placements,321000              Social Community Care Supplies & Services - Adult,A,2023,5
279,Community and Housing,COMFORT CARE SERVICES (UK) LTD,SU1041/887,31-Aug-23,1632.15,0,34932,Mental Health Placements,321000              Social Community Care Supplies & Services - Adult,A,2023,5
280,"Children, Schools and Family",NURSERY ON THE GREEN,P1 23 ADJUSTMENT,24-Aug-23,1105.5,0,35101,EARLY YEARS NURSERY GRANTS,170000              Education,A,2023,5
281,Unassigned,ST MATTHEW'S C OF E PRIMARY,SCHOOLS 2324/5 A,08-Aug-23,73101.22,0,36050,Schools,170000              Education,A,2023,5
282,Community and Housing,AGE UK MERTON,13780,21-Aug-23,982,0,37401,PH - Elderly Care Pilot,190000              Facilities & Management Services,A,2023,5
283,"Children, Schools and Family",SURREY COUNTY COUNCIL,20107502,04-Sep-23,4114,0,46682,Non-Delegated Statements,OLA,A,2023,5
284,"Children, Schools and Family",SURREY COUNTY COUNCIL,20107506,04-Sep-23,6928,0,46682,Non-Delegated Statements,OLA,A,2023,5
285,Community and Housing,JESMUND CARE LTD,1000126,03-Aug-23,3600,0,46751,Older People Placements - East,321017              Nursing & Residential Care Homes,A,2023,5
286,Community and Housing,JESMUND CARE LTD,999798,03-Aug-23,4400,0,46751,Older People Placements - East,321017              Nursing & Residential Care Homes,A,2023,5
287,Community and Housing,JESMUND CARE LTD,1014258,30-Aug-23,4400,0,46751,Older People Placements - East,321017              Nursing & Residential Care Homes,A,2023,5
288,Community and Housing,JESMUND CARE LTD,1014597,30-Aug-23,3600,0,46751,Older People Placements - East,321017              Nursing & Residential Care Homes,A,2023,5
289,Community and Housing,REDACTED PERSONAL DATA,1006391,15-Aug-23,6021.4,0,50448,Older People Placements - East,DIRECT PAYMENTS,R,2023,5
290,Community and Housing,LINKAGE COMMUNITY TR.LONG-STAY,1000044,03-Aug-23,3340.08,0,52552,Learning Disabilities Placemnt,321017              Nursing & Residential Care Homes,A,2023,5
291,Community and Housing,LINKAGE COMMUNITY TR.LONG-STAY,1014507,30-Aug-23,3340.08,0,52552,Learning Disabilities Placemnt,321017              Nursing & Residential Care Homes,A,2023,5
292,Community and Housing,RUTLAND HOUSE CARE HOME,1000036,03-Aug-23,5181.25,0,53424,Older People Placements - East,321017              Nursing & Residential Care Homes,A,2023,5
293,Community and Housing,RUTLAND HOUSE CARE HOME,999923,03-Aug-23,3156,0,53424,Older People Placements - East,321017              Nursing & Residential Care Homes,A,2023,5
294,Community and Housing,RUTLAND HOUSE CARE HOME,1014383,30-Aug-23,3156,0,53424,Older People Placements - East,321017              Nursing & Residential Care Homes,A,2023,5
295,Community and Housing,RUTLAND HOUSE CARE HOME,1014499,30-Aug-23,3517,0,53424,Older People Placements - East,321017              Nursing & Residential Care Homes,A,2023,5
296,Community and Housing,PARK LODGE,999889,03-Aug-23,2895.68,0,56878,Learning Disabilities Placemnt,321017              Nursing & Residential Care Homes,A,2023,5
297,Community and Housing,PARK LODGE,999986,03-Aug-23,3026.8,0,56878,Learning Disabilities Placemnt,321017              Nursing & Residential Care Homes,A,2023,5
298,Community and Housing,PARK LODGE,1014351,30-Aug-23,2895.68,0,56878,Learning Disabilities Placemnt,321017              Nursing & Residential Care Homes,A,2023,5
299,Community and Housing,PARK LODGE,1014448,30-Aug-23,3026.8,0,56878,Learning Disabilities Placemnt,321017              Nursing & Residential Care Homes,A,2023,5
300,Unassigned,CRICKET GREEN SCHOOL,SCHOOLS 2324/5 A,08-Aug-23,723380.54,0,57057,Schools,170000              Education,A,2023,5
301,Corporate Services,MERTON VOLUNTARY SERV COUNCIL,CIVIC PRIDE FUND,22-Aug-23,100556.33,0,57560,VOLUNTARY SECTOR COORDINATION,190000              Facilities & Management Services,A,2023,5
302,Corporate Services,MERTON VOLUNTARY SERV COUNCIL,5236,18-Aug-23,31250,0,57560,Healthwatch,190000              Facilities & Management Services,A,2023,5
303,"Children, Schools and Family",CANBURY SCHOOL LIMITED,4720,24-Aug-23,11969.34,0,57830,Non-Delegated Statements,170000              Education,A,2023,5
304,"Children, Schools and Family",CANBURY SCHOOL LIMITED,4718,24-Aug-23,8579.34,0,57830,Non-Delegated Statements,170000              Education,A,2023,5
305,"Children, Schools and Family",CANBURY SCHOOL LIMITED,4719,24-Aug-23,11219.33,0,57830,Non-Delegated Statements,170000              Education,A,2023,5
306,"Children, Schools and Family",CANBURY SCHOOL LIMITED,4S33,25-Aug-23,12196.01,0,57830,Non-Delegated Statements,170000              Education,A,2023,5
307,Community and Housing,WALSINGHAM,1000042,03-Aug-23,5942.76,0,58466,Learning Disabilities Placemnt,321017              Nursing & Residential Care Homes,A,2023,5
308,Community and Housing,WALSINGHAM,1000099,03-Aug-23,7991.72,0,58466,Learning Disabilities Placemnt,321017              Nursing & Residential Care Homes,A,2023,5
309,Community and Housing,WALSINGHAM,999856,03-Aug-23,5943.28,0,58466,Learning Disabilities Placemnt,321017              Nursing & Residential Care Homes,A,2023,5
310,Community and Housing,WALSINGHAM,999992,03-Aug-23,3816.34,0,58466,Learning Disabilities Placemnt,321017              Nursing & Residential Care Homes,A,2023,5
311,Community and Housing,WALSINGHAM,1014320,30-Aug-23,5943.28,0,58466,Learning Disabilities Placemnt,321017              Nursing & Residential Care Homes,A,2023,5
312,Community and Housing,WALSINGHAM,1014454,30-Aug-23,7362.17,0,58466,Learning Disabilities Placemnt,321017              Nursing & Residential Care Homes,A,2023,5
313,Community and Housing,WALSINGHAM,1014505,30-Aug-23,5942.76,0,58466,Learning Disabilities Placemnt,321017              Nursing & Residential Care Homes,A,2023,5
314,Community and Housing,WALSINGHAM,1014566,30-Aug-23,7991.72,0,58466,Learning Disabilities Placemnt,321017              Nursing & Residential Care Homes,A,2023,5
315,Community and Housing,HATS GROUP LTD,224877,01-Aug-23,2658.43,443.07,58532,Learning Disabilities Placemnt,360000              Passenger Transport,A,2023,5
316,Community and Housing,CARE UK,1000040,03-Aug-23,4321.16,0,58851,Older People Placements - East,321017              Nursing & Residential Care Homes,A,2023,5
317,Community and Housing,CARE UK,1000054,03-Aug-23,3723.24,0,58851,Older People Placements - East,321017              Nursing & Residential Care Homes,A,2023,5
318,Community and Housing,CARE UK,1000120,03-Aug-23,4000,0,58851,Older People Placements - East,321017              Nursing & Residential Care Homes,A,2023,5
319,Community and Housing,CARE UK,1000124,03-Aug-23,3229.52,0,58851,Older People Placements - East,321017              Nursing & Residential Care Homes,A,2023,5
320,Community and Housing,CARE UK,999731,03-Aug-23,3229.52,0,58851,Older People Placements - East,321017              Nursing & Residential Care Homes,A,2023,5
321,Community and Housing,CARE UK,999735,03-Aug-23,4321.16,0,58851,Older People Placements - East,321017              Nursing & Residential Care Homes,A,2023,5
322,Community and Housing,CARE UK,999754,03-Aug-23,3800,0,58851,Older People Placements - East,321017              Nursing & Residential Care Homes,A,2023,5
323,Community and Housing,CARE UK,999791,03-Aug-23,4321.16,0,58851,Older People Placements - East,321017              Nursing & Residential Care Homes,A,2023,5
324,Community and Housing,CARE UK,999812,03-Aug-23,3723.24,0,58851,Older People Placements - East,321017              Nursing & Residential Care Homes,A,2023,5
325,Community and Housing,CARE UK,999832,03-Aug-23,3963.24,0,58851,Older People Placements - East,321017              Nursing & Residential Care Homes,A,2023,5
326,Community and Housing,CARE UK,999930,03-Aug-23,3264.32,0,58851,Older People Placements - East,321017              Nursing & Residential Care Homes,A,2023,5
327,Community and Housing,CARE UK,999980,03-Aug-23,3723.24,0,58851,Older People Placements - East,321017              Nursing & Residential Care Homes,A,2023,5
328,Community and Housing,CARE UK,999991,03-Aug-23,4560,0,58851,Older People Placements - East,321017              Nursing & Residential Care Homes,A,2023,5
329,Community and Housing,CARE UK,1004043,08-Aug-23,1372.6,0,58851,Older People Placements - East,321017              Nursing & Residential Care Homes,A,2023,5
330,Community and Housing,CARE UK,1004045,08-Aug-23,1582.4,0,58851,Older People Placements - East,321017              Nursing & Residential Care Homes,A,2023,5
331,Community and Housing,CARE UK,1004046,08-Aug-23,20615,0,58851,Older People Placements - East,321017              Nursing & Residential Care Homes,A,2023,5
332,Community and Housing,CARE UK,1004047,08-Aug-23,1700,0,58851,Older People Placements - East,321017              Nursing & Residential Care Homes,A,2023,5
333,Community and Housing,CARE UK,1004689,10-Aug-23,20198.6,0,58851,Older People Placements - East,321017              Nursing & Residential Care Homes,A,2023,5
334,Community and Housing,CARE UK,1004693,10-Aug-23,17709,0,58851,Older People Placements - East,321017              Nursing & Residential Care Homes,A,2023,5
335,Community and Housing,CARE UK,1004694,10-Aug-23,21500.6,0,58851,Older People Placements - East,321017              Nursing & Residential Care Homes,A,2023,5
336,Community and Housing,CARE UK,1004695,10-Aug-23,20198.6,0,58851,Older People Placements - East,321017              Nursing & Residential Care Homes,A,2023,5
337,Community and Housing,CARE UK,1006436,15-Aug-23,1372.6,0,58851,Older People Placements - East,321017              Nursing & Residential Care Homes,A,2023,5
338,Community and Housing,CARE UK,1014197,30-Aug-23,3504.04,0,58851,Older People Placements - East,321017              Nursing & Residential Care Homes,A,2023,5
339,Community and Housing,CARE UK,1014201,30-Aug-23,4321.16,0,58851,Older People Placements - East,321017              Nursing & Residential Care Homes,A,2023,5
340,Community and Housing,CARE UK,1014251,30-Aug-23,4321.16,0,58851,Older People Placements - East,321017              Nursing & Residential Care Homes,A,2023,5
341,Community and Housing,CARE UK,1014273,30-Aug-23,4039.72,0,58851,Older People Placements - East,321017              Nursing & Residential Care Homes,A,2023,5
342,Community and Housing,CARE UK,1014295,30-Aug-23,4123,0,58851,Older People Placements - East,321017              Nursing & Residential Care Homes,A,2023,5
343,Community and Housing,CARE UK,1014298,30-Aug-23,4039.72,0,58851,Older People Placements - East,321017              Nursing & Residential Care Homes,A,2023,5
344,Community and Housing,CARE UK,1014453,30-Aug-23,4560,0,58851,Older People Placements - East,321017              Nursing & Residential Care Homes,A,2023,5
345,Community and Housing,CARE UK,1014503,30-Aug-23,4321.16,0,58851,Older People Placements - East,321017              Nursing & Residential Care Homes,A,2023,5
346,Community and Housing,CARE UK,1014515,30-Aug-23,3541.8,0,58851,Older People Placements - East,321017              Nursing & Residential Care Homes,A,2023,5
347,Community and Housing,CARE UK,1014539,30-Aug-23,4300.12,0,58851,Older People Placements - East,321017              Nursing & Residential Care Homes,A,2023,5
348,Community and Housing,CARE UK,1014553,30-Aug-23,4039.72,0,58851,Older People Placements - East,321017              Nursing & Residential Care Homes,A,2023,5
349,Community and Housing,CARE UK,1014590,30-Aug-23,4340,0,58851,Older People Placements - East,321017              Nursing & Residential Care Homes,A,2023,5
350,Community and Housing,CARE UK,1014594,30-Aug-23,3504.04,0,58851,Older People Placements - East,321017              Nursing & Residential Care Homes,A,2023,5
351,"Children, Schools and Family",ST MICHAEL'S FELLOWSHIP,C3097B/2100,21-Aug-23,2340,0,59560,Placements Under 18,280000              Legal Services,A,2023,5
352,Capital,BARCHAM TREES P.L.C.,157447,31-Aug-23,4561.6,573.6,62024,Street Trees,240000              Horticultural,A,2023,5
353,Environment and Regeneration,EDE'S (U.K.) LTD,INV25748,21-Aug-23,807.7,134.62,62345,Pks Rec Grds (Unloc),190000              Facilities & Management Services,A,2023,5
354,Environment and Regeneration,EDE'S (U.K.) LTD,INV25657,31-Aug-23,1263.6,210.6,62345,Parks & Recreation Grounds,190000              Facilities & Management Services,A,2023,5
355,Community and Housing,BARONS LODGE NURSING HOME,1000004,03-Aug-23,3502,0,62371,Mental Health Placements,321017              Nursing & Residential Care Homes,A,2023,5
356,Community and Housing,BARONS LODGE NURSING HOME,1000012,03-Aug-23,4200,0,62371,Mental Health Placements,321017              Nursing & Residential Care Homes,A,2023,5
357,Community and Housing,BARONS LODGE NURSING HOME,1000076,03-Aug-23,4360,0,62371,Mental Health Placements,321017              Nursing & Residential Care Homes,A,2023,5
358,Community and Housing,BARONS LODGE NURSING HOME,1000082,03-Aug-23,4360,0,62371,Older People Placements - East,321017              Nursing & Residential Care Homes,A,2023,5
359,Community and Housing,BARONS LODGE NURSING HOME,1000083,03-Aug-23,3807.2,0,62371,Learning Disabilities Placemnt,321017              Nursing & Residential Care Homes,A,2023,5
360,Community and Housing,BARONS LODGE NURSING HOME,1000100,03-Aug-23,4800,0,62371,Older People Placements - East,321017              Nursing & Residential Care Homes,A,2023,5
361,Community and Housing,BARONS LODGE NURSING HOME,1000116,03-Aug-23,3502,0,62371,Older People Placements - East,321017              Nursing & Residential Care Homes,A,2023,5
362,Community and Housing,BARONS LODGE NURSING HOME,1000163,03-Aug-23,3425.71,0,62371,Older People Placements - East,321017              Nursing & Residential Care Homes,A,2023,5
363,Community and Housing,BARONS LODGE NURSING HOME,999804,03-Aug-23,1716,0,62371,Mental Health Placements,321017              Nursing & Residential Care Homes,A,2023,5
364,Community and Housing,BARONS LODGE NURSING HOME,999900,03-Aug-23,4360,0,62371,Older People Placements - East,321017              Nursing & Residential Care Homes,A,2023,5
365,Community and Housing,BARONS LODGE NURSING HOME,1012051,23-Aug-23,934.29,0,62371,Older People Placements - East,321017              Nursing & Residential Care Homes,A,2023,5
366,Community and Housing,BARONS LODGE NURSING HOME,1014265,30-Aug-23,1716,0,62371,Mental Health Placements,321017              Nursing & Residential Care Homes,A,2023,5
367,Community and Housing,BARONS LODGE NURSING HOME,1014361,30-Aug-23,4360,0,62371,Older People Placements - East,321017              Nursing & Residential Care Homes,A,2023,5
368,Community and Housing,BARONS LODGE NURSING HOME,1014467,30-Aug-23,3502,0,62371,Mental Health Placements,321017              Nursing & Residential Care Homes,A,2023,5
369,Community and Housing,BARONS LODGE NURSING HOME,1014475,30-Aug-23,4200,0,62371,Mental Health Placements,321017              Nursing & Residential Care Homes,A,2023,5
370,Community and Housing,BARONS LODGE NURSING HOME,1014522,30-Aug-23,3425.71,0,62371,Older People Placements - East,321017              Nursing & Residential Care Homes,A,2023,5
371,Community and Housing,BARONS LODGE NURSING HOME,1014541,30-Aug-23,4360,0,62371,Mental Health Placements,321017              Nursing & Residential Care Homes,A,2023,5
372,Community and Housing,BARONS LODGE NURSING HOME,1014547,30-Aug-23,4360,0,62371,Older People Placements - East,321017              Nursing & Residential Care Homes,A,2023,5
373,Community and Housing,BARONS LODGE NURSING HOME,1014548,30-Aug-23,3807.2,0,62371,Learning Disabilities Placemnt,321017              Nursing & Residential Care Homes,A,2023,5
374,Community and Housing,BARONS LODGE NURSING HOME,1014567,30-Aug-23,4800,0,62371,Older People Placements - East,321017              Nursing & Residential Care Homes,A,2023,5
375,Community and Housing,BARONS LODGE NURSING HOME,1014585,30-Aug-23,3502,0,62371,Older People Placements - East,321017              Nursing & Residential Care Homes,A,2023,5
376,"Children, Schools and Family",ATTIC THEATRE COMPANY,HAFSUM-P1,30-Aug-23,987.5,0,62620,Holiday Act Food Prog grntfnd,190000              Facilities & Management Services,A,2023,5
377,Corporate Services,MASTERS LEGAL COSTS SERV'S LLP,75095,23-Aug-23,600,100,63103,SLLP - Disbursements,280000              Legal Services                                                                            Confirmed,A,2023,5
378,Community and Housing,SANCTUARY CARE LTD,999765,03-Aug-23,3117.52,0,63458,Learning Disabilities Placemnt,321017              Nursing & Residential Care Homes,A,2023,5
379,Community and Housing,SANCTUARY CARE LTD,1014226,30-Aug-23,3117.52,0,63458,Learning Disabilities Placemnt,321017              Nursing & Residential Care Homes,A,2023,5
380,Community and Housing,THE REGARD PARTNERSHIP LTD,1000101,03-Aug-23,4901.24,0,63796,Learning Disabilities Placemnt,321017              Nursing & Residential Care Homes,A,2023,5
381,Community and Housing,THE REGARD PARTNERSHIP LTD,999748,03-Aug-23,6220.72,0,63796,Learning Disabilities Placemnt,321017              Nursing & Residential Care Homes,A,2023,5
382,Community and Housing,THE REGARD PARTNERSHIP LTD,999853,03-Aug-23,5973.28,0,63796,Learning Disabilities Placemnt,321017              Nursing & Residential Care Homes,A,2023,5
383,Community and Housing,THE REGARD PARTNERSHIP LTD,999871,03-Aug-23,9681.96,0,63796,Learning Disabilities Placemnt,321017              Nursing & Residential Care Homes,A,2023,5
384,Community and Housing,THE REGARD PARTNERSHIP LTD,999887,03-Aug-23,5765,0,63796,Learning Disabilities Placemnt,321017              Nursing & Residential Care Homes,A,2023,5
385,Community and Housing,THE REGARD PARTNERSHIP LTD,999994,03-Aug-23,6126.52,0,63796,Learning Disabilities Placemnt,321017              Nursing & Residential Care Homes,A,2023,5
386,Community and Housing,THE REGARD PARTNERSHIP LTD,1014213,30-Aug-23,6220.72,0,63796,Learning Disabilities Placemnt,321017              Nursing & Residential Care Homes,A,2023,5
387,Community and Housing,THE REGARD PARTNERSHIP LTD,1014318,30-Aug-23,5973.28,0,63796,Learning Disabilities Placemnt,321017              Nursing & Residential Care Homes,A,2023,5
388,Community and Housing,THE REGARD PARTNERSHIP LTD,1014333,30-Aug-23,9681.96,0,63796,Learning Disabilities Placemnt,321017              Nursing & Residential Care Homes,A,2023,5
389,Community and Housing,THE REGARD PARTNERSHIP LTD,1014348,30-Aug-23,5765,0,63796,Learning Disabilities Placemnt,321017              Nursing & Residential Care Homes,A,2023,5
390,Community and Housing,THE REGARD PARTNERSHIP LTD,1014457,30-Aug-23,6126.52,0,63796,Learning Disabilities Placemnt,321017              Nursing & Residential Care Homes,A,2023,5
391,Community and Housing,THE REGARD PARTNERSHIP LTD,1014568,30-Aug-23,4901.24,0,63796,Learning Disabilities Placemnt,321017              Nursing & Residential Care Homes,A,2023,5
392,"Children, Schools and Family",PLAYDAYS DAY NURSERY,P1 23 ADJUSTMENT,24-Aug-23,1115.1,0,66992,EARLY YEARS NURSERY GRANTS,170000              Education,A,2023,5
393,Community and Housing,NAS SERVICES LIMITED,ASU4396992,30-Aug-23,4546.8,757.8,68929,Mental Health Placements,321100              Social Community Care Supplies & Services - Children,A,2023,5
394,Community and Housing,NAS SERVICES LIMITED,ASU4395360,30-Aug-23,4546.8,757.8,68929,Mental Health Placements,321100              Social Community Care Supplies & Services - Children,A,2023,5
395,Unassigned,LEE VALLEY REGIONAL PARK AUTH.,2.02308E+11,21-Aug-23,16448.72,0,70554,Lee Valley Regional Park,PRECEPT,A,2023,5
396,Corporate Services,LOCAL GOVERNMENT ASSOCIATION,64010849,04-Aug-23,817.44,136.24,71578,Chief Executive,260000              Human Resources,A,2023,5
397,Community and Housing,CARETECH UK. LIMITED,100718,09-Aug-23,1921.2,320.2,74201,Equipment,321000              Social Community Care Supplies & Services - Adult,A,2023,5
398,Community and Housing,BRANDON TRUST,999760,03-Aug-23,4054,0,76126,Learning Disabilities Placemnt,321017              Nursing & Residential Care Homes,A,2023,5
399,Community and Housing,BRANDON TRUST,1014221,30-Aug-23,4054,0,76126,Learning Disabilities Placemnt,321017              Nursing & Residential Care Homes,A,2023,5
400,Unassigned,LONDON BOROUGH OF SUTTON,BAILIFF JUL 2023,11-Aug-23,131771.71,0,76615,Corporate Services,OLA,A,2023,5
401,Unassigned,POST OFFICE LTD,MERTON23/24PO10,08-Aug-23,19789.42,0,77066,Adults Social Care,200000              Financial Services,A,2023,5
402,Unassigned,POST OFFICE LTD,MERTON23/24PO11,16-Aug-23,11146.92,0,77066,Adults Social Care,200000              Financial Services,A,2023,5
403,Unassigned,POST OFFICE LTD,MERT 23/24 PO12,30-Aug-23,19270.21,0,77066,Adults Social Care,200000              Financial Services,A,2023,5
404,Community and Housing,ABBEY HOUSE RESIDENTIAL HOMES,999761,03-Aug-23,4400,0,78937,Older People Placements - East,321017              Nursing & Residential Care Homes,A,2023,5
405,Community and Housing,ABBEY HOUSE RESIDENTIAL HOMES,999788,03-Aug-23,4400,0,78937,Older People Placements - East,321017              Nursing & Residential Care Homes,A,2023,5
406,Community and Housing,ABBEY HOUSE RESIDENTIAL HOMES,999790,03-Aug-23,5520,0,78937,Mental Health Placements,321017              Nursing & Residential Care Homes,A,2023,5
407,Community and Housing,ABBEY HOUSE RESIDENTIAL HOMES,1013794,29-Aug-23,1589.5,0,78937,Older People Placements - East,321017              Nursing & Residential Care Homes,A,2023,5
408,Community and Housing,ABBEY HOUSE RESIDENTIAL HOMES,1013795,29-Aug-23,1589.5,0,78937,Older People Placements - East,321017              Nursing & Residential Care Homes,A,2023,5
409,Community and Housing,ABBEY HOUSE RESIDENTIAL HOMES,1014222,30-Aug-23,4774,0,78937,Older People Placements - East,321017              Nursing & Residential Care Homes,A,2023,5
410,Community and Housing,ABBEY HOUSE RESIDENTIAL HOMES,1014248,30-Aug-23,4774,0,78937,Older People Placements - East,321017              Nursing & Residential Care Homes,A,2023,5
411,Community and Housing,ABBEY HOUSE RESIDENTIAL HOMES,1014250,30-Aug-23,5520,0,78937,Mental Health Placements,321017              Nursing & Residential Care Homes,A,2023,5
412,Unassigned,TRANSPORT FOR LONDON,MERTONQ1-23-24A,02-Aug-23,748625.71,0,79197,Capital,PRECEPT,A,2023,5
413,Unassigned,TRANSPORT FOR LONDON,MERTONQ1-23-24B,08-Aug-23,33865.66,0,79197,Capital,PRECEPT,A,2023,5
414,Corporate Services,ANTALIS,6700128118,09-Aug-23,783.04,130.51,81623,PrintUnit-HighVolPhtcopying,190000              Facilities & Management Services,A,2023,5
415,Community and Housing,REDACTED PERSONAL DATA,1006189,15-Aug-23,6316.16,0,81639,Older People Placements - East,DIRECT PAYMENTS,R,2023,5
416,Corporate Services,REDACTED PERSONAL DATA,SIUK365453,18-Aug-23,10705.2,1784.2,82574,Learning and Development,260000              Human Resources,R,2023,5
417,Environment and Regeneration,S.GRUNDON (WASTE) LTD.,W158579,18-Aug-23,760.32,126.72,82593,Waste Disposal,180000              Environmental Services,A,2023,5
418,Unassigned,GREATER LONDON AUTHORITY,2.02308E+11,02-Aug-23,3404413.14,0,83050,Collection Fund,PRECEPT,A,2023,5
419,Unassigned,GREATER LONDON AUTHORITY,2.02308E+11,15-Aug-23,2663423,0,83050,Collection Fund,PRECEPT,A,2023,5
420,Unassigned,GREATER LONDON AUTHORITY,2.02308E+11,23-Aug-23,237524,0,83050,Collection Fund,PRECEPT,A,2023,5
421,Unassigned,MALMESBURY PRIMARY SCHOOL,SCHOOLS 2324/5 A,08-Aug-23,201237.73,0,83593,Schools,170000              Education,A,2023,5
422,"Children, Schools and Family",MALMESBURY PRIMARY SCHOOL,001/MCMOD,01-Sep-23,1050,0,83593,School Improvement Dedelegated,170000              Education,A,2023,5
423,"Children, Schools and Family",YOUNG EPILEPSY,INV11472,17-Aug-23,16227.73,0,84094,SEN Residential (DSG),170000              Education,A,2023,5
424,"Children, Schools and Family",YOUNG EPILEPSY,INV11475,17-Aug-23,13724,0,84094,SEN Residential (DSG),170000              Education,A,2023,5
425,"Children, Schools and Family",YOUNG EPILEPSY,INV11473,17-Aug-23,15891.49,0,84094,SEN Residential (DSG),170000              Education,A,2023,5
426,Environment and Regeneration,NEWSQUEST MEDIA GROUP LTD,43294431,29-Aug-23,4141.37,690.23,85566,Tr Man & Accid Sch,190000              Facilities & Management Services,A,2023,5
427,Environment and Regeneration,NEWSQUEST MEDIA GROUP LTD,43294884,29-Aug-23,2850.55,475.09,85566,CPZ Implementation & Consult,190000              Facilities & Management Services,A,2023,5
428,Environment and Regeneration,NEWSQUEST MEDIA GROUP LTD,43337964,04-Sep-23,6292.73,1048.79,85566,CPZ Implementation & Consult,190000              Facilities & Management Services,A,2023,5
429,"Children, Schools and Family",LONDON GRID FOR LEARNING TRUST,2020016425,02-Aug-23,404684.74,67447.46,90449, Schools IT Support,270000              Information Communication Technology,A,2023,5
430,"Children, Schools and Family",LONDON GRID FOR LEARNING TRUST,2020016733,17-Aug-23,1438.8,239.8,90449, Schools IT Support,270000              Information Communication Technology,A,2023,5
431,"Children, Schools and Family",LONDON GRID FOR LEARNING TRUST,2020016731,17-Aug-23,1558.8,259.8,90449, Schools IT Support,270000              Information Communication Technology,A,2023,5
432,Community and Housing,THE GARWOOD FOUNDATION,MW.DFAUG23,24-Aug-23,1180,0,92268,Older People Placements - East,321000              Social Community Care Supplies & Services - Adult,A,2023,5
433,Community and Housing,Allied Healthcare,264/1068274./17,03-Aug-23,821.2,0,92896,Learning Disabilities Placemnt,321000              Social Community Care Supplies & Services - Adult,A,2023,5
434,Community and Housing,Allied Healthcare,264/1068274./31,03-Aug-23,691.59,0,92896,Older People Placements - East,321000              Social Community Care Supplies & Services - Adult,A,2023,5
435,Community and Housing,Allied Healthcare,264/1068274./30,03-Aug-23,1147.95,0,92896,Phys/Sens Placements - East,321000              Social Community Care Supplies & Services - Adult,A,2023,5
436,Community and Housing,Allied Healthcare,264/1068274./41,03-Aug-23,1077.81,0,92896,Older People Placements - East,321000              Social Community Care Supplies & Services - Adult,A,2023,5
437,Community and Housing,Allied Healthcare,264/1068274./42,03-Aug-23,2419.12,0,92896,Older People Placements - East,321000              Social Community Care Supplies & Services - Adult,A,2023,5
438,Community and Housing,Allied Healthcare,264/1068274./19,03-Aug-23,820.72,0,92896,Older People Placements - East,321000              Social Community Care Supplies & Services - Adult,A,2023,5
439,Community and Housing,Allied Healthcare,264/1068274./25,03-Aug-23,529.68,0,92896,Learning Disabilities Placemnt,321000              Social Community Care Supplies & Services - Adult,A,2023,5
440,Community and Housing,Allied Healthcare,264/1068274./50,03-Aug-23,1543.91,0,92896,Older People Placements - East,321000              Social Community Care Supplies & Services - Adult,A,2023,5
441,Community and Housing,Allied Healthcare,264/1068274./7,03-Aug-23,1192.36,0,92896,Older People Placements - East,321000              Social Community Care Supplies & Services - Adult,A,2023,5
442,Community and Housing,Allied Healthcare,264/1068274./55,03-Aug-23,797.88,0,92896,Older People Placements - East,321000              Social Community Care Supplies & Services - Adult,A,2023,5
443,Community and Housing,Allied Healthcare,264/1068274./6,03-Aug-23,2422.99,0,92896,Older People Placements - East,321000              Social Community Care Supplies & Services - Adult,A,2023,5
444,Community and Housing,Allied Healthcare,264/1068274./1,03-Aug-23,1177.15,0,92896,Phys/Sens Placements - East,321000              Social Community Care Supplies & Services - Adult,A,2023,5
445,Community and Housing,Allied Healthcare,264/1068274./18,03-Aug-23,1165.35,0,92896,Older People Placements - East,321000              Social Community Care Supplies & Services - Adult,A,2023,5
446,Community and Housing,Allied Healthcare,264/1068274./34,03-Aug-23,2628.11,0,92896,Older People Placements - East,321000              Social Community Care Supplies & Services - Adult,A,2023,5
447,Community and Housing,Allied Healthcare,264/1068274./27,03-Aug-23,2438.97,0,92896,Older People Placements - East,321000              Social Community Care Supplies & Services - Adult,A,2023,5
448,Community and Housing,Allied Healthcare,264/1068274./21,03-Aug-23,923.86,0,92896,Learning Disabilities Placemnt,321000              Social Community Care Supplies & Services - Adult,A,2023,5
449,Community and Housing,Allied Healthcare,264/1068274./36,03-Aug-23,798.92,0,92896,Older People Placements - East,321000              Social Community Care Supplies & Services - Adult,A,2023,5
450,Community and Housing,Allied Healthcare,264/1068274./23,03-Aug-23,1916.43,0,92896,Older People Placements - East,321000              Social Community Care Supplies & Services - Adult,A,2023,5
451,Community and Housing,Allied Healthcare,264/1068274./22,03-Aug-23,599.28,0,92896,Learning Disabilities Placemnt,321000              Social Community Care Supplies & Services - Adult,A,2023,5
452,Community and Housing,Allied Healthcare,264/1068274./49,03-Aug-23,2918.22,0,92896,Older People Placements - East,321000              Social Community Care Supplies & Services - Adult,A,2023,5
453,Community and Housing,Allied Healthcare,264/1068274./37,03-Aug-23,775.5,0,92896,Older People Placements - East,321000              Social Community Care Supplies & Services - Adult,A,2023,5
454,Community and Housing,Allied Healthcare,264/1068274./12,03-Aug-23,1528.48,0,92896,Older People Placements - East,321000              Social Community Care Supplies & Services - Adult,A,2023,5
455,Community and Housing,Allied Healthcare,264/1068274./44,03-Aug-23,2831.83,0,92896,Older People Placements - East,321000              Social Community Care Supplies & Services - Adult,A,2023,5
456,Community and Housing,Allied Healthcare,264/1068274./29,03-Aug-23,2612.41,0,92896,Phys/Sens Placements - East,321000              Social Community Care Supplies & Services - Adult,A,2023,5
457,Community and Housing,Allied Healthcare,264/1068274./54,03-Aug-23,1541.24,0,92896,Older People Placements - East,321000              Social Community Care Supplies & Services - Adult,A,2023,5
458,Community and Housing,Allied Healthcare,264/1068274./33,03-Aug-23,585.5,0,92896,Older People Placements - East,321000              Social Community Care Supplies & Services - Adult,A,2023,5
459,Community and Housing,Allied Healthcare,264/1068274./13,03-Aug-23,549.53,0,92896,Older People Placements - East,321000              Social Community Care Supplies & Services - Adult,A,2023,5
460,Community and Housing,Allied Healthcare,264/1068274./39,03-Aug-23,796.09,0,92896,Older People Placements - East,321000              Social Community Care Supplies & Services - Adult,A,2023,5
461,Community and Housing,Allied Healthcare,264/1068274./16,03-Aug-23,777.83,0,92896,Older People Placements - East,321000              Social Community Care Supplies & Services - Adult,A,2023,5
462,Community and Housing,Allied Healthcare,264/1068274./8,03-Aug-23,3346.21,0,92896,Older People Placements - East,321000              Social Community Care Supplies & Services - Adult,A,2023,5
463,Community and Housing,Allied Healthcare,264/1068274./48,03-Aug-23,3175.37,0,92896,Older People Placements - East,321000              Social Community Care Supplies & Services - Adult,A,2023,5
464,Community and Housing,Allied Healthcare,264/1068274./53,03-Aug-23,855.84,0,92896,Older People Placements - East,321000              Social Community Care Supplies & Services - Adult,A,2023,5
465,Community and Housing,Allied Healthcare,264/1068274./43,03-Aug-23,738.67,0,92896,Older People Placements - East,321000              Social Community Care Supplies & Services - Adult,A,2023,5
466,Community and Housing,Allied Healthcare,264/1068274./52,03-Aug-23,2929.62,0,92896,Older People Placements - East,321000              Social Community Care Supplies & Services - Adult,A,2023,5
467,Community and Housing,Allied Healthcare,264/1068274./46,03-Aug-23,1141.02,0,92896,Older People Placements - East,321000              Social Community Care Supplies & Services - Adult,A,2023,5
468,Community and Housing,Allied Healthcare,264/1068274./9,03-Aug-23,1984.96,0,92896,Older People Placements - East,321000              Social Community Care Supplies & Services - Adult,A,2023,5
469,Community and Housing,Allied Healthcare,264/1068274./5,03-Aug-23,855.45,0,92896,Older People Placements - East,321000              Social Community Care Supplies & Services - Adult,A,2023,5
470,Community and Housing,Allied Healthcare,2641068926A/30,21-Aug-23,709.92,0,92896,Older People Placements - East,321000              Social Community Care Supplies & Services - Adult,A,2023,5
471,Community and Housing,Allied Healthcare,2641068926A/29,21-Aug-23,1139.96,0,92896,Phys/Sens Placements - East,321000              Social Community Care Supplies & Services - Adult,A,2023,5
472,Community and Housing,Allied Healthcare,2641068926A/40,21-Aug-23,1162.47,0,92896,Older People Placements - East,321000              Social Community Care Supplies & Services - Adult,A,2023,5
473,Community and Housing,Allied Healthcare,2641068926A/41,21-Aug-23,2444.2,0,92896,Older People Placements - East,321000              Social Community Care Supplies & Services - Adult,A,2023,5
474,Community and Housing,Allied Healthcare,2641068926A/19,21-Aug-23,832.43,0,92896,Older People Placements - East,321000              Social Community Care Supplies & Services - Adult,A,2023,5
475,Community and Housing,Allied Healthcare,2641068926A/25,21-Aug-23,653.44,0,92896,Learning Disabilities Placemnt,321000              Social Community Care Supplies & Services - Adult,A,2023,5
476,Community and Housing,Allied Healthcare,2641068926A/49,21-Aug-23,1233.82,0,92896,Older People Placements - East,321000              Social Community Care Supplies & Services - Adult,A,2023,5
477,Community and Housing,Allied Healthcare,2641068926A/7,21-Aug-23,1206.72,0,92896,Older People Placements - East,321000              Social Community Care Supplies & Services - Adult,A,2023,5
478,Community and Housing,Allied Healthcare,2641068926A/53,21-Aug-23,788.73,0,92896,Older People Placements - East,321000              Social Community Care Supplies & Services - Adult,A,2023,5
479,Community and Housing,Allied Healthcare,2641068926A/6,21-Aug-23,988.56,0,92896,Older People Placements - East,321000              Social Community Care Supplies & Services - Adult,A,2023,5
480,Community and Housing,Allied Healthcare,2641068926A/1,21-Aug-23,913.09,0,92896,Phys/Sens Placements - East,321000              Social Community Care Supplies & Services - Adult,A,2023,5
481,Community and Housing,Allied Healthcare,2641068926A/18,21-Aug-23,872.22,0,92896,Older People Placements - East,321000              Social Community Care Supplies & Services - Adult,A,2023,5
482,Community and Housing,Allied Healthcare,2641068926A/33,21-Aug-23,2988.3,0,92896,Older People Placements - East,321000              Social Community Care Supplies & Services - Adult,A,2023,5
483,Community and Housing,Allied Healthcare,2641068926A/21,21-Aug-23,1847.72,0,92896,Learning Disabilities Placemnt,321000              Social Community Care Supplies & Services - Adult,A,2023,5
484,Community and Housing,Allied Healthcare,2641068926A/35,21-Aug-23,840.07,0,92896,Older People Placements - East,321000              Social Community Care Supplies & Services - Adult,A,2023,5
485,Community and Housing,Allied Healthcare,2641068926A/23,21-Aug-23,2838.43,0,92896,Older People Placements - East,321000              Social Community Care Supplies & Services - Adult,A,2023,5
486,Community and Housing,Allied Healthcare,2641068926A/22,21-Aug-23,580.57,0,92896,Learning Disabilities Placemnt,321000              Social Community Care Supplies & Services - Adult,A,2023,5
487,Community and Housing,Allied Healthcare,2641068926A/48,21-Aug-23,3076.58,0,92896,Older People Placements - East,321000              Social Community Care Supplies & Services - Adult,A,2023,5
488,Community and Housing,Allied Healthcare,2641068926A/36,21-Aug-23,786.72,0,92896,Older People Placements - East,321000              Social Community Care Supplies & Services - Adult,A,2023,5
489,Community and Housing,Allied Healthcare,2641068926A/12,21-Aug-23,1531.55,0,92896,Older People Placements - East,321000              Social Community Care Supplies & Services - Adult,A,2023,5
490,Community and Housing,Allied Healthcare,2641068926A/43,21-Aug-23,2827.07,0,92896,Older People Placements - East,321000              Social Community Care Supplies & Services - Adult,A,2023,5
491,Community and Housing,Allied Healthcare,2641068926A/28,21-Aug-23,2586.81,0,92896,Phys/Sens Placements - East,321000              Social Community Care Supplies & Services - Adult,A,2023,5
492,Community and Housing,Allied Healthcare,2641068926A/52,21-Aug-23,1536.58,0,92896,Older People Placements - East,321000              Social Community Care Supplies & Services - Adult,A,2023,5
493,Community and Housing,Allied Healthcare,2641068926A/32,21-Aug-23,571.47,0,92896,Older People Placements - East,321000              Social Community Care Supplies & Services - Adult,A,2023,5
494,Community and Housing,Allied Healthcare,2641068926A/13,21-Aug-23,577.25,0,92896,Older People Placements - East,321000              Social Community Care Supplies & Services - Adult,A,2023,5
495,Community and Housing,Allied Healthcare,2641068926A/38,21-Aug-23,832.55,0,92896,Older People Placements - East,321000              Social Community Care Supplies & Services - Adult,A,2023,5
496,Community and Housing,Allied Healthcare,2641068926A/16,21-Aug-23,804.37,0,92896,Older People Placements - East,321000              Social Community Care Supplies & Services - Adult,A,2023,5
497,Community and Housing,Allied Healthcare,2641068926A/8,21-Aug-23,3362.85,0,92896,Older People Placements - East,321000              Social Community Care Supplies & Services - Adult,A,2023,5
498,Community and Housing,Allied Healthcare,2641068926A/47,21-Aug-23,3141.38,0,92896,Older People Placements - East,321000              Social Community Care Supplies & Services - Adult,A,2023,5
499,Community and Housing,Allied Healthcare,2641068926A/51,21-Aug-23,871.04,0,92896,Older People Placements - East,321000              Social Community Care Supplies & Services - Adult,A,2023,5
500,Community and Housing,Allied Healthcare,2641068926A/42,21-Aug-23,640.68,0,92896,Older People Placements - East,321000              Social Community Care Supplies & Services - Adult,A,2023,5
501,Community and Housing,Allied Healthcare,2641068926A/50,21-Aug-23,3131.22,0,92896,Older People Placements - East,321000              Social Community Care Supplies & Services - Adult,A,2023,5
502,Community and Housing,Allied Healthcare,2641068926A/9,21-Aug-23,1990.24,0,92896,Older People Placements - East,321000              Social Community Care Supplies & Services - Adult,A,2023,5
503,Community and Housing,Allied Healthcare,2641068926A/17,21-Aug-23,513.25,0,92896,Learning Disabilities Placemnt,321000              Social Community Care Supplies & Services - Adult,A,2023,5
504,Community and Housing,Allied Healthcare,2641068926A/5,21-Aug-23,834.22,0,92896,Older People Placements - East,321000              Social Community Care Supplies & Services - Adult,A,2023,5
505,"Children, Schools and Family",BUILDING BLOCKS NURSERY,P1 23 ADJUSTMENT,24-Aug-23,828,0,93437,EARLY YEARS NURSERY GRANTS,170000              Education,A,2023,5
506,Community and Housing,CARE MANAGEMENT GROUP,1000006,03-Aug-23,7712.12,0,93533,Learning Disabilities Placemnt,321017              Nursing & Residential Care Homes,A,2023,5
507,Community and Housing,CARE MANAGEMENT GROUP,1000132,03-Aug-23,7974.36,0,93533,Learning Disabilities Placemnt,321017              Nursing & Residential Care Homes,A,2023,5
508,Community and Housing,CARE MANAGEMENT GROUP,999739,03-Aug-23,4593.88,0,93533,Mental Health Placements,321017              Nursing & Residential Care Homes,A,2023,5
509,Community and Housing,CARE MANAGEMENT GROUP,999816,03-Aug-23,6279.2,0,93533,Learning Disabilities Placemnt,321017              Nursing & Residential Care Homes,A,2023,5
510,Community and Housing,CARE MANAGEMENT GROUP,999928,03-Aug-23,5936.6,0,93533,Learning Disabilities Placemnt,321017              Nursing & Residential Care Homes,A,2023,5
511,Community and Housing,CARE MANAGEMENT GROUP,999973,03-Aug-23,8733.64,0,93533,Phys/Sens Placements - East,321017              Nursing & Residential Care Homes,A,2023,5
512,Community and Housing,CARE MANAGEMENT GROUP,613000676,07-Aug-23,6353.48,0,93533,Learning Disabilities Placemnt,321017              Nursing & Residential Care Homes,A,2023,5
513,Community and Housing,CARE MANAGEMENT GROUP,397000750,07-Aug-23,4961.72,0,93533,Learning Disabilities Placemnt,321017              Nursing & Residential Care Homes,A,2023,5
514,Community and Housing,CARE MANAGEMENT GROUP,255001516,07-Aug-23,8725.64,0,93533,Learning Disabilities Placemnt,321017              Nursing & Residential Care Homes,A,2023,5
515,Community and Housing,CARE MANAGEMENT GROUP,1012062,23-Aug-23,16067.34,0,93533,Learning Disabilities Placemnt,321017              Nursing & Residential Care Homes,A,2023,5
516,Community and Housing,CARE MANAGEMENT GROUP,1014206,30-Aug-23,4593.88,0,93533,Mental Health Placements,321017              Nursing & Residential Care Homes,A,2023,5
517,Community and Housing,CARE MANAGEMENT GROUP,1014277,30-Aug-23,6279.2,0,93533,Learning Disabilities Placemnt,321017              Nursing & Residential Care Homes,A,2023,5
518,Community and Housing,CARE MANAGEMENT GROUP,1014388,30-Aug-23,5936.6,0,93533,Learning Disabilities Placemnt,321017              Nursing & Residential Care Homes,A,2023,5
519,Community and Housing,CARE MANAGEMENT GROUP,1014433,30-Aug-23,8733.64,0,93533,Phys/Sens Placements - East,321017              Nursing & Residential Care Homes,A,2023,5
520,Community and Housing,CARE MANAGEMENT GROUP,1014469,30-Aug-23,7712.12,0,93533,Learning Disabilities Placemnt,321017              Nursing & Residential Care Homes,A,2023,5
521,Community and Housing,CARE MANAGEMENT GROUP,1014603,30-Aug-23,11774.29,0,93533,Learning Disabilities Placemnt,321017              Nursing & Residential Care Homes,A,2023,5
522,Community and Housing,A AND R CARE LTD,1000210,01-Aug-23,514.29,0,94357,Older People Placements - East,321017              Nursing & Residential Care Homes,A,2023,5
523,Community and Housing,A AND R CARE LTD,1000067,03-Aug-23,3400,0,94357,Older People Placements - East,321017              Nursing & Residential Care Homes,A,2023,5
524,Community and Housing,A AND R CARE LTD,1000104,03-Aug-23,4800,0,94357,Older People Placements - East,321017              Nursing & Residential Care Homes,A,2023,5
525,Community and Housing,A AND R CARE LTD,1000159,03-Aug-23,3824.32,0,94357,Phys/Sens Placements - East,321017              Nursing & Residential Care Homes,A,2023,5
526,Community and Housing,A AND R CARE LTD,999771,03-Aug-23,4285.71,0,94357,Older People Placements - East,321017              Nursing & Residential Care Homes,A,2023,5
527,Community and Housing,A AND R CARE LTD,999807,03-Aug-23,3300,0,94357,Older People Placements - East,321017              Nursing & Residential Care Homes,A,2023,5
528,Community and Housing,A AND R CARE LTD,999938,03-Aug-23,3763.24,0,94357,Older People Placements - East,321017              Nursing & Residential Care Homes,A,2023,5
529,Community and Housing,A AND R CARE LTD,1012052,23-Aug-23,7947.95,0,94357,Older People Placements - East,321017              Nursing & Residential Care Homes,A,2023,5
530,Community and Housing,A AND R CARE LTD,1014205,30-Aug-23,4121.16,0,94357,Older People Placements - East,321017              Nursing & Residential Care Homes,A,2023,5
531,Community and Housing,A AND R CARE LTD,1014268,30-Aug-23,3300,0,94357,Older People Placements - East,321017              Nursing & Residential Care Homes,A,2023,5
532,Community and Housing,A AND R CARE LTD,1014397,30-Aug-23,3763.24,0,94357,Older People Placements - East,321017              Nursing & Residential Care Homes,A,2023,5
533,Community and Housing,A AND R CARE LTD,1014531,30-Aug-23,3400,0,94357,Older People Placements - East,321017              Nursing & Residential Care Homes,A,2023,5
534,Community and Housing,A AND R CARE LTD,1014572,30-Aug-23,4800,0,94357,Older People Placements - East,321017              Nursing & Residential Care Homes,A,2023,5
535,Community and Housing,A AND R CARE LTD,1014630,30-Aug-23,3824.32,0,94357,Phys/Sens Placements - East,321017              Nursing & Residential Care Homes,A,2023,5
536,Environment and Regeneration,COMMONSIDE COMMUNITY DEV TRUST,10070,10-Aug-23,4889,0,95839,MOPAC Projects,321000              Social Community Care Supplies & Services - Adult,A,2023,5
537,Environment and Regeneration,COMMONSIDE COMMUNITY DEV TRUST,10071,30-Aug-23,1875,0,95839,MOPAC Projects,321000              Social Community Care Supplies & Services - Adult,A,2023,5
538,Community and Housing,COMMONSIDE COMMUNITY DEV TRUST,10096,30-Aug-23,985,0,95839,PH - Elderly Care Pilot,321000              Social Community Care Supplies & Services - Adult,A,2023,5
539,Community and Housing,COMMONSIDE COMMUNITY DEV TRUST,10098,30-Aug-23,1000,0,95839,PH - Elderly Care Pilot,321000              Social Community Care Supplies & Services - Adult,A,2023,5
540,Community and Housing,Aspens Charities Ltd,999954,03-Aug-23,8909.92,0,96019,Learning Disabilities Placemnt,321017              Nursing & Residential Care Homes,A,2023,5
541,Community and Housing,Aspens Charities Ltd,38834,14-Aug-23,18309.2,0,96019,Learning Disabilities Placemnt,321017              Nursing & Residential Care Homes,A,2023,5
542,Community and Housing,Aspens Charities Ltd,39180,30-Aug-23,18309.2,0,96019,Learning Disabilities Placemnt,321017              Nursing & Residential Care Homes,A,2023,5
543,Community and Housing,Aspens Charities Ltd,1014413,30-Aug-23,8909.92,0,96019,Learning Disabilities Placemnt,321017              Nursing & Residential Care Homes,A,2023,5
544,Community and Housing,REDACTED PERSONAL DATA,1006053,15-Aug-23,5192,0,96859,Learning Disabilities Placemnt,DIRECT PAYMENTS,R,2023,5
545,Community and Housing,THE ABBEYFIELD SOCIETY,1000085,03-Aug-23,4000,0,97539,Older People Placements - East,321000              Social Community Care Supplies & Services - Adult,A,2023,5
546,Community and Housing,THE ABBEYFIELD SOCIETY,1014550,30-Aug-23,4000,0,97539,Older People Placements - East,321000              Social Community Care Supplies & Services - Adult,A,2023,5
547,Community and Housing,EL-SHADDAI,1010729,21-Aug-23,1544,0,97709,MH Housing Support Placements,321000              Social Community Care Supplies & Services - Adult,A,2023,5
548,Community and Housing,EL-SHADDAI,1010751,21-Aug-23,1145.66,0,97709,Phys/Sens Placements - East,321000              Social Community Care Supplies & Services - Adult,A,2023,5
549,Community and Housing,EL-SHADDAI,1010755,21-Aug-23,1929.72,0,97709,Learning Disabilities Placemnt,321000              Social Community Care Supplies & Services - Adult,A,2023,5
550,Community and Housing,EL-SHADDAI,1010763,21-Aug-23,1544,0,97709,Learning Disabilities Placemnt,321000              Social Community Care Supplies & Services - Adult,A,2023,5
551,Community and Housing,Rosenmanor Ltd,999948,03-Aug-23,2924.24,0,97808,Mental Health Placements,321017              Nursing & Residential Care Homes,A,2023,5
552,Community and Housing,Rosenmanor Ltd,1014407,30-Aug-23,2924.24,0,97808,Mental Health Placements,321017              Nursing & Residential Care Homes,A,2023,5
553,Community and Housing,MERTON COMMUNITY TRANSPORT,17265,11-Aug-23,1209.6,201.6,98164,Learning Disabilities Placemnt,360000              Passenger Transport,A,2023,5
554,Community and Housing,MERTON COMMUNITY TRANSPORT,17252,11-Aug-23,1592.4,265.4,98164,Learning Disabilities Placemnt,360000              Passenger Transport,A,2023,5
555,Environment and Regeneration,MERTON COMMUNITY TRANSPORT,17270,16-Aug-23,4541.25,0,98164,Passenger Transport,360000              Passenger Transport,A,2023,5
556,Unassigned,BEECHOLME PRIMARY ACADEMY,SCHOOLS 2324/5 A,08-Aug-23,13624.91,0,98168,Schools,170000              Education,A,2023,5
557,"Children, Schools and Family",Evolve Housing + Support,3365,15-Aug-23,1282.92,0,98536,UASC Care Leavers Over 18,321000              Social Community Care Supplies & Services - Adult,A,2023,5
558,"Children, Schools and Family",Evolve Housing + Support,3369,15-Aug-23,1282.92,0,98536,UASC Care Leavers Over 18,321000              Social Community Care Supplies & Services - Adult,A,2023,5
559,"Children, Schools and Family",Evolve Housing + Support,3367,15-Aug-23,1054,0,98536,UASC LAC Under 18,321000              Social Community Care Supplies & Services - Adult,A,2023,5
560,Unassigned,WEST WIMBLEDON PRIMARY SCHOOL,SCHOOLS 2324/5 A,08-Aug-23,227851.13,0,101674,Schools,170000              Education,A,2023,5
561,Community and Housing,HILLDALE AND NORTHVIEW,999906,03-Aug-23,2072.52,0,103592,Older People Placements - East,321000              Social Community Care Supplies & Services - Adult,A,2023,5
562,Community and Housing,HILLDALE AND NORTHVIEW,1014367,30-Aug-23,2072.52,0,103592,Older People Placements - East,321000              Social Community Care Supplies & Services - Adult,A,2023,5
563,Community and Housing,BUPA CARE HOMES,1000005,03-Aug-23,3289.24,0,105027,Older People Placements - East,321017              Nursing & Residential Care Homes,A,2023,5
564,Community and Housing,BUPA CARE HOMES,1000039,03-Aug-23,3289.24,0,105027,Older People Placements - East,321017              Nursing & Residential Care Homes,A,2023,5
565,Community and Housing,BUPA CARE HOMES,1000048,03-Aug-23,4363.16,0,105027,Phys/Sens Placements - East,321017              Nursing & Residential Care Homes,A,2023,5
566,Community and Housing,BUPA CARE HOMES,1000056,03-Aug-23,3289.24,0,105027,Older People Placements - East,321017              Nursing & Residential Care Homes,A,2023,5
567,Community and Housing,BUPA CARE HOMES,1000062,03-Aug-23,3569.4,0,105027,Older People Placements - East,321017              Nursing & Residential Care Homes,A,2023,5
568,Community and Housing,BUPA CARE HOMES,1000077,03-Aug-23,3289.24,0,105027,Mental Health Placements,321017              Nursing & Residential Care Homes,A,2023,5
569,Community and Housing,BUPA CARE HOMES,1000093,03-Aug-23,2703.53,0,105027,Older People Placements - East,321017              Nursing & Residential Care Homes,A,2023,5
570,Community and Housing,BUPA CARE HOMES,1000095,03-Aug-23,3154.12,0,105027,Older People Placements - East,321017              Nursing & Residential Care Homes,A,2023,5
571,Community and Housing,BUPA CARE HOMES,1000115,03-Aug-23,3289.24,0,105027,Older People Placements - East,321017              Nursing & Residential Care Homes,A,2023,5
572,Community and Housing,BUPA CARE HOMES,1000121,03-Aug-23,3289.24,0,105027,Older People Placements - East,321017              Nursing & Residential Care Homes,A,2023,5
573,Community and Housing,BUPA CARE HOMES,1000125,03-Aug-23,3289.24,0,105027,Older People Placements - East,321017              Nursing & Residential Care Homes,A,2023,5
574,Community and Housing,BUPA CARE HOMES,1000144,03-Aug-23,3289.24,0,105027,Older People Placements - East,321017              Nursing & Residential Care Homes,A,2023,5
575,Community and Housing,BUPA CARE HOMES,1000158,03-Aug-23,3289.24,0,105027,Older People Placements - East,321017              Nursing & Residential Care Homes,A,2023,5
576,Community and Housing,BUPA CARE HOMES,1000180,03-Aug-23,3154.12,0,105027,Older People Placements - East,321017              Nursing & Residential Care Homes,A,2023,5
577,Community and Housing,BUPA CARE HOMES,999766,03-Aug-23,3154.12,0,105027,Older People Placements - East,321017              Nursing & Residential Care Homes,A,2023,5
578,Community and Housing,BUPA CARE HOMES,999778,03-Aug-23,3289.24,0,105027,Older People Placements - East,321017              Nursing & Residential Care Homes,A,2023,5
579,Community and Housing,BUPA CARE HOMES,999792,03-Aug-23,3289.24,0,105027,Older People Placements - East,321017              Nursing & Residential Care Homes,A,2023,5
580,Community and Housing,BUPA CARE HOMES,999806,03-Aug-23,3154.12,0,105027,Older People Placements - East,321017              Nursing & Residential Care Homes,A,2023,5
581,Community and Housing,BUPA CARE HOMES,999861,03-Aug-23,3289.24,0,105027,Older People Placements - East,321017              Nursing & Residential Care Homes,A,2023,5
582,Community and Housing,BUPA CARE HOMES,999874,03-Aug-23,3154.12,0,105027,Older People Placements - East,321017              Nursing & Residential Care Homes,A,2023,5
583,Community and Housing,BUPA CARE HOMES,999909,03-Aug-23,3289.24,0,105027,Older People Placements - East,321017              Nursing & Residential Care Homes,A,2023,5
584,Community and Housing,BUPA CARE HOMES,999969,03-Aug-23,3289.24,0,105027,Older People Placements - East,321017              Nursing & Residential Care Homes,A,2023,5
585,Community and Housing,BUPA CARE HOMES,999995,03-Aug-23,3289.24,0,105027,Older People Placements - East,321017              Nursing & Residential Care Homes,A,2023,5
586,Community and Housing,BUPA CARE HOMES,999998,03-Aug-23,3154.12,0,105027,Older People Placements - East,321017              Nursing & Residential Care Homes,A,2023,5
587,Community and Housing,BUPA CARE HOMES,1004070,09-Aug-23,1577.06,0,105027,Older People Placements - East,321017              Nursing & Residential Care Homes,A,2023,5
588,Community and Housing,BUPA CARE HOMES,1012065,23-Aug-23,1915,0,105027,Phys/Sens Placements - East,321017              Nursing & Residential Care Homes,A,2023,5
589,Community and Housing,BUPA CARE HOMES,1014227,30-Aug-23,3154.12,0,105027,Older People Placements - East,321017              Nursing & Residential Care Homes,A,2023,5
590,Community and Housing,BUPA CARE HOMES,1014238,30-Aug-23,3289.24,0,105027,Older People Placements - East,321017              Nursing & Residential Care Homes,A,2023,5
591,Community and Housing,BUPA CARE HOMES,1014252,30-Aug-23,3289.24,0,105027,Older People Placements - East,321017              Nursing & Residential Care Homes,A,2023,5
592,Community and Housing,BUPA CARE HOMES,1014266,30-Aug-23,3154.12,0,105027,Older People Placements - East,321017              Nursing & Residential Care Homes,A,2023,5
593,Community and Housing,BUPA CARE HOMES,1014324,30-Aug-23,3289.24,0,105027,Older People Placements - East,321017              Nursing & Residential Care Homes,A,2023,5
594,Community and Housing,BUPA CARE HOMES,1014335,30-Aug-23,3154.12,0,105027,Older People Placements - East,321017              Nursing & Residential Care Homes,A,2023,5
595,Community and Housing,BUPA CARE HOMES,1014370,30-Aug-23,3289.24,0,105027,Older People Placements - East,321017              Nursing & Residential Care Homes,A,2023,5
596,Community and Housing,BUPA CARE HOMES,1014382,30-Aug-23,1013.82,0,105027,Older People Placements - East,321017              Nursing & Residential Care Homes,A,2023,5
597,Community and Housing,BUPA CARE HOMES,1014429,30-Aug-23,3289.24,0,105027,Older People Placements - East,321017              Nursing & Residential Care Homes,A,2023,5
598,Community and Housing,BUPA CARE HOMES,1014458,30-Aug-23,3289.24,0,105027,Older People Placements - East,321017              Nursing & Residential Care Homes,A,2023,5
599,Community and Housing,BUPA CARE HOMES,1014461,30-Aug-23,3154.12,0,105027,Older People Placements - East,321017              Nursing & Residential Care Homes,A,2023,5
600,Community and Housing,BUPA CARE HOMES,1014468,30-Aug-23,3289.24,0,105027,Older People Placements - East,321017              Nursing & Residential Care Homes,A,2023,5
601,Community and Housing,BUPA CARE HOMES,1014502,30-Aug-23,3289.24,0,105027,Older People Placements - East,321017              Nursing & Residential Care Homes,A,2023,5
602,Community and Housing,BUPA CARE HOMES,1014511,30-Aug-23,4363.16,0,105027,Phys/Sens Placements - East,321017              Nursing & Residential Care Homes,A,2023,5
603,Community and Housing,BUPA CARE HOMES,1014519,30-Aug-23,3289.24,0,105027,Older People Placements - East,321017              Nursing & Residential Care Homes,A,2023,5
604,Community and Housing,BUPA CARE HOMES,1014526,30-Aug-23,3569.4,0,105027,Older People Placements - East,321017              Nursing & Residential Care Homes,A,2023,5
605,Community and Housing,BUPA CARE HOMES,1014542,30-Aug-23,3289.24,0,105027,Mental Health Placements,321017              Nursing & Residential Care Homes,A,2023,5
606,Community and Housing,BUPA CARE HOMES,1014560,30-Aug-23,3154.12,0,105027,Older People Placements - East,321017              Nursing & Residential Care Homes,A,2023,5
607,Community and Housing,BUPA CARE HOMES,1014562,30-Aug-23,3154.12,0,105027,Older People Placements - East,321017              Nursing & Residential Care Homes,A,2023,5
608,Community and Housing,BUPA CARE HOMES,1014564,30-Aug-23,3154.12,0,105027,Phys/Sens Placements - East,321017              Nursing & Residential Care Homes,A,2023,5
609,Community and Housing,BUPA CARE HOMES,1014584,30-Aug-23,3289.24,0,105027,Older People Placements - East,321017              Nursing & Residential Care Homes,A,2023,5
610,Community and Housing,BUPA CARE HOMES,1014591,30-Aug-23,3289.24,0,105027,Older People Placements - East,321017              Nursing & Residential Care Homes,A,2023,5
611,Community and Housing,BUPA CARE HOMES,1014595,30-Aug-23,3289.24,0,105027,Older People Placements - East,321017              Nursing & Residential Care Homes,A,2023,5
612,Community and Housing,BUPA CARE HOMES,1014615,30-Aug-23,3289.24,0,105027,Older People Placements - East,321017              Nursing & Residential Care Homes,A,2023,5
613,Community and Housing,BUPA CARE HOMES,1014629,30-Aug-23,3289.24,0,105027,Older People Placements - East,321017              Nursing & Residential Care Homes,A,2023,5
614,Community and Housing,BUPA CARE HOMES,1014649,30-Aug-23,3154.12,0,105027,Older People Placements - East,321017              Nursing & Residential Care Homes,A,2023,5
615,Environment and Regeneration,APSE,2324/1129,15-Aug-23,1582.8,263.8,105284,Energy Projects,260000              Human Resources,A,2023,5
616,Community and Housing,REDACTED PERSONAL DATA,1006377,15-Aug-23,3286.2,0,105300,Learning Disabilities Placemnt,DIRECT PAYMENTS,R,2023,5
617,"Children, Schools and Family",NEWSCHOOLS (MERTON) LIMITED,NSM01062,15-Aug-23,2731.51,455.25,106428, PFI Unitary Charges,200000              Financial Services,A,2023,5
618,"Children, Schools and Family",NEWSCHOOLS (MERTON) LIMITED,NSM01064,16-Aug-23,8226,1371,106428, PFI Unitary Charges,200000              Financial Services,A,2023,5
619,"Children, Schools and Family",NEWSCHOOLS (MERTON) LIMITED,NSM1065PR,16-Aug-23,3000,0,106428, PFI Unitary Charges,200000              Financial Services,A,2023,5
620,Capital,ASCENDIT LIFTS LTD,39985,04-Sep-23,7514,0,107196,Disabled Facilities Grant,"390000              Works - Construction, Repair & Maintenance",A,2023,5
621,Community and Housing,REDACTED PERSONAL DATA,1010712,21-Aug-23,1157.98,0,110403,MH Housing Support Placements,321000              Social Community Care Supplies & Services - Adult,R,2023,5
622,Community and Housing,REDACTED PERSONAL DATA,1010716,21-Aug-23,1543.96,0,110403,Learning Disabilities Placemnt,321000              Social Community Care Supplies & Services - Adult,R,2023,5
623,Community and Housing,REDACTED PERSONAL DATA,1010718,21-Aug-23,1145.66,0,110403,MH Housing Support Placements,321000              Social Community Care Supplies & Services - Adult,R,2023,5
624,Community and Housing,REDACTED PERSONAL DATA,1010726,21-Aug-23,6278.36,0,110403,Mental Health Placements,321000              Social Community Care Supplies & Services - Adult,R,2023,5
625,Community and Housing,REDACTED PERSONAL DATA,1010732,21-Aug-23,1145.66,0,110403,MH Housing Support Placements,321000              Social Community Care Supplies & Services - Adult,R,2023,5
626,Community and Housing,REDACTED PERSONAL DATA,1010735,21-Aug-23,1067.52,0,110403,Mental Health Placements,321000              Social Community Care Supplies & Services - Adult,R,2023,5
627,Community and Housing,REDACTED PERSONAL DATA,1010739,21-Aug-23,1544,0,110403,Phys/Sens Placements - East,321000              Social Community Care Supplies & Services - Adult,R,2023,5
628,Community and Housing,REDACTED PERSONAL DATA,1010743,21-Aug-23,1951.14,0,110403,Mental Health Placements,321000              Social Community Care Supplies & Services - Adult,R,2023,5
629,Community and Housing,REDACTED PERSONAL DATA,1010747,21-Aug-23,1145.66,0,110403,MH Housing Support Placements,321000              Social Community Care Supplies & Services - Adult,R,2023,5
630,Community and Housing,REDACTED PERSONAL DATA,1010749,21-Aug-23,1217.88,0,110403,Mental Health Placements,321000              Social Community Care Supplies & Services - Adult,R,2023,5
631,Community and Housing,REDACTED PERSONAL DATA,1010759,21-Aug-23,1145.66,0,110403,MH Housing Support Placements,321000              Social Community Care Supplies & Services - Adult,R,2023,5
632,Community and Housing,REDACTED PERSONAL DATA,1010762,21-Aug-23,763.8,0,110403,MH Housing Support Placements,321000              Social Community Care Supplies & Services - Adult,R,2023,5
633,Community and Housing,REDACTED PERSONAL DATA,1010773,21-Aug-23,4658.72,0,110403,Mental Health Placements,321000              Social Community Care Supplies & Services - Adult,R,2023,5
634,Community and Housing,REDACTED PERSONAL DATA,1010761,21-Aug-23,4658.72,0,110406,Learning Disabilities Placemnt,321000              Social Community Care Supplies & Services - Adult,R,2023,5
635,"Children, Schools and Family",REDACTED PERSONAL DATA,1002992,04-Aug-23,514.26,0,111277,Placements Under 18,321100              Social Community Care Supplies & Services - Children,R,2023,5
636,"Children, Schools and Family",REDACTED PERSONAL DATA,1005763,11-Aug-23,514.26,0,111277,Placements Under 18,321100              Social Community Care Supplies & Services - Children,R,2023,5
637,"Children, Schools and Family",REDACTED PERSONAL DATA,1010851,21-Aug-23,514.26,0,111277,Placements Under 18,321100              Social Community Care Supplies & Services - Children,R,2023,5
638,"Children, Schools and Family",REDACTED PERSONAL DATA,1013050,24-Aug-23,514.26,0,111277,Placements Under 18,321100              Social Community Care Supplies & Services - Children,R,2023,5
639,Corporate Services,CHARTERED INST.OF ENVIR.HEALTH,373186,10-Aug-23,649,0,112693,Learning and Development,200000              Financial Services,A,2023,5
640,Community and Housing,CHARTERED INST.OF ENVIR.HEALTH,PS022151,14-Aug-23,960,160,112693,Hsg. Env. Health (Enforcement),200000              Financial Services,A,2023,5
641,Community and Housing,CHARTERED INST.OF ENVIR.HEALTH,PS022335,04-Sep-23,1140,190,112693,Housing Needs & Enablg-central,200000              Financial Services,A,2023,5
642,Community and Housing,MEADBANK NURSING CENTRE,1000155,03-Aug-23,2995.28,0,113139,Older People Placements - East,321017              Nursing & Residential Care Homes,A,2023,5
643,Community and Housing,MEADBANK NURSING CENTRE,1014627,30-Aug-23,2995.28,0,113139,Older People Placements - East,321017              Nursing & Residential Care Homes,A,2023,5
644,Community and Housing,REDACTED PERSONAL DATA,1006176,15-Aug-23,16223.32,0,113331,Learning Disabilities Placemnt,DIRECT PAYMENTS,R,2023,5
645,Environment and Regeneration,JIGSAW4U,3152,22-Aug-23,2100,0,113501,Energy Projects,321100              Social Community Care Supplies & Services - Children,A,2023,5
646,Community and Housing,MIHOMECARE LIMITED,LIVE1W-270136,23-Aug-23,1368.5,0,114370,Older People Placements - East,321000              Social Community Care Supplies & Services - Adult,A,2023,5
647,Community and Housing,MIHOMECARE LIMITED,LIVE1W-270170,23-Aug-23,1368.5,0,114370,Older People Placements - East,321000              Social Community Care Supplies & Services - Adult,A,2023,5
648,Community and Housing,REDACTED PERSONAL DATA,1010714,21-Aug-23,6278.36,0,114970,MH Housing Support Placements,321000              Social Community Care Supplies & Services - Adult,R,2023,5
649,Community and Housing,REDACTED PERSONAL DATA,1010727,21-Aug-23,1145.66,0,114970,MH Housing Support Placements,321000              Social Community Care Supplies & Services - Adult,R,2023,5
650,Community and Housing,REDACTED PERSONAL DATA,1010753,21-Aug-23,1544,0,114970,MH Housing Support Placements,321000              Social Community Care Supplies & Services - Adult,R,2023,5
651,Community and Housing,REDACTED PERSONAL DATA,1010772,21-Aug-23,4430.14,0,114970,MH Housing Support Placements,321000              Social Community Care Supplies & Services - Adult,R,2023,5
652,Community and Housing,ASTRA HOMES,MJ/36/24,31-Aug-23,1816.76,0,114991,Mental Health Placements,321000              Social Community Care Supplies & Services - Adult,A,2023,5
653,Community and Housing,ASTRA HOMES,MJ/36/26,31-Aug-23,1816.76,0,114991,Mental Health Placements,321000              Social Community Care Supplies & Services - Adult,A,2023,5
654,Community and Housing,GRANGE COTTAGE LIMITED,1000080,03-Aug-23,2680,0,117931,Older People Placements - East,321017              Nursing & Residential Care Homes,A,2023,5
655,Community and Housing,GRANGE COTTAGE LIMITED,999815,03-Aug-23,2680,0,117931,Older People Placements - East,321017              Nursing & Residential Care Homes,A,2023,5
656,Community and Housing,GRANGE COTTAGE LIMITED,999877,03-Aug-23,3200,0,117931,Older People Placements - East,321017              Nursing & Residential Care Homes,A,2023,5
657,Community and Housing,GRANGE COTTAGE LIMITED,999990,03-Aug-23,3600,0,117931,Older People Placements - East,321017              Nursing & Residential Care Homes,A,2023,5
658,Community and Housing,GRANGE COTTAGE LIMITED,1014276,30-Aug-23,2680,0,117931,Older People Placements - East,321017              Nursing & Residential Care Homes,A,2023,5
659,Community and Housing,GRANGE COTTAGE LIMITED,1014337,30-Aug-23,3200,0,117931,Older People Placements - East,321017              Nursing & Residential Care Homes,A,2023,5
660,Community and Housing,GRANGE COTTAGE LIMITED,1014452,30-Aug-23,3600,0,117931,Older People Placements - East,321017              Nursing & Residential Care Homes,A,2023,5
661,Community and Housing,GRANGE COTTAGE LIMITED,1014545,30-Aug-23,2680,0,117931,Older People Placements - East,321017              Nursing & Residential Care Homes,A,2023,5
662,Community and Housing,REDACTED PERSONAL DATA,1010721,21-Aug-23,1157.98,0,117970,MH Housing Support Placements,321000              Social Community Care Supplies & Services - Adult,R,2023,5
663,Community and Housing,REDACTED PERSONAL DATA,1010734,21-Aug-23,1544,0,117970,Mental Health Placements,321000              Social Community Care Supplies & Services - Adult,R,2023,5
664,Community and Housing,REDACTED PERSONAL DATA,1010750,21-Aug-23,1569.55,0,117970,Mental Health Placements,321000              Social Community Care Supplies & Services - Adult,R,2023,5
665,Community and Housing,L'ARCHE,1000108,03-Aug-23,3050.24,0,118483,Learning Disabilities Placemnt,321017              Nursing & Residential Care Homes,A,2023,5
666,Community and Housing,L'ARCHE,1014576,30-Aug-23,3050.24,0,118483,Learning Disabilities Placemnt,321017              Nursing & Residential Care Homes,A,2023,5
667,Community and Housing,Alexander House c/o Keychange Charity,1000118,03-Aug-23,4000,0,119109,Older People Placements - East,321017              Nursing & Residential Care Homes,A,2023,5
668,Community and Housing,Alexander House c/o Keychange Charity,1000169,03-Aug-23,3840,0,119109,Older People Placements - East,321017              Nursing & Residential Care Homes,A,2023,5
669,Community and Housing,Alexander House c/o Keychange Charity,999833,03-Aug-23,3100,0,119109,Older People Placements - East,321017              Nursing & Residential Care Homes,A,2023,5
670,Community and Housing,Alexander House c/o Keychange Charity,999892,03-Aug-23,6600,0,119109,Older People Placements - East,321017              Nursing & Residential Care Homes,A,2023,5
671,Community and Housing,Alexander House c/o Keychange Charity,999910,03-Aug-23,3220.32,0,119109,Older People Placements - East,321017              Nursing & Residential Care Homes,A,2023,5
672,Community and Housing,Alexander House c/o Keychange Charity,1012043,25-Aug-23,1485.71,0,119109,Older People Placements - East,321017              Nursing & Residential Care Homes,A,2023,5
673,Community and Housing,Alexander House c/o Keychange Charity,1014296,30-Aug-23,3100,0,119109,Older People Placements - East,321017              Nursing & Residential Care Homes,A,2023,5
674,Community and Housing,Alexander House c/o Keychange Charity,1014353,30-Aug-23,6600,0,119109,Older People Placements - East,321017              Nursing & Residential Care Homes,A,2023,5
675,Community and Housing,Alexander House c/o Keychange Charity,1014371,30-Aug-23,3220.32,0,119109,Older People Placements - East,321017              Nursing & Residential Care Homes,A,2023,5
676,Community and Housing,Alexander House c/o Keychange Charity,1014394,30-Aug-23,5400,0,119109,Older People Placements - East,321017              Nursing & Residential Care Homes,A,2023,5
677,Community and Housing,Alexander House c/o Keychange Charity,1014587,30-Aug-23,4000,0,119109,Older People Placements - East,321017              Nursing & Residential Care Homes,A,2023,5
678,Community and Housing,Alexander House c/o Keychange Charity,1014639,30-Aug-23,3840,0,119109,Older People Placements - East,321017              Nursing & Residential Care Homes,A,2023,5
679,Environment and Regeneration,Flowbird Smart City UK Ltd,UK164145,24-Aug-23,590.4,98.4,119359,On Street Parking,350000              Street & Traffic Management,A,2023,5
680,Environment and Regeneration,KINGDOM SECURITY LTD,SER0004612INV,22-Aug-23,12737.03,2122.79,123458,Vestry Hall,260000              Human Resources,A,2023,5
681,Community and Housing,REDACTED PERSONAL DATA,1006116,15-Aug-23,1662.44,0,124097,Older People Placements - East,DIRECT PAYMENTS,R,2023,5
682,Community and Housing,UNITED RESPONSE,1000058,03-Aug-23,7605.02,1267.5,125227,Learning Disabilities Placemnt,321000              Social Community Care Supplies & Services - Adult,A,2023,5
683,Community and Housing,UNITED RESPONSE,999786,03-Aug-23,7605.02,1267.5,125227,Learning Disabilities Placemnt,321000              Social Community Care Supplies & Services - Adult,A,2023,5
684,Community and Housing,UNITED RESPONSE,999842,03-Aug-23,7605.02,1267.5,125227,Learning Disabilities Placemnt,321000              Social Community Care Supplies & Services - Adult,A,2023,5
685,Community and Housing,UNITED RESPONSE,999899,03-Aug-23,7605.02,1267.5,125227,Learning Disabilities Placemnt,321000              Social Community Care Supplies & Services - Adult,A,2023,5
686,Community and Housing,UNITED RESPONSE,999943,03-Aug-23,7605.02,1267.5,125227,Learning Disabilities Placemnt,321000              Social Community Care Supplies & Services - Adult,A,2023,5
687,Community and Housing,UNITED RESPONSE,1014245,30-Aug-23,7605.02,1267.5,125227,Learning Disabilities Placemnt,321000              Social Community Care Supplies & Services - Adult,A,2023,5
688,Community and Housing,UNITED RESPONSE,1014306,30-Aug-23,7605.02,1267.5,125227,Learning Disabilities Placemnt,321000              Social Community Care Supplies & Services - Adult,A,2023,5
689,Community and Housing,UNITED RESPONSE,1014350,30-Aug-23,15124.67,2520.78,125227,Learning Disabilities Placemnt,321000              Social Community Care Supplies & Services - Adult,A,2023,5
690,Community and Housing,UNITED RESPONSE,1014360,30-Aug-23,7605.02,1267.5,125227,Learning Disabilities Placemnt,321000              Social Community Care Supplies & Services - Adult,A,2023,5
691,Community and Housing,UNITED RESPONSE,1014402,30-Aug-23,7605.02,1267.5,125227,Learning Disabilities Placemnt,321000              Social Community Care Supplies & Services - Adult,A,2023,5
692,Community and Housing,UNITED RESPONSE,1014521,30-Aug-23,7605.02,1267.5,125227,Learning Disabilities Placemnt,321000              Social Community Care Supplies & Services - Adult,A,2023,5
693,Community and Housing,REDACTED PERSONAL DATA,1009552,16-Aug-23,1226.52,0,125642,Phys/Sens Placements - East,DIRECT PAYMENTS,R,2023,5
694,Community and Housing,REDACTED PERSONAL DATA,1006282,15-Aug-23,1039.36,0,126189,Older People Placements - East,DIRECT PAYMENTS,R,2023,5
695,Community and Housing,REDACTED PERSONAL DATA,1009536,16-Aug-23,821.12,0,127266,Phys/Sens Placements - East,DIRECT PAYMENTS,R,2023,5
696,Environment and Regeneration,TRL LIMITED,11618436,04-Aug-23,630.28,105.05,128700,Environmental Health-Pollution,180000              Environmental Services,A,2023,5
697,Environment and Regeneration,TRL LIMITED,11618437,04-Aug-23,1285.2,214.2,128700,LBR - Pollution,180000              Environmental Services,A,2023,5
698,Environment and Regeneration,TRL LIMITED,11618438,04-Aug-23,4345.04,724.17,128700,Wandsworth Air Quality,180000              Environmental Services,A,2023,5
699,Environment and Regeneration,TRL LIMITED,11618575,31-Aug-23,630.28,105.05,128700,Environmental Health-Pollution,180000              Environmental Services,A,2023,5
700,Environment and Regeneration,TRL LIMITED,11618576,31-Aug-23,1285.2,214.2,128700,LBR - Pollution,180000              Environmental Services,A,2023,5
701,Community and Housing,BUPA CARE HOMES,999785,03-Aug-23,6096.36,0,130491,Phys/Sens Placements - East,321017              Nursing & Residential Care Homes,A,2023,5
702,Community and Housing,BUPA CARE HOMES,999901,03-Aug-23,6050.76,0,130491,Phys/Sens Placements - East,321017              Nursing & Residential Care Homes,A,2023,5
703,Community and Housing,BUPA CARE HOMES,1014244,30-Aug-23,6096.36,0,130491,Phys/Sens Placements - East,321017              Nursing & Residential Care Homes,A,2023,5
704,Community and Housing,BUPA CARE HOMES,1014362,30-Aug-23,6050.76,0,130491,Phys/Sens Placements - East,321017              Nursing & Residential Care Homes,A,2023,5
705,Corporate Services,DOMINO 4 LIMITED,D.44297,11-Aug-23,591,98.5,132991,Cost of Living Fund,190000              Facilities & Management Services                                                          Confirmed,A,2023,5
706,Corporate Services,DOMINO 4 LIMITED,D.44296,22-Aug-23,5940,990,132991,Marketing & Communication,190000              Facilities & Management Services                                                          Confirmed,A,2023,5
707,Unassigned,Evans Cycles Limited,HO-PSI4488596,23-Aug-23,698.99,116.5,133082,Corporate Accountancy,260000              Human Resources,A,2023,5
708,Unassigned,Evans Cycles Limited,HO-PSI4488598,23-Aug-23,879,146.5,133082,Corporate Accountancy,260000              Human Resources,A,2023,5
709,Community and Housing,VOYAGE CARE LTD,1000055,03-Aug-23,7799.4,0,133700,Learning Disabilities Placemnt,321017              Nursing & Residential Care Homes,A,2023,5
710,Community and Housing,VOYAGE CARE LTD,999865,03-Aug-23,6460.92,0,133700,Learning Disabilities Placemnt,321017              Nursing & Residential Care Homes,A,2023,5
711,Community and Housing,VOYAGE CARE LTD,999978,03-Aug-23,7721.6,0,133700,Learning Disabilities Placemnt,321017              Nursing & Residential Care Homes,A,2023,5
712,Community and Housing,VOYAGE CARE LTD,1014327,30-Aug-23,6460.92,0,133700,Learning Disabilities Placemnt,321017              Nursing & Residential Care Homes,A,2023,5
713,Community and Housing,VOYAGE CARE LTD,1014438,30-Aug-23,7721.6,0,133700,Learning Disabilities Placemnt,321017              Nursing & Residential Care Homes,A,2023,5
714,Community and Housing,VOYAGE CARE LTD,1014518,30-Aug-23,7799.4,0,133700,Learning Disabilities Placemnt,321017              Nursing & Residential Care Homes,A,2023,5
715,Community and Housing,HOMECARE SERVICES LTD,29168,23-Aug-23,5474,0,134594,Phys/Sens Placements - East,321100              Social Community Care Supplies & Services - Children,A,2023,5
716,Community and Housing,Sunrise Rehabilitation Centre,1000096,03-Aug-23,5043.72,0,135093,Learning Disabilities Placemnt,321017              Nursing & Residential Care Homes,A,2023,5
717,Community and Housing,Sunrise Rehabilitation Centre,1000098,03-Aug-23,5174.6,0,135093,Learning Disabilities Placemnt,321017              Nursing & Residential Care Homes,A,2023,5
718,Community and Housing,Sunrise Rehabilitation Centre,1000114,03-Aug-23,5213.88,0,135093,Learning Disabilities Placemnt,321017              Nursing & Residential Care Homes,A,2023,5
719,Community and Housing,Sunrise Rehabilitation Centre,1000167,03-Aug-23,6102,0,135093,Learning Disabilities Placemnt,321017              Nursing & Residential Care Homes,A,2023,5
720,Community and Housing,Sunrise Rehabilitation Centre,1000185,03-Aug-23,4363.08,0,135093,Learning Disabilities Placemnt,321017              Nursing & Residential Care Homes,A,2023,5
721,Community and Housing,Sunrise Rehabilitation Centre,999770,03-Aug-23,5213.88,0,135093,Learning Disabilities Placemnt,321017              Nursing & Residential Care Homes,A,2023,5
722,Community and Housing,Sunrise Rehabilitation Centre,999803,03-Aug-23,5213.88,0,135093,Learning Disabilities Placemnt,321017              Nursing & Residential Care Homes,A,2023,5
723,Community and Housing,Sunrise Rehabilitation Centre,999974,03-Aug-23,5161.52,0,135093,Learning Disabilities Placemnt,321017              Nursing & Residential Care Homes,A,2023,5
724,Community and Housing,Sunrise Rehabilitation Centre,1014231,30-Aug-23,5213.88,0,135093,Learning Disabilities Placemnt,321017              Nursing & Residential Care Homes,A,2023,5
725,Community and Housing,Sunrise Rehabilitation Centre,1014264,30-Aug-23,5213.88,0,135093,Learning Disabilities Placemnt,321017              Nursing & Residential Care Homes,A,2023,5
726,Community and Housing,Sunrise Rehabilitation Centre,1014434,30-Aug-23,5161.52,0,135093,Learning Disabilities Placemnt,321017              Nursing & Residential Care Homes,A,2023,5
727,Community and Housing,Sunrise Rehabilitation Centre,1014563,30-Aug-23,5043.72,0,135093,Learning Disabilities Placemnt,321017              Nursing & Residential Care Homes,A,2023,5
728,Community and Housing,Sunrise Rehabilitation Centre,1014565,30-Aug-23,5174.6,0,135093,Learning Disabilities Placemnt,321017              Nursing & Residential Care Homes,A,2023,5
729,Community and Housing,Sunrise Rehabilitation Centre,1014583,30-Aug-23,5213.88,0,135093,Learning Disabilities Placemnt,321017              Nursing & Residential Care Homes,A,2023,5
730,Community and Housing,Sunrise Rehabilitation Centre,1014637,30-Aug-23,6102,0,135093,Learning Disabilities Placemnt,321017              Nursing & Residential Care Homes,A,2023,5
731,Community and Housing,Sunrise Rehabilitation Centre,1014654,30-Aug-23,4363.08,0,135093,Learning Disabilities Placemnt,321017              Nursing & Residential Care Homes,A,2023,5
732,Corporate Services,Lbox Communications (Beta Dist.South),337517,14-Aug-23,1589.11,264.85,135590,Printing,190000              Facilities & Management Services,A,2023,5
733,Community and Housing,REDACTED PERSONAL DATA,1009602,16-Aug-23,1612.64,0,135784,Phys/Sens Placements - East,DIRECT PAYMENTS,R,2023,5
734,Community and Housing,VITALISE,1000019,03-Aug-23,2201,0,135823,Older People Placements - East,321017              Nursing & Residential Care Homes,A,2023,5
735,Unassigned,ZURICH INSURANCE GROUP,01E223/AUG2023,18-Aug-23,50000,0,137315,Corporate Services,200000              Financial Services,A,2023,5
736,Unassigned,LB Wandsworth Pension Fund Account,CETV005,14-Aug-23,1633.99,0,137418,London Borough of Merton,PENSIONS,A,2023,5
737,Community and Housing,REDACTED PERSONAL DATA,1010318,17-Aug-23,1320.76,0,139365,Phys/Sens Placements - East,DIRECT PAYMENTS,R,2023,5
738,Community and Housing,REDACTED PERSONAL DATA,1006414,15-Aug-23,625.6,0,140662,Phys/Sens Placements - East,DIRECT PAYMENTS,R,2023,5
739,Community and Housing,REDACTED PERSONAL DATA,1006095,15-Aug-23,6224.36,0,140759,Phys/Sens Placements - East,DIRECT PAYMENTS,R,2023,5
740,Community and Housing,SURREY AND BORDERS PARTNERSHIP,999935,03-Aug-23,11448.72,0,140911,Learning Disabilities Placemnt,321017              Nursing & Residential Care Homes,A,2023,5
741,Community and Housing,SURREY AND BORDERS PARTNERSHIP,1014393,30-Aug-23,11448.72,0,140911,Learning Disabilities Placemnt,321017              Nursing & Residential Care Homes,A,2023,5
742,Environment and Regeneration,KELTIC CLOTHING LTD,175808,09-Aug-23,1074.78,179.13,141131,Civil Enforcement Officers,140000              Clothing,A,2023,5
743,Community and Housing,GARWOOD FOUNDATION,999810,03-Aug-23,2755.48,0,142358,Phys/Sens Placements - East,321017              Nursing & Residential Care Homes,A,2023,5
744,Community and Housing,GARWOOD FOUNDATION,999920,03-Aug-23,2755.48,0,142358,Older People Placements - East,321017              Nursing & Residential Care Homes,A,2023,5
745,Community and Housing,GARWOOD FOUNDATION,1014271,30-Aug-23,2755.48,0,142358,Phys/Sens Placements - East,321017              Nursing & Residential Care Homes,A,2023,5
746,Community and Housing,GARWOOD FOUNDATION,1014379,30-Aug-23,2755.48,0,142358,Older People Placements - East,321017              Nursing & Residential Care Homes,A,2023,5
747,"Children, Schools and Family",CHUBB FIRE AND SECURITY LTD,9991449,16-Aug-23,1613.58,268.93,142411, Children's Centres Support,"390000              Works - Construction, Repair & Maintenance",A,2023,5
748,"Children, Schools and Family",CHUBB FIRE AND SECURITY LTD,9959405,18-Aug-23,880.87,146.81,142411,Church Road Building,"390000              Works - Construction, Repair & Maintenance",A,2023,5
749,Community and Housing,EVERGREEN PARTNERSHIP,999859,03-Aug-23,9675,0,142455,Learning Disabilities Placemnt,321017              Nursing & Residential Care Homes,A,2023,5
750,Community and Housing,EVERGREEN PARTNERSHIP,999878,03-Aug-23,6585.36,0,142455,Learning Disabilities Placemnt,321017              Nursing & Residential Care Homes,A,2023,5
751,Community and Housing,EVERGREEN PARTNERSHIP,1014323,30-Aug-23,9675,0,142455,Learning Disabilities Placemnt,321017              Nursing & Residential Care Homes,A,2023,5
752,Community and Housing,EVERGREEN PARTNERSHIP,1014339,30-Aug-23,6585.36,0,142455,Learning Disabilities Placemnt,321017              Nursing & Residential Care Homes,A,2023,5
753,Community and Housing,REDACTED PERSONAL DATA,1010736,21-Aug-23,1544,0,143597,MH Housing Support Placements,321000              Social Community Care Supplies & Services - Adult,R,2023,5
754,Community and Housing,REDACTED PERSONAL DATA,1010738,21-Aug-23,7847.4,0,143597,LD Housing Support Placements,321000              Social Community Care Supplies & Services - Adult,R,2023,5
755,Community and Housing,REDACTED PERSONAL DATA,1010769,21-Aug-23,2145.86,0,143597,Learning Disabilities Placemnt,321000              Social Community Care Supplies & Services - Adult,R,2023,5
756,Corporate Services,REDACTED PERSONAL DATA,JR196,10-Aug-23,525,0,143840,Translation Service,TRANSLATIONS,R,2023,5
757,Community and Housing,REDACTED PERSONAL DATA,1006360,15-Aug-23,4047.6,0,144689,Learning Disabilities Placemnt,DIRECT PAYMENTS,R,2023,5
758,Community and Housing,CRAEGMOOR FACILITIES - WINDSOR,999914,03-Aug-23,6834.88,0,145152,Learning Disabilities Placemnt,321017              Nursing & Residential Care Homes,A,2023,5
759,Community and Housing,CRAEGMOOR FACILITIES - WINDSOR,1014374,30-Aug-23,6834.88,0,145152,Learning Disabilities Placemnt,321017              Nursing & Residential Care Homes,A,2023,5
760,Community and Housing,REDACTED PERSONAL DATA,1009578,16-Aug-23,5474,0,145882,Learning Disabilities Placemnt,DIRECT PAYMENTS,R,2023,5
761,Community and Housing,GENERATE,11030,01-Aug-23,727.2,0,148332,Learning Disabilities Placemnt,321000              Social Community Care Supplies & Services - Adult,A,2023,5
762,Community and Housing,GENERATE,11147,21-Aug-23,659.2,0,148332,Learning Disabilities Placemnt,321000              Social Community Care Supplies & Services - Adult,A,2023,5
763,Community and Housing,GENERATE,11145,21-Aug-23,909,0,148332,Learning Disabilities Placemnt,321000              Social Community Care Supplies & Services - Adult,A,2023,5
764,Community and Housing,CHICHESTER HALL CARE HOME LTD,1000128,03-Aug-23,2637.2,0,148358,Older People Placements - East,321017              Nursing & Residential Care Homes,A,2023,5
765,Community and Housing,CHICHESTER HALL CARE HOME LTD,1014599,30-Aug-23,2637.2,0,148358,Older People Placements - East,321017              Nursing & Residential Care Homes,A,2023,5
766,"Children, Schools and Family",REDACTED PERSONAL DATA,P1 23 ADJUSTMENT,24-Aug-23,620.55,0,149524,EARLY YEARS NURSERY GRANTS,321100              Social Community Care Supplies & Services - Children                                      Confirmed,R,2023,5
767,Unassigned,Canterbury Campus,SCHOOLS 2324/5 A,08-Aug-23,60313.39,0,150054,Schools,170000              Education,A,2023,5
768,Community and Housing,REDACTED PERSONAL DATA,1006117,15-Aug-23,3125.04,0,151002,Older People Placements - East,DIRECT PAYMENTS,R,2023,5
769,Community and Housing,AIMS CARE PARTNERSHIP,999863,03-Aug-23,10560,0,151592,Learning Disabilities Placemnt,321017              Nursing & Residential Care Homes,A,2023,5
770,Community and Housing,AIMS CARE PARTNERSHIP,999903,03-Aug-23,3114.72,0,151592,Learning Disabilities Placemnt,321017              Nursing & Residential Care Homes,A,2023,5
771,Community and Housing,AIMS CARE PARTNERSHIP,1014326,30-Aug-23,10560,0,151592,Learning Disabilities Placemnt,321017              Nursing & Residential Care Homes,A,2023,5
772,Community and Housing,AIMS CARE PARTNERSHIP,1014364,30-Aug-23,3114.72,0,151592,Learning Disabilities Placemnt,321017              Nursing & Residential Care Homes,A,2023,5
773,Community and Housing,REDACTED PERSONAL DATA,1006272,15-Aug-23,2732.6,0,151790,Older People Placements - East,DIRECT PAYMENTS,R,2023,5
774,Community and Housing,HOLISTIC COMMUNITY CARE - FC,LAMBETH P04/13,08-Aug-23,696.2,0,151996,Older People Placements - East,321000              Social Community Care Supplies & Services - Adult,A,2023,5
775,Community and Housing,HOLISTIC COMMUNITY CARE - FC,LAMBETH P04/5,08-Aug-23,1047.47,0,151996,Older People Placements - East,321000              Social Community Care Supplies & Services - Adult,A,2023,5
776,Community and Housing,HOLISTIC COMMUNITY CARE - FC,LAMBETH P04/8,08-Aug-23,816.83,0,151996,Phys/Sens Placements - East,321000              Social Community Care Supplies & Services - Adult,A,2023,5
777,Community and Housing,HOLISTIC COMMUNITY CARE - FC,LAMBETH P04/9,08-Aug-23,780.27,0,151996,Older People Placements - East,321000              Social Community Care Supplies & Services - Adult,A,2023,5
778,Community and Housing,HOLISTIC COMMUNITY CARE - FC,LAMBETH P04/2,08-Aug-23,661.31,0,151996,Older People Placements - East,321000              Social Community Care Supplies & Services - Adult,A,2023,5
779,Community and Housing,HOLISTIC COMMUNITY CARE - FC,LAMBETH P04/14,08-Aug-23,1357.9,0,151996,Older People Placements - East,321000              Social Community Care Supplies & Services - Adult,A,2023,5
780,Community and Housing,HOLISTIC COMMUNITY CARE - FC,LAMBETH P04/23,08-Aug-23,14003.82,0,151996,Older People Placements - East,321000              Social Community Care Supplies & Services - Adult,A,2023,5
781,Community and Housing,HOLISTIC COMMUNITY CARE - FC,LAMBETH P04/24,08-Aug-23,1095.98,0,151996,Older People Placements - East,321000              Social Community Care Supplies & Services - Adult,A,2023,5
782,Community and Housing,HOLISTIC COMMUNITY CARE - FC,LAMBETH P04/1,08-Aug-23,3218.63,0,151996,Older People Placements - East,321000              Social Community Care Supplies & Services - Adult,A,2023,5
783,Community and Housing,HOLISTIC COMMUNITY CARE - FC,LAMBETH P04/18,08-Aug-23,1126.85,0,151996,Older People Placements - East,321000              Social Community Care Supplies & Services - Adult,A,2023,5
784,Community and Housing,HOLISTIC COMMUNITY CARE - FC,LAMBETH P04/4,08-Aug-23,2370.6,0,151996,Older People Placements - East,321000              Social Community Care Supplies & Services - Adult,A,2023,5
785,Community and Housing,HOLISTIC COMMUNITY CARE - FC,LAMBETH P04/10,08-Aug-23,816.1,0,151996,Older People Placements - East,321000              Social Community Care Supplies & Services - Adult,A,2023,5
786,Community and Housing,HOLISTIC COMMUNITY CARE - FC,LAMBETH P04/15,08-Aug-23,888.74,0,151996,Older People Placements - East,321000              Social Community Care Supplies & Services - Adult,A,2023,5
787,Community and Housing,HOLISTIC COMMUNITY CARE - FC,LAMBETH P04/16,08-Aug-23,1480.47,0,151996,Older People Placements - East,321000              Social Community Care Supplies & Services - Adult,A,2023,5
788,Community and Housing,HOLISTIC COMMUNITY CARE - FC,LAMBETH P04/20,08-Aug-23,755.82,0,151996,Older People Placements - East,321000              Social Community Care Supplies & Services - Adult,A,2023,5
789,Community and Housing,HOLISTIC COMMUNITY CARE - FC,LAMBETH P04/7,08-Aug-23,2006.57,0,151996,Older People Placements - East,321000              Social Community Care Supplies & Services - Adult,A,2023,5
790,Community and Housing,HOLISTIC COMMUNITY CARE - FC,3832,08-Aug-23,5474,0,151996,Learning Disabilities Placemnt,321000              Social Community Care Supplies & Services - Adult,A,2023,5
791,Community and Housing,HOLISTIC COMMUNITY CARE - FC,3883,11-Aug-23,5474,0,151996,Older People Placements - East,321000              Social Community Care Supplies & Services - Adult,A,2023,5
792,Community and Housing,HOLISTIC COMMUNITY CARE - FC,3882,11-Aug-23,5474,0,151996,Learning Disabilities Placemnt,321000              Social Community Care Supplies & Services - Adult,A,2023,5
793,Community and Housing,HOLISTIC COMMUNITY CARE - FC,LAMBETH P05/11,16-Aug-23,703.68,0,151996,Older People Placements - East,321000              Social Community Care Supplies & Services - Adult,A,2023,5
794,Community and Housing,HOLISTIC COMMUNITY CARE - FC,LAMBETH P05/4,16-Aug-23,999.66,0,151996,Older People Placements - East,321000              Social Community Care Supplies & Services - Adult,A,2023,5
795,Community and Housing,HOLISTIC COMMUNITY CARE - FC,LAMBETH P05/7,16-Aug-23,835.07,0,151996,Phys/Sens Placements - East,321000              Social Community Care Supplies & Services - Adult,A,2023,5
796,Community and Housing,HOLISTIC COMMUNITY CARE - FC,LAMBETH P05/8,16-Aug-23,772.1,0,151996,Older People Placements - East,321000              Social Community Care Supplies & Services - Adult,A,2023,5
797,Community and Housing,HOLISTIC COMMUNITY CARE - FC,LAMBETH P05/2,16-Aug-23,642.14,0,151996,Older People Placements - East,321000              Social Community Care Supplies & Services - Adult,A,2023,5
798,Community and Housing,HOLISTIC COMMUNITY CARE - FC,LAMBETH P05/12,16-Aug-23,1430.73,0,151996,Older People Placements - East,321000              Social Community Care Supplies & Services - Adult,A,2023,5
799,Community and Housing,HOLISTIC COMMUNITY CARE - FC,LAMBETH P05/21,16-Aug-23,14227.02,0,151996,Older People Placements - East,321000              Social Community Care Supplies & Services - Adult,A,2023,5
800,Community and Housing,HOLISTIC COMMUNITY CARE - FC,LAMBETH P05/23,16-Aug-23,1201.24,0,151996,Older People Placements - East,321000              Social Community Care Supplies & Services - Adult,A,2023,5
801,Community and Housing,HOLISTIC COMMUNITY CARE - FC,LAMBETH P05/24,16-Aug-23,1029.59,0,151996,Older People Placements - East,321000              Social Community Care Supplies & Services - Adult,A,2023,5
802,Community and Housing,HOLISTIC COMMUNITY CARE - FC,LAMBETH P05/25,16-Aug-23,1011.69,0,151996,Older People Placements - East,321000              Social Community Care Supplies & Services - Adult,A,2023,5
803,Community and Housing,HOLISTIC COMMUNITY CARE - FC,LAMBETH P05/1,16-Aug-23,3195.04,0,151996,Older People Placements - East,321000              Social Community Care Supplies & Services - Adult,A,2023,5
804,Community and Housing,HOLISTIC COMMUNITY CARE - FC,LAMBETH P05/16,16-Aug-23,1125.26,0,151996,Older People Placements - East,321000              Social Community Care Supplies & Services - Adult,A,2023,5
805,Community and Housing,HOLISTIC COMMUNITY CARE - FC,LAMBETH P05/3,16-Aug-23,2421.88,0,151996,Older People Placements - East,321000              Social Community Care Supplies & Services - Adult,A,2023,5
806,Community and Housing,HOLISTIC COMMUNITY CARE - FC,LAMBETH P05/13,16-Aug-23,901.25,0,151996,Older People Placements - East,321000              Social Community Care Supplies & Services - Adult,A,2023,5
807,Community and Housing,HOLISTIC COMMUNITY CARE - FC,LAMBETH P05/14,16-Aug-23,1482.18,0,151996,Older People Placements - East,321000              Social Community Care Supplies & Services - Adult,A,2023,5
808,Community and Housing,HOLISTIC COMMUNITY CARE - FC,LAMBETH P05/18,16-Aug-23,750.93,0,151996,Older People Placements - East,321000              Social Community Care Supplies & Services - Adult,A,2023,5
809,Community and Housing,HOLISTIC COMMUNITY CARE - FC,LAMBETH P05/6,16-Aug-23,1874.47,0,151996,Older People Placements - East,321000              Social Community Care Supplies & Services - Adult,A,2023,5
810,Community and Housing,REDACTED PERSONAL DATA,1006402,15-Aug-23,9153.2,0,152015,Older People Placements - East,321000              Social Community Care Supplies & Services - Adult,R,2023,5
811,Corporate Services,WANDSWORTH CORPORATION,WC376792128M04E,14-Aug-23,2047.38,0,152180,SLLP Client Income,OLA,A,2023,5
812,Community and Housing,REDACTED PERSONAL DATA,1006308,15-Aug-23,1173,0,152709,Older People Placements - East,DIRECT PAYMENTS,R,2023,5
813,Community and Housing,REDACTED PERSONAL DATA,1006180,15-Aug-23,2346,0,152990,Learning Disabilities Placemnt,DIRECT PAYMENTS,R,2023,5
814,Community and Housing,LYNTON HALL NURSING HOME,999747,07-Aug-23,3102.04,0,153795,Older People Placements - East,321017              Nursing & Residential Care Homes,A,2023,5
815,Community and Housing,LYNTON HALL NURSING HOME,999753,07-Aug-23,2988.48,0,153795,Older People Placements - East,321017              Nursing & Residential Care Homes,A,2023,5
816,Community and Housing,LYNTON HALL NURSING HOME,999941,07-Aug-23,3249.6,0,153795,Older People Placements - East,321017              Nursing & Residential Care Homes,A,2023,5
817,Community and Housing,LYNTON HALL NURSING HOME,1004067,14-Aug-23,1150,0,153795,Older People Placements - East,321017              Nursing & Residential Care Homes,A,2023,5
818,Community and Housing,LYNTON HALL NURSING HOME,1014212,04-Sep-23,3102.04,0,153795,Older People Placements - East,321017              Nursing & Residential Care Homes,A,2023,5
819,Community and Housing,LYNTON HALL NURSING HOME,1014218,04-Sep-23,2988.48,0,153795,Older People Placements - East,321017              Nursing & Residential Care Homes,A,2023,5
820,Community and Housing,LYNTON HALL NURSING HOME,1014400,04-Sep-23,3249.6,0,153795,Older People Placements - East,321017              Nursing & Residential Care Homes,A,2023,5
821,Community and Housing,LYNTON HALL NURSING HOME,1014416,04-Sep-23,985.72,0,153795,Older People Placements - East,321017              Nursing & Residential Care Homes,A,2023,5
822,Unassigned,HARRIS ACADEMY MERTON,SCHOOLS 2324/5 A,08-Aug-23,80924.21,0,155274,Schools,170000              Education,A,2023,5
823,Unassigned,CFBT SCHOOLS TRUST,SCHOOLS 2324/5 A,08-Aug-23,46058.06,0,155275,Schools,170000              Education,A,2023,5
824,Community and Housing,REDACTED PERSONAL DATA,1009622,16-Aug-23,586.52,0,156180,Mental Health Placements,DIRECT PAYMENTS,R,2023,5
825,Community and Housing,REDACTED PERSONAL DATA,1009601,16-Aug-23,1104.44,0,159542,Older People Placements - East,DIRECT PAYMENTS,R,2023,5
826,Corporate Services,ADVANCED BUSINESS SOLUTIONS,INV-131296,22-Aug-23,150000,25000,159966,AD Resources,270000              Information Communication Technology,A,2023,5
827,Community and Housing,REDACTED PERSONAL DATA,1010361,17-Aug-23,3950.24,0,160044,Phys/Sens Placements - East,DIRECT PAYMENTS,R,2023,5
828,"Children, Schools and Family",REDACTED PERSONAL DATA,1007125,14-Aug-23,1082.6,0,160147,Child Disabilities - Placement,CSF-DIRECT PAYMENTS,R,2023,5
829,Community and Housing,REDACTED PERSONAL DATA,1006198,15-Aug-23,1422.48,0,160244,Phys/Sens Placements - East,DIRECT PAYMENTS,R,2023,5
830,Community and Housing,REDACTED PERSONAL DATA,1006147,15-Aug-23,742.92,0,160273,Learning Disabilities Placemnt,DIRECT PAYMENTS,R,2023,5
831,Community and Housing,REDACTED PERSONAL DATA,1006254,15-Aug-23,1087.44,0,160279,Phys/Sens Placements - East,DIRECT PAYMENTS,R,2023,5
832,"Children, Schools and Family",Fleet Educ.Services Ltd T/A Fleet Tutors,26477,18-Aug-23,2505.6,417.6,160300,Non-Delegated Statements,260000              Human Resources,A,2023,5
833,"Children, Schools and Family",Fleet Educ.Services Ltd T/A Fleet Tutors,25383,18-Aug-23,1166.4,194.4,160300,Non-Delegated Statements,260000              Human Resources,A,2023,5
834,"Children, Schools and Family",Fleet Educ.Services Ltd T/A Fleet Tutors,25382,18-Aug-23,3340.8,556.8,160300,Non-Delegated Statements,260000              Human Resources,A,2023,5
835,"Children, Schools and Family",THE NATIONAL FOSTERING AGENCY,459831,22-Aug-23,6009.66,0,160464,Placements Under 18,321100              Social Community Care Supplies & Services - Children,A,2023,5
836,"Children, Schools and Family",THE NATIONAL FOSTERING AGENCY,459829,22-Aug-23,5703.38,0,160464,Placements Under 18,321100              Social Community Care Supplies & Services - Children,A,2023,5
837,"Children, Schools and Family",THE NATIONAL FOSTERING AGENCY,459830,22-Aug-23,5703.38,0,160464,Placements Under 18,321100              Social Community Care Supplies & Services - Children,A,2023,5
838,Environment and Regeneration,BRITISH GAS BUSINESS,580476166,07-Aug-23,576.78,27.46,160497,Durnsford industrial estate,370000              Utilities,A,2023,5
839,Community and Housing,THE AVENUES TRUST GROUP,1003774,29-Aug-23,9463.44,0,160730,Learning Disabilities Placemnt,321017              Nursing & Residential Care Homes,A,2023,5
840,Environment and Regeneration,CITY OF LONDON CORPORATION,4345405,08-Aug-23,8007.86,1334.64,160895,Waste Disposal,180000              Environmental Services,A,2023,5
841,Community and Housing,REDACTED PERSONAL DATA,1006232,15-Aug-23,515.92,0,160909,Older People Placements - East,DIRECT PAYMENTS,R,2023,5
842,"Children, Schools and Family",THE AWARD SCHEME LTD,PS172095,30-Aug-23,3825,0,161088, Duke of Edinburgh Awrds,290000              Arts & Leisure Services,A,2023,5
843,"Children, Schools and Family",REDACTED PERSONAL DATA,1002955,04-Aug-23,548.09,0,161094,UASC LAC Under 18,321100              Social Community Care Supplies & Services - Children,R,2023,5
844,"Children, Schools and Family",REDACTED PERSONAL DATA,1002999,04-Aug-23,548.09,0,161094,UASC LAC Under 18,321100              Social Community Care Supplies & Services - Children,R,2023,5
845,"Children, Schools and Family",REDACTED PERSONAL DATA,1005725,11-Aug-23,548.09,0,161094,UASC LAC Under 18,321100              Social Community Care Supplies & Services - Children,R,2023,5
846,"Children, Schools and Family",REDACTED PERSONAL DATA,1005771,11-Aug-23,548.09,0,161094,UASC LAC Under 18,321100              Social Community Care Supplies & Services - Children,R,2023,5
847,"Children, Schools and Family",REDACTED PERSONAL DATA,1010813,21-Aug-23,548.09,0,161094,UASC LAC Under 18,321100              Social Community Care Supplies & Services - Children,R,2023,5
848,"Children, Schools and Family",REDACTED PERSONAL DATA,1010858,21-Aug-23,548.09,0,161094,UASC LAC Under 18,321100              Social Community Care Supplies & Services - Children,R,2023,5
849,"Children, Schools and Family",REDACTED PERSONAL DATA,1013014,24-Aug-23,548.09,0,161094,UASC LAC Under 18,321100              Social Community Care Supplies & Services - Children,R,2023,5
850,"Children, Schools and Family",REDACTED PERSONAL DATA,1013057,24-Aug-23,648.09,0,161094,UASC LAC Under 18,321100              Social Community Care Supplies & Services - Children,R,2023,5
851,Environment and Regeneration,KAT TRANSPORT LTD,95,15-Aug-23,4140,690,162381,Passenger Transport,360000              Passenger Transport,A,2023,5
852,"Children, Schools and Family",KENT COUNTY COUNCIL,900168290,15-Aug-23,45465.13,0,162396,Non-Delegated Statements,OLA,A,2023,5
853,Environment and Regeneration,ROYAL BOR'GH KINGSTON U THAMES,37575467,10-Aug-23,2625,0,163013,MOPAC Projects,OLA,A,2023,5
854,"Children, Schools and Family",FULHAM FOOTBALL CLUB FOUNDAT.,HAFSUM-P2,30-Aug-23,7162.5,0,163328,Holiday Act Food Prog grntfnd,200000              Financial Services,A,2023,5
855,Community and Housing,REDACTED PERSONAL DATA,1009556,16-Aug-23,1737.28,0,163392,Learning Disabilities Placemnt,DIRECT PAYMENTS,R,2023,5
856,Environment and Regeneration,D N H PROPERTY MAINTENANCE,2324DNH,23-Aug-23,24000,4000,163395,EDS2,"390000              Works - Construction, Repair & Maintenance",C,2023,5
857,Environment and Regeneration,D N H PROPERTY MAINTENANCE,2326DNH,23-Aug-23,2106.92,351.15,163395,EDS2,"390000              Works - Construction, Repair & Maintenance",C,2023,5
858,Corporate Services,D N H PROPERTY MAINTENANCE,2319DNH,10-Aug-23,780,130,163395,Leisure Buildings,"390000              Works - Construction, Repair & Maintenance",C,2023,5
859,"Children, Schools and Family",D N H PROPERTY MAINTENANCE,2330DNH,04-Sep-23,2940,490,163395,Revenue Costs of Capital Proj,"390000              Works - Construction, Repair & Maintenance",C,2023,5
860,Community and Housing,Tunstall Healthcare (UK) Limited,CD970027493,29-Aug-23,6825.6,1137.6,163420,Mascot,190000              Facilities & Management Services,A,2023,5
861,Community and Housing,Tunstall Healthcare (UK) Limited,CD970027917,04-Sep-23,4054.08,675.68,163420,Mascot,190000              Facilities & Management Services,A,2023,5
862,"Children, Schools and Family",REDACTED PERSONAL DATA,1003134,04-Aug-23,785.52,0,163471,Placements Under 18,200000              Financial Services,R,2023,5
863,"Children, Schools and Family",REDACTED PERSONAL DATA,1005786,11-Aug-23,785.52,0,163471,Placements Under 18,200000              Financial Services,R,2023,5
864,"Children, Schools and Family",REDACTED PERSONAL DATA,1010873,21-Aug-23,785.52,0,163471,Placements Under 18,200000              Financial Services,R,2023,5
865,"Children, Schools and Family",REDACTED PERSONAL DATA,1010881,21-Aug-23,692.46,0,163471,Placements Under 18,200000              Financial Services,R,2023,5
866,"Children, Schools and Family",REDACTED PERSONAL DATA,1011431,21-Aug-23,1017.88,0,163471,UASC LAC Under 18,200000              Financial Services,R,2023,5
867,"Children, Schools and Family",REDACTED PERSONAL DATA,1011449,21-Aug-23,518.72,0,163471,Placements Under 18,200000              Financial Services,R,2023,5
868,"Children, Schools and Family",REDACTED PERSONAL DATA,1012990,24-Aug-23,548.09,0,163471,UASC LAC Under 18,200000              Financial Services,R,2023,5
869,"Children, Schools and Family",REDACTED PERSONAL DATA,1013072,24-Aug-23,785.52,0,163471,Placements Under 18,200000              Financial Services,R,2023,5
870,"Children, Schools and Family",REDACTED PERSONAL DATA,1013080,24-Aug-23,692.46,0,163471,Placements Under 18,200000              Financial Services,R,2023,5
871,Community and Housing,Active Prospects,999787,03-Aug-23,6103.76,0,163859,Learning Disabilities Placemnt,321017              Nursing & Residential Care Homes,A,2023,5
872,Community and Housing,Active Prospects,1014247,30-Aug-23,6103.76,0,163859,Learning Disabilities Placemnt,321017              Nursing & Residential Care Homes,A,2023,5
873,Community and Housing,REDACTED PERSONAL DATA,1006142,15-Aug-23,1281.72,0,163971,Older People Placements - East,DIRECT PAYMENTS,R,2023,5
874,Environment and Regeneration,LONDON COUNCILS,4345241,07-Aug-23,10760.84,0,164343,Operational Running Costs,OLA,A,2023,5
875,Community and Housing,LONDON COUNCILS,4345527,14-Aug-23,228568,0,164343,Concessionary Fares,OLA,A,2023,5
876,Corporate Services,LONDON COUNCILS,4345930,22-Aug-23,21890,0,164343,Safety Services,OLA,A,2023,5
877,Community and Housing,ENTERPRISE CARE SUPPORT LTD - FC,20780,01-Aug-23,2489.45,0,164431,Older People Placements - East,321000              Social Community Care Supplies & Services - Adult,A,2023,5
878,Community and Housing,ENTERPRISE CARE SUPPORT LTD - FC,20888A,15-Aug-23,1699.5,0,164431,Older People Placements - East,321000              Social Community Care Supplies & Services - Adult,A,2023,5
879,Community and Housing,ENTERPRISE CARE SUPPORT LTD - FC,20886,15-Aug-23,811.16,0,164431,Older People Placements - East,321000              Social Community Care Supplies & Services - Adult,A,2023,5
880,Community and Housing,ENTERPRISE CARE SUPPORT LTD - FC,20885,15-Aug-23,739.08,0,164431,Older People Placements - East,321000              Social Community Care Supplies & Services - Adult,A,2023,5
881,Community and Housing,ENTERPRISE CARE SUPPORT LTD - FC,20884,15-Aug-23,1110.44,0,164431,Older People Placements - East,321000              Social Community Care Supplies & Services - Adult,A,2023,5
882,Community and Housing,ENTERPRISE CARE SUPPORT LTD - FC,20883,15-Aug-23,698.32,0,164431,Older People Placements - East,321000              Social Community Care Supplies & Services - Adult,A,2023,5
883,Community and Housing,ENTERPRISE CARE SUPPORT LTD - FC,20882,15-Aug-23,811.16,0,164431,Older People Placements - East,321000              Social Community Care Supplies & Services - Adult,A,2023,5
884,Community and Housing,ENTERPRISE CARE SUPPORT LTD - FC,20880,15-Aug-23,3018.96,0,164431,Older People Placements - East,321000              Social Community Care Supplies & Services - Adult,A,2023,5
885,Community and Housing,ENTERPRISE CARE SUPPORT LTD - FC,20879,15-Aug-23,2671.33,0,164431,Older People Placements - East,321000              Social Community Care Supplies & Services - Adult,A,2023,5
886,Community and Housing,ENTERPRISE CARE SUPPORT LTD - FC,20889,18-Aug-23,739.08,0,164431,Learning Disabilities Placemnt,321000              Social Community Care Supplies & Services - Adult,A,2023,5
887,Community and Housing,ENTERPRISE CARE SUPPORT LTD - FC,20891,18-Aug-23,2270.76,0,164431,Older People Placements - East,321000              Social Community Care Supplies & Services - Adult,A,2023,5
888,Community and Housing,ENTERPRISE CARE SUPPORT LTD - FC,20901,21-Aug-23,1293.84,0,164431,Older People Placements - East,321000              Social Community Care Supplies & Services - Adult,A,2023,5
889,Community and Housing,ENTERPRISE CARE SUPPORT LTD - FC,20900,21-Aug-23,1292.32,0,164431,Older People Placements - East,321000              Social Community Care Supplies & Services - Adult,A,2023,5
890,Community and Housing,ENTERPRISE CARE SUPPORT LTD - FC,20898,21-Aug-23,3018.96,0,164431,Older People Placements - East,321000              Social Community Care Supplies & Services - Adult,A,2023,5
891,Community and Housing,ENTERPRISE CARE SUPPORT LTD - FC,20897,21-Aug-23,1160.32,0,164431,Older People Placements - East,321000              Social Community Care Supplies & Services - Adult,A,2023,5
892,Community and Housing,ENTERPRISE CARE SUPPORT LTD - FC,20895,21-Aug-23,1160.32,0,164431,Older People Placements - East,321000              Social Community Care Supplies & Services - Adult,A,2023,5
893,Community and Housing,ENTERPRISE CARE SUPPORT LTD - FC,20890,24-Aug-23,1160.32,0,164431,Older People Placements - East,321000              Social Community Care Supplies & Services - Adult,A,2023,5
894,Community and Housing,ENTERPRISE CARE SUPPORT LTD - FC,20795,24-Aug-23,1545.98,0,164431,Mental Health Placements,321000              Social Community Care Supplies & Services - Adult,A,2023,5
895,Community and Housing,BUPA CARE SERVICES BACS RECEIP,999987,03-Aug-23,8580.84,0,164629,Older People Placements - East,321017              Nursing & Residential Care Homes,A,2023,5
896,Community and Housing,BUPA CARE SERVICES BACS RECEIP,1014449,30-Aug-23,8580.84,0,164629,Older People Placements - East,321017              Nursing & Residential Care Homes,A,2023,5
897,Community and Housing,REDACTED PERSONAL DATA,1006335,15-Aug-23,1564,0,164694,Older People Placements - East,DIRECT PAYMENTS,R,2023,5
898,Unassigned,MARSTON GROUP,62818,18-Aug-23,5358,0,165202,Corporate Accountancy,200000              Financial Services,A,2023,5
899,Corporate Services,LONDON BOROUGH OF HARINGEY,1802032050,24-Aug-23,5828.34,0,165347,Recovery Modernisation Progrm,OLA,A,2023,5
900,"Children, Schools and Family",CHILDREN OF COLOUR,8300,07-Aug-23,5336.87,0,165365,Placements Under 18,321100              Social Community Care Supplies & Services - Children,A,2023,5
901,Community and Housing,REDACTED PERSONAL DATA,1006356,15-Aug-23,1634.32,0,165602,Learning Disabilities Placemnt,DIRECT PAYMENTS,R,2023,5
902,Community and Housing,REDACTED PERSONAL DATA,1009530,16-Aug-23,2677.7,0,165602,Learning Disabilities Placemnt,DIRECT PAYMENTS,R,2023,5
903,Community and Housing,REDACTED PERSONAL DATA,1009628,16-Aug-23,7111.44,0,165619,Phys/Sens Placements - East,DIRECT PAYMENTS,R,2023,5
904,Community and Housing,BUPA CARE HOMES (ANS) LTD,1000146,03-Aug-23,4791.48,0,165704,Older People Placements - East,321017              Nursing & Residential Care Homes,A,2023,5
905,Community and Housing,BUPA CARE HOMES (ANS) LTD,1014617,30-Aug-23,4791.48,0,165704,Older People Placements - East,321017              Nursing & Residential Care Homes,A,2023,5
906,Unassigned,HM REVENUE AND CUSTOMS,XW0000101695242C,23-Aug-23,16750.22,0,165742,Corporate Accountancy,200000              Financial Services,A,2023,5
907,Community and Housing,REDACTED PERSONAL DATA,1006394,15-Aug-23,1262.96,0,165786,Older People Placements - East,DIRECT PAYMENTS,R,2023,5
908,Community and Housing,REDACTED PERSONAL DATA,1006406,15-Aug-23,700.8,0,166085,Learning Disabilities Placemnt,DIRECT PAYMENTS,R,2023,5
909,Environment and Regeneration,COMPLETE ECOLOGY LTD,Apr-24,17-Aug-23,660,110,166208,Pks Rec Grds (Unloc),240000              Horticultural                                                                             Confirmed,A,2023,5
910,Environment and Regeneration,COMPLETE ECOLOGY LTD,Jul-24,29-Aug-23,1680,280,166208,Pks Rec Grds (Unloc),240000              Horticultural                                                                             Confirmed,A,2023,5
911,Corporate Services,WEIGHTMANS LLP,2187045,29-Aug-23,2507.4,417.9,166459,SLLP - Disbursements,200000              Financial Services                                                                        confirmed,A,2023,5
912,Community and Housing,REDACTED PERSONAL DATA,1009562,16-Aug-23,1485.8,0,166547,Learning Disabilities Placemnt,DIRECT PAYMENTS,R,2023,5
913,"Children, Schools and Family",REDACTED PERSONAL DATA,1002939,04-Aug-23,1554.2,0,166742,Placements Under 18,321100              Social Community Care Supplies & Services - Children,R,2023,5
914,"Children, Schools and Family",REDACTED PERSONAL DATA,1005708,11-Aug-23,1354.2,0,166742,Placements Under 18,321100              Social Community Care Supplies & Services - Children,R,2023,5
915,"Children, Schools and Family",REDACTED PERSONAL DATA,1010796,21-Aug-23,1354.2,0,166742,Placements Under 18,321100              Social Community Care Supplies & Services - Children,R,2023,5
916,"Children, Schools and Family",REDACTED PERSONAL DATA,1012996,24-Aug-23,1354.2,0,166742,Placements Under 18,321100              Social Community Care Supplies & Services - Children,R,2023,5
917,Corporate Services,REDACTED PERSONAL DATA,00564-19522547-0,29-Aug-23,1532,0,166885,Client Finance Affairs,120000              Cemetery & Crematorium,R,2023,5
918,Corporate Services,REDACTED PERSONAL DATA,00564-19530671-0,31-Aug-23,1450,0,166885,Client Finance Affairs,120000              Cemetery & Crematorium,R,2023,5
919,Community and Housing,UNIQUE OFFICE SOLUTIONS LTD,112843,14-Aug-23,812.4,135.4,166889,LD Fieldwork SW,210000              Furniture & Soft Furnishings,A,2023,5
920,Environment and Regeneration,UNIQUE OFFICE SOLUTIONS LTD,112842,14-Aug-23,1008,168,166889,EDS2,210000              Furniture & Soft Furnishings,A,2023,5
921,Community and Housing,UNIQUE OFFICE SOLUTIONS LTD,112873,05-Sep-23,834,139,166889,PH - Administration,210000              Furniture & Soft Furnishings,A,2023,5
922,Corporate Services,UNIQUE OFFICE SOLUTIONS LTD,112871,29-Aug-23,834,139,166889,Recovery Modernisation Progrm,210000              Furniture & Soft Furnishings,A,2023,5
923,"Children, Schools and Family",RAINBOW FOSTERING SERVICES LTD,RF3121,18-Aug-23,3742.13,0,167793,Placements Under 18,321100              Social Community Care Supplies & Services - Children,A,2023,5
924,Corporate Services,REDACTED PERSONAL DATA,10224928,11-Aug-23,2565,427.5,168092,Corporately Funded Items,280000              Legal Services,R,2023,5
925,Corporate Services,REDACTED PERSONAL DATA,10229374,11-Aug-23,2970,495,168092,Corporately Funded Items,280000              Legal Services,R,2023,5
926,Corporate Services,REDACTED PERSONAL DATA,10241509,30-Aug-23,32372.4,5395.4,168092,SLLP - Disbursements,280000              Legal Services,R,2023,5
927,Capital,CBS Adaptation Design,1773,09-Aug-23,3590.42,510.9,168147,Disabled Facilities Grant,200000              Financial Services,A,2023,5
928,Capital,CBS Adaptation Design,1772,15-Aug-23,2681.26,358.88,168147,Disabled Facilities Grant,200000              Financial Services,A,2023,5
929,Capital,CBS Adaptation Design,1777,15-Aug-23,2130.85,267.14,168147,Disabled Facilities Grant,200000              Financial Services,A,2023,5
930,Capital,CBS Adaptation Design,1797,15-Aug-23,2370.76,307.13,168147,Disabled Facilities Grant,200000              Financial Services,A,2023,5
931,Capital,CBS Adaptation Design,1780,15-Aug-23,2778.85,375.14,168147,Disabled Facilities Grant,200000              Financial Services,A,2023,5
932,Capital,CBS Adaptation Design,1781,15-Aug-23,1602.97,179.66,168147,Disabled Facilities Grant,200000              Financial Services,A,2023,5
933,Capital,CBS Adaptation Design,1774,18-Aug-23,888.82,80.8,168147,Disabled Facilities Grant,200000              Financial Services,A,2023,5
934,Capital,CBS Adaptation Design,1782,18-Aug-23,1742.21,202.87,168147,Disabled Facilities Grant,200000              Financial Services,A,2023,5
935,Capital,CBS Adaptation Design,1785,18-Aug-23,2632.08,351.18,168147,Disabled Facilities Grant,200000              Financial Services,A,2023,5
936,Capital,CBS Adaptation Design,1788,18-Aug-23,1017.83,119.14,168147,Disabled Facilities Grant,200000              Financial Services,A,2023,5
937,Capital,CBS Adaptation Design,1790,18-Aug-23,1225.14,116.19,168147,Disabled Facilities Grant,200000              Financial Services,A,2023,5
938,Capital,CBS Adaptation Design,1791,18-Aug-23,2212.8,280.8,168147,Disabled Facilities Grant,200000              Financial Services,A,2023,5
939,Corporate Services,LANGUAGE BANK,MTS-170723,08-Aug-23,744,124,168229,Translation Service,TRANSLATIONS,A,2023,5
940,Corporate Services,LANGUAGE BANK,MTS280723,14-Aug-23,672,112,168229,Translation Service,TRANSLATIONS,A,2023,5
941,Corporate Services,LANGUAGE BANK,MTS-200723,11-Aug-23,708,118,168229,Translation Service,TRANSLATIONS,A,2023,5
942,Corporate Services,LANGUAGE BANK,MTS-260723,14-Aug-23,621,103.5,168229,Translation Service,TRANSLATIONS,A,2023,5
943,Corporate Services,LANGUAGE BANK,MTS-040823,23-Aug-23,723,120.5,168229,Translation Service,TRANSLATIONS,A,2023,5
944,Corporate Services,LANGUAGE BANK,MTS-030823/08/23,23-Aug-23,639,106.5,168229,Translation Service,TRANSLATIONS,A,2023,5
945,Corporate Services,LANGUAGE BANK,MTS-010823,23-Aug-23,633,105.5,168229,Translation Service,TRANSLATIONS,A,2023,5
946,Corporate Services,LANGUAGE BANK,MTS-110823,29-Aug-23,561,93.5,168229,Translation Service,TRANSLATIONS,A,2023,5
947,Corporate Services,LANGUAGE BANK,MTS-160823,29-Aug-23,744,124,168229,Translation Service,TRANSLATIONS,A,2023,5
948,Corporate Services,LANGUAGE BANK,MTS-080823,25-Aug-23,819,136.5,168229,Translation Service,TRANSLATIONS,A,2023,5
949,Corporate Services,LANGUAGE BANK,MTS-100823,29-Aug-23,957,159.5,168229,Translation Service,TRANSLATIONS,A,2023,5
950,Corporate Services,LANGUAGE BANK,MTS-170823,05-Sep-23,780,130,168229,Translation Service,TRANSLATIONS,A,2023,5
951,Corporate Services,LANGUAGE BANK,MTS-210823,05-Sep-23,630,105,168229,Translation Service,TRANSLATIONS,A,2023,5
952,Community and Housing,REDACTED PERSONAL DATA,1006135,15-Aug-23,917.8,0,168403,Learning Disabilities Placemnt,DIRECT PAYMENTS,R,2023,5
953,"Children, Schools and Family",VICTIM SUPPORT,3016432,01-Aug-23,13833.6,2305.6,168404,Head - Help & Family Assessmnt,310000              Healthcare,A,2023,5
954,"Children, Schools and Family",VICTIM SUPPORT,3016633,01-Aug-23,13833.6,2305.6,168404,Head - Help & Family Assessmnt,310000              Healthcare,A,2023,5
955,Environment and Regeneration,VICTIM SUPPORT,3016816,04-Sep-23,39692.1,6615.35,168404,Crime and Strategy Team,310000              Healthcare,A,2023,5
956,Corporate Services,FIRMSTEP,170600,30-Aug-23,30600,5100,168454,Business Systems,270000              Information Communication Technology,A,2023,5
957,Unassigned,GREATER MANCHESTER PENSION FUN,CETV000,08-Aug-23,1945.41,0,168513,London Borough of Merton,PENSIONS,A,2023,5
958,Unassigned,GREATER MANCHESTER PENSION FUN,CETV00223,14-Aug-23,4064.2,0,168513,London Borough of Merton,PENSIONS,A,2023,5
959,"Children, Schools and Family",WILLOWS PRE SCHOOL,1,23-Aug-23,2374,0,168752,Non-Delegated Statements,170000              Education,A,2023,5
960,"Children, Schools and Family",WILLOWS PRE SCHOOL,001 01/08/23,24-Aug-23,1166,0,168752,Non-Delegated Statements,170000              Education,A,2023,5
961,Community and Housing,HOUSING21,INV708791-945725,21-Aug-23,966.48,0,169230,Older People Placements - East,321000              Social Community Care Supplies & Services - Adult,A,2023,5
962,Community and Housing,HOUSING21,INV708791-976135,21-Aug-23,841.28,0,169230,Older People Placements - East,321000              Social Community Care Supplies & Services - Adult,A,2023,5
963,Community and Housing,HOUSING21,INV708791-82473,21-Aug-23,2786.51,0,169230,Older People Placements - East,321000              Social Community Care Supplies & Services - Adult,A,2023,5
964,Community and Housing,HOUSING21,INV708791-583114,21-Aug-23,4508.28,0,169230,Older People Placements - East,321000              Social Community Care Supplies & Services - Adult,A,2023,5
965,Community and Housing,HOUSING21,INV708791-534037,21-Aug-23,1051.4,0,169230,Older People Placements - East,321000              Social Community Care Supplies & Services - Adult,A,2023,5
966,Community and Housing,HOUSING21,INV708791-532662,21-Aug-23,1234.64,0,169230,Older People Placements - East,321000              Social Community Care Supplies & Services - Adult,A,2023,5
967,Community and Housing,HOUSING21,INV708791-934625,21-Aug-23,957.46,0,169230,Older People Placements - East,321000              Social Community Care Supplies & Services - Adult,A,2023,5
968,Community and Housing,HOUSING21,INV708791-507687,21-Aug-23,1556.43,0,169230,Phys/Sens Placements - East,321000              Social Community Care Supplies & Services - Adult,A,2023,5
969,Community and Housing,HOUSING21,INV708791-974418,21-Aug-23,894.92,0,169230,Older People Placements - East,321000              Social Community Care Supplies & Services - Adult,A,2023,5
970,Community and Housing,HOUSING21,INV704851-976135,14-Aug-23,537,0,169230,Older People Placements - East,321000              Social Community Care Supplies & Services - Adult,A,2023,5
971,Community and Housing,HOUSING21,INV704851-82473,14-Aug-23,2786.51,0,169230,Older People Placements - East,321000              Social Community Care Supplies & Services - Adult,A,2023,5
972,Community and Housing,HOUSING21,INV704851-583114,14-Aug-23,4508.28,0,169230,Older People Placements - East,321000              Social Community Care Supplies & Services - Adult,A,2023,5
973,Community and Housing,HOUSING21,INV704851-534037,14-Aug-23,1051.4,0,169230,Older People Placements - East,321000              Social Community Care Supplies & Services - Adult,A,2023,5
974,Community and Housing,HOUSING21,INV704851-532662,14-Aug-23,1234.64,0,169230,Older People Placements - East,321000              Social Community Care Supplies & Services - Adult,A,2023,5
975,Community and Housing,HOUSING21,INV704851-507687,14-Aug-23,1556.43,0,169230,Phys/Sens Placements - East,321000              Social Community Care Supplies & Services - Adult,A,2023,5
976,Community and Housing,HOUSING21,INV704851-934625,14-Aug-23,876.96,0,169230,Older People Placements - East,321000              Social Community Care Supplies & Services - Adult,A,2023,5
977,Community and Housing,HOUSING21,INV704851-974418,14-Aug-23,894.82,0,169230,Older People Placements - East,321000              Social Community Care Supplies & Services - Adult,A,2023,5
978,Community and Housing,HOUSING21,INV704851-945725,14-Aug-23,966.48,0,169230,Older People Placements - East,321000              Social Community Care Supplies & Services - Adult,A,2023,5
979,Community and Housing,HOUSING21,INV699910-945725,17-Aug-23,748.4,0,169230,Older People Placements - East,321000              Social Community Care Supplies & Services - Adult,A,2023,5
980,Community and Housing,HOUSING21,INV699910-974418,17-Aug-23,895.42,0,169230,Older People Placements - East,321000              Social Community Care Supplies & Services - Adult,A,2023,5
981,Community and Housing,HOUSING21,INV699910-976135,17-Aug-23,675.8,0,169230,Older People Placements - East,321000              Social Community Care Supplies & Services - Adult,A,2023,5
982,Community and Housing,HOUSING21,INV699910-82473,17-Aug-23,2523.91,0,169230,Older People Placements - East,321000              Social Community Care Supplies & Services - Adult,A,2023,5
983,Community and Housing,HOUSING21,INV699910-583114,17-Aug-23,4508.28,0,169230,Older People Placements - East,321000              Social Community Care Supplies & Services - Adult,A,2023,5
984,Community and Housing,HOUSING21,INV699910-532662,17-Aug-23,1458.82,0,169230,Older People Placements - East,321000              Social Community Care Supplies & Services - Adult,A,2023,5
985,Community and Housing,HOUSING21,INV699910-867937,17-Aug-23,1413.69,0,169230,Older People Placements - East,321000              Social Community Care Supplies & Services - Adult,A,2023,5
986,Community and Housing,HOUSING21,INV699910-507687,17-Aug-23,1932.12,0,169230,Phys/Sens Placements - East,321000              Social Community Care Supplies & Services - Adult,A,2023,5
987,Community and Housing,HOUSING21,INV699910-534037,17-Aug-23,1234.92,0,169230,Older People Placements - East,321000              Social Community Care Supplies & Services - Adult,A,2023,5
988,Community and Housing,FITZROY SUPPORT,999818,03-Aug-23,6414.52,0,169400,Learning Disabilities Placemnt,321017              Nursing & Residential Care Homes,A,2023,5
989,Community and Housing,FITZROY SUPPORT,1004110,09-Aug-23,35048.04,0,169400,Learning Disabilities Placemnt,321017              Nursing & Residential Care Homes,A,2023,5
990,Community and Housing,FITZROY SUPPORT,1014279,30-Aug-23,9114.16,0,169400,Learning Disabilities Placemnt,321017              Nursing & Residential Care Homes,A,2023,5
991,"Children, Schools and Family",THE LUCY FAITHFULL FOUNDATION,11402,22-Aug-23,3276,546,169410,CIC Care Exp under 18 staffing,280000              Legal Services                                                                            Confirmed,A,2023,5
992,Capital,KC Services Group,43620,25-Aug-23,34200,5700,169420,Links,"390000              Works - Construction, Repair & Maintenance",A,2023,5
993,"Children, Schools and Family",JULIUS RUTHERFOORD AND CO LTD,INVS149485,02-Aug-23,26934,4489,170092, PFI Unitary Charges,130000              Cleaning & Janitorial,A,2023,5
994,"Children, Schools and Family",JULIUS RUTHERFOORD AND CO LTD,INVS150367,02-Aug-23,2034.53,339.09,170092, PFI Unitary Charges,130000              Cleaning & Janitorial,A,2023,5
995,"Children, Schools and Family",JULIUS RUTHERFOORD AND CO LTD,INVS150069,02-Aug-23,893.06,148.84,170092, PFI Unitary Charges,130000              Cleaning & Janitorial,A,2023,5
996,"Children, Schools and Family",JULIUS RUTHERFOORD AND CO LTD,INVS149930,02-Aug-23,1730.07,288.34,170092, PFI Unitary Charges,130000              Cleaning & Janitorial,A,2023,5
997,"Children, Schools and Family",JULIUS RUTHERFOORD AND CO LTD,INVS149490,02-Aug-23,29958.2,4993.05,170092, PFI Unitary Charges,130000              Cleaning & Janitorial,A,2023,5
998,"Children, Schools and Family",JULIUS RUTHERFOORD AND CO LTD,INVS149489,02-Aug-23,2464.23,410.71,170092, PFI Unitary Charges,130000              Cleaning & Janitorial,A,2023,5
999,"Children, Schools and Family",JULIUS RUTHERFOORD AND CO LTD,INVS149488,07-Aug-23,25921.82,4320.31,170092, PFI Unitary Charges,130000              Cleaning & Janitorial,A,2023,5
1000,"Children, Schools and Family",JULIUS RUTHERFOORD AND CO LTD,INVS149922,07-Aug-23,27084,4514,170092, PFI Unitary Charges,130000              Cleaning & Janitorial,A,2023,5
1001,"Children, Schools and Family",JULIUS RUTHERFOORD AND CO LTD,INVS149924,07-Aug-23,1208.75,201.46,170092, PFI Unitary Charges,130000              Cleaning & Janitorial,A,2023,5
1002,"Children, Schools and Family",JULIUS RUTHERFOORD AND CO LTD,INVS149926,07-Aug-23,25921.82,4320.31,170092, PFI Unitary Charges,130000              Cleaning & Janitorial,A,2023,5
1003,"Children, Schools and Family",JULIUS RUTHERFOORD AND CO LTD,INVS149928,07-Aug-23,2305.58,384.27,170092, PFI Unitary Charges,130000              Cleaning & Janitorial,A,2023,5
1004,"Children, Schools and Family",JULIUS RUTHERFOORD AND CO LTD,INVS150365,07-Aug-23,3521.11,586.85,170092, PFI Unitary Charges,130000              Cleaning & Janitorial,A,2023,5
1005,"Children, Schools and Family",JULIUS RUTHERFOORD AND CO LTD,INVS150068,07-Aug-23,1280.66,213.44,170092, PFI Unitary Charges,130000              Cleaning & Janitorial,A,2023,5
1006,"Children, Schools and Family",JULIUS RUTHERFOORD AND CO LTD,INVS150364,07-Aug-23,25938.98,4323.17,170092, PFI Unitary Charges,130000              Cleaning & Janitorial,A,2023,5
1007,"Children, Schools and Family",JULIUS RUTHERFOORD AND CO LTD,INVS149486,08-Aug-23,972.62,162.1,170092, PFI Unitary Charges,130000              Cleaning & Janitorial,A,2023,5
1008,"Children, Schools and Family",JULIUS RUTHERFOORD AND CO LTD,INVS150362,08-Aug-23,1034.81,172.47,170092, PFI Unitary Charges,130000              Cleaning & Janitorial,A,2023,5
1009,"Children, Schools and Family",JULIUS RUTHERFOORD AND CO LTD,INVS150782,21-Aug-23,27574.34,4595.73,170092, PFI Unitary Charges,130000              Cleaning & Janitorial,A,2023,5
1010,"Children, Schools and Family",JULIUS RUTHERFOORD AND CO LTD,INVS150784,21-Aug-23,1034.81,172.47,170092, PFI Unitary Charges,130000              Cleaning & Janitorial,A,2023,5
1011,"Children, Schools and Family",JULIUS RUTHERFOORD AND CO LTD,INVS150786,21-Aug-23,25938.98,4323.17,170092, PFI Unitary Charges,130000              Cleaning & Janitorial,A,2023,5
1012,"Children, Schools and Family",JULIUS RUTHERFOORD AND CO LTD,INVS150787,21-Aug-23,1973.09,328.85,170092, PFI Unitary Charges,130000              Cleaning & Janitorial,A,2023,5
1013,"Children, Schools and Family",JULIUS RUTHERFOORD AND CO LTD,INVS149492,08-Aug-23,1930.27,321.71,170092, PFI Unitary Charges,130000              Cleaning & Janitorial,A,2023,5
1014,"Children, Schools and Family",JULIUS RUTHERFOORD AND CO LTD,INVS149929,08-Aug-23,29958.2,4993.05,170092, PFI Unitary Charges,130000              Cleaning & Janitorial,A,2023,5
1015,"Children, Schools and Family",JULIUS RUTHERFOORD AND CO LTD,INVS150366,08-Aug-23,30404.73,5067.47,170092, PFI Unitary Charges,130000              Cleaning & Janitorial,A,2023,5
1016,"Children, Schools and Family",JULIUS RUTHERFOORD AND CO LTD,INVS150788,21-Aug-23,30404.73,5067.47,170092, PFI Unitary Charges,130000              Cleaning & Janitorial,A,2023,5
1017,"Children, Schools and Family",JULIUS RUTHERFOORD AND CO LTD,INVS150791,21-Aug-23,1394.23,232.37,170092, PFI Unitary Charges,130000              Cleaning & Janitorial,A,2023,5
1018,"Children, Schools and Family",JULIUS RUTHERFOORD AND CO LTD,INVS150361,08-Aug-23,27574.34,4595.73,170092, PFI Unitary Charges,130000              Cleaning & Janitorial,A,2023,5
1019,"Children, Schools and Family",JULIUS RUTHERFOORD AND CO LTD,INVS150836,21-Aug-23,861.97,143.66,170092,Avenue CC Building Management,130000              Cleaning & Janitorial,A,2023,5
1020,"Children, Schools and Family",JULIUS RUTHERFOORD AND CO LTD,INVS150561,21-Aug-23,1229.42,204.9,170092,Bond Road Building,130000              Cleaning & Janitorial,A,2023,5
1021,"Children, Schools and Family",JULIUS RUTHERFOORD AND CO LTD,INVS150582,21-Aug-23,861.97,143.66,170092,Church Road Building,130000              Cleaning & Janitorial,A,2023,5
1022,"Children, Schools and Family",JULIUS RUTHERFOORD AND CO LTD,INVS150700,21-Aug-23,862.03,143.67,170092,Ivy Garden CC Building,130000              Cleaning & Janitorial,A,2023,5
1023,"Children, Schools and Family",JULIUS RUTHERFOORD AND CO LTD,INVS150529,21-Aug-23,861.97,143.66,170092,Lower Morden CC Building Mgt,130000              Cleaning & Janitorial,A,2023,5
1024,"Children, Schools and Family",JULIUS RUTHERFOORD AND CO LTD,INVS150741,21-Aug-23,1298.96,216.49,170092,Newminster CC Building Mgt,130000              Cleaning & Janitorial,A,2023,5
1025,Community and Housing,REDACTED PERSONAL DATA,1006085,15-Aug-23,547.4,0,170275,Phys/Sens Placements - East,DIRECT PAYMENTS,R,2023,5
1026,Community and Housing,INDEPENDENCE HOMES LTD,1000090,03-Aug-23,7935.88,0,170527,Learning Disabilities Placemnt,321017              Nursing & Residential Care Homes,A,2023,5
1027,Community and Housing,INDEPENDENCE HOMES LTD,CED00153,07-Aug-23,5662.72,0,170527,Learning Disabilities Placemnt,321017              Nursing & Residential Care Homes,A,2023,5
1028,Community and Housing,INDEPENDENCE HOMES LTD,1004679,15-Aug-23,3372.8,0,170527,Learning Disabilities Placemnt,321017              Nursing & Residential Care Homes,A,2023,5
1029,Community and Housing,INDEPENDENCE HOMES LTD,1014557,30-Aug-23,8610.44,0,170527,Learning Disabilities Placemnt,321017              Nursing & Residential Care Homes,A,2023,5
1030,"Children, Schools and Family",GREATER LONDON FOSTERING LTD,INV-1010,01-Aug-23,2198.52,0,170596,Placements Under 18,321100              Social Community Care Supplies & Services - Children,A,2023,5
1031,"Children, Schools and Family",GREATER LONDON FOSTERING LTD,INV-1093,21-Aug-23,3786.34,0,170596,Placements Under 18,321100              Social Community Care Supplies & Services - Children,A,2023,5
1032,"Children, Schools and Family",GREATER LONDON FOSTERING LTD,INV-1011,14-Aug-23,2198.52,0,170596,Placements Under 18,321100              Social Community Care Supplies & Services - Children,A,2023,5
1033,"Children, Schools and Family",GREATER LONDON FOSTERING LTD,INV-1061,21-Aug-23,3516.95,0,170596,Placements Under 18,321100              Social Community Care Supplies & Services - Children,A,2023,5
1034,"Children, Schools and Family",GREATER LONDON FOSTERING LTD,INV-1092,21-Aug-23,3786.34,0,170596,Placements Under 18,321100              Social Community Care Supplies & Services - Children,A,2023,5
1035,"Children, Schools and Family",GREATER LONDON FOSTERING LTD,INV-1085,21-Aug-23,3297.78,0,170596,Placements Under 18,321100              Social Community Care Supplies & Services - Children,A,2023,5
1036,"Children, Schools and Family",GREATER LONDON FOSTERING LTD,INV-1086,21-Aug-23,3297.78,0,170596,Placements Under 18,321100              Social Community Care Supplies & Services - Children,A,2023,5
1037,"Children, Schools and Family",GREATER LONDON FOSTERING LTD,INV-1059,21-Aug-23,3697.68,0,170596,Placements Under 18,321100              Social Community Care Supplies & Services - Children,A,2023,5
1038,"Children, Schools and Family",GREATER LONDON FOSTERING LTD,INV-1060,21-Aug-23,1928.65,0,170596,Placements Under 18,321100              Social Community Care Supplies & Services - Children,A,2023,5
1039,"Children, Schools and Family",ADCS,SI-36683,18-Aug-23,1071.6,178.6,170603, Central Administration,200000              Financial Services,A,2023,5
1040,"Children, Schools and Family",CENMAC,CPSI2306,18-Aug-23,1200,0,170767,Non-Delegated Statements,321100              Social Community Care Supplies & Services - Children,A,2023,5
1041,"Children, Schools and Family",CENMAC,CP5I2281,21-Aug-23,2885.25,0,170767,Non-Delegated Statements,321100              Social Community Care Supplies & Services - Children,A,2023,5
1042,Community and Housing,REDACTED PERSONAL DATA,1009635,16-Aug-23,2525.27,0,170878,Learning Disabilities Placemnt,DIRECT PAYMENTS,R,2023,5
1043,Community and Housing,REDACTED PERSONAL DATA,1009658,16-Aug-23,1603.12,0,171056,Phys/Sens Placements - East,DIRECT PAYMENTS,R,2023,5
1044,Community and Housing,ST GEORGES RES. CARE HOME,1000135,03-Aug-23,4871.4,0,171491,Learning Disabilities Placemnt,321017              Nursing & Residential Care Homes,A,2023,5
1045,Community and Housing,ST GEORGES RES. CARE HOME,1000160,03-Aug-23,4024.2,0,171491,Learning Disabilities Placemnt,321017              Nursing & Residential Care Homes,A,2023,5
1046,Community and Housing,ST GEORGES RES. CARE HOME,1006011,15-Aug-23,2070.4,0,171491,Learning Disabilities Placemnt,321017              Nursing & Residential Care Homes,A,2023,5
1047,Community and Housing,ST GEORGES RES. CARE HOME,1006012,15-Aug-23,1710.2,0,171491,Learning Disabilities Placemnt,321017              Nursing & Residential Care Homes,A,2023,5
1048,Community and Housing,ST GEORGES RES. CARE HOME,1014606,30-Aug-23,5285.48,0,171491,Learning Disabilities Placemnt,321017              Nursing & Residential Care Homes,A,2023,5
1049,Community and Housing,ST GEORGES RES. CARE HOME,1014631,30-Aug-23,4366.24,0,171491,Learning Disabilities Placemnt,321017              Nursing & Residential Care Homes,A,2023,5
1050,"Children, Schools and Family",St Christopher's Fellowship,20231,21-Aug-23,17624.25,0,171651,Placements Under 18,321100              Social Community Care Supplies & Services - Children,A,2023,5
1051,Corporate Services,SSD LIMITED,SI-597,01-Aug-23,696.83,116.14,171736,Leisure Buildings,190000              Facilities & Management Services,A,2023,5
1052,Community and Housing,REDACTED PERSONAL DATA,1006316,15-Aug-23,4927.85,0,171943,Learning Disabilities Placemnt,CSF-DIRECT PAYMENTS,R,2023,5
1053,Community and Housing,REDACTED PERSONAL DATA,1006279,15-Aug-23,698.2,0,172070,Learning Disabilities Placemnt,DIRECT PAYMENTS,R,2023,5
1054,Community and Housing,NORBURY PROPERTY SERV LDN LTD,SI-9074,23-Aug-23,10284.87,0,172104,Bed & Breakfast - accomm,321000              Social Community Care Supplies & Services - Adult,A,2023,5
1055,Community and Housing,EALING COUNCIL,999775,03-Aug-23,2985.92,0,172129,Mental Health Placements,OLA,A,2023,5
1056,Community and Housing,EALING COUNCIL,1014234,30-Aug-23,2985.92,0,172129,Mental Health Placements,OLA,A,2023,5
1057,Community and Housing,CARRICKS BROOK,999794,03-Aug-23,6536.16,0,172297,Learning Disabilities Placemnt,321017              Nursing & Residential Care Homes,A,2023,5
1058,Community and Housing,CARRICKS BROOK,1014254,30-Aug-23,6536.16,0,172297,Learning Disabilities Placemnt,321017              Nursing & Residential Care Homes,A,2023,5
1059,Community and Housing,BROADHAM CARE LTD,1000119,03-Aug-23,7638.12,0,172298,Learning Disabilities Placemnt,321017              Nursing & Residential Care Homes,A,2023,5
1060,Community and Housing,BROADHAM CARE LTD,999848,03-Aug-23,7386.96,0,172298,Learning Disabilities Placemnt,321017              Nursing & Residential Care Homes,A,2023,5
1061,Community and Housing,BROADHAM CARE LTD,1014313,30-Aug-23,7386.96,0,172298,Learning Disabilities Placemnt,321017              Nursing & Residential Care Homes,A,2023,5
1062,Community and Housing,BROADHAM CARE LTD,1014588,30-Aug-23,7638.12,0,172298,Learning Disabilities Placemnt,321017              Nursing & Residential Care Homes,A,2023,5
1063,Unassigned,KENNEDYS,012300510071LON1,11-Aug-23,1148.4,191.4,172486,Corporate Services,280000              Legal Services,A,2023,5
1064,Unassigned,KENNEDYS,012300513631M890,11-Aug-23,750.6,125.1,172486,Corporate Services,280000              Legal Services,A,2023,5
1065,Unassigned,KENNEDYS,012300456151M890,16-Aug-23,2724.8,0,172486,Corporate Accountancy,280000              Legal Services,A,2023,5
1066,Unassigned,KENNEDYS,012300528991M890,18-Aug-23,9351,1558.5,172486,Corporate Services,280000              Legal Services,A,2023,5
1067,"Children, Schools and Family",LINDEN LODGE SCHOOL,INV-1346,01-Aug-23,1375,0,172798,Child Disabilities - Placement,170000              Education,A,2023,5
1068,"Children, Schools and Family",LINDEN LODGE SCHOOL,INV-1364,22-Aug-23,9100,0,172798,Non-Delegated Statements,170000              Education,A,2023,5
1069,"Children, Schools and Family",LINDEN LODGE SCHOOL,INV-1304,22-Aug-23,6123,0,172798,Non-Delegated Statements,170000              Education,A,2023,5
1070,Community and Housing,REDACTED PERSONAL DATA,1006092,15-Aug-23,1084.68,0,172912,Learning Disabilities Placemnt,DIRECT PAYMENTS,R,2023,5
1071,Community and Housing,REDACTED PERSONAL DATA,1006221,15-Aug-23,968.12,0,172914,Learning Disabilities Placemnt,DIRECT PAYMENTS,R,2023,5
1072,Community and Housing,REDACTED PERSONAL DATA,1006299,15-Aug-23,599.04,0,172936,Phys/Sens Placements - East,DIRECT PAYMENTS,R,2023,5
1073,"Children, Schools and Family",GUARDIAN NEWS AND MEDIA LTD,2003410,05-Sep-23,1170,195,173136,Vun Childrens Team Manager SW,260000              Human Resources,A,2023,5
1074,Community and Housing,HAVERING COURT NURSING HOME,999751,03-Aug-23,4954.12,0,173297,Older People Placements - East,321017              Nursing & Residential Care Homes,A,2023,5
1075,Community and Housing,HAVERING COURT NURSING HOME,1014216,30-Aug-23,4954.12,0,173297,Older People Placements - East,321017              Nursing & Residential Care Homes,A,2023,5
1076,Community and Housing,REDACTED PERSONAL DATA,1006297,15-Aug-23,977.52,0,173308,Phys/Sens Placements - East,DIRECT PAYMENTS,R,2023,5
1077,"Children, Schools and Family",REDACTED PERSONAL DATA,1007051,14-Aug-23,5506.04,0,173793,Child Disabilities - Placement,CSF-DIRECT PAYMENTS,R,2023,5
1078,Community and Housing,REDACTED PERSONAL DATA,1010364,17-Aug-23,576.04,0,173807,Learning Disabilities Placemnt,DIRECT PAYMENTS,R,2023,5
1079,Community and Housing,HARBOUR CARE (UK) LTD,1000068,03-Aug-23,6448.68,0,173947,Learning Disabilities Placemnt,321017              Nursing & Residential Care Homes,A,2023,5
1080,Community and Housing,HARBOUR CARE (UK) LTD,1014532,30-Aug-23,6448.68,0,173947,Learning Disabilities Placemnt,321017              Nursing & Residential Care Homes,A,2023,5
1081,Environment and Regeneration,LABC,13782,23-Aug-23,3012.25,502.04,174074,Building Control,"390000              Works - Construction, Repair & Maintenance",A,2023,5
1082,Corporate Services,REDACTED PERSONAL DATA,2799/PP,24-Aug-23,840,140,174105,SLLP - Disbursements,280000              Legal Services,R,2023,5
1083,"Children, Schools and Family",REDACTED PERSONAL DATA,1013366,25-Aug-23,1650,0,174212, Statementing-Transport,CSF-DIRECT PAYMENTS,R,2023,5
1084,"Children, Schools and Family",REDACTED PERSONAL DATA,1013383,25-Aug-23,629.06,0,174212,SEN Team,CSF-DIRECT PAYMENTS,R,2023,5
1085,Community and Housing,ASHINGTON HOUSE,999814,03-Aug-23,4406.68,0,174259,Learning Disabilities Placemnt,321017              Nursing & Residential Care Homes,A,2023,5
1086,Community and Housing,ASHINGTON HOUSE,1014275,30-Aug-23,4406.68,0,174259,Learning Disabilities Placemnt,321017              Nursing & Residential Care Homes,A,2023,5
1087,Community and Housing,REDACTED PERSONAL DATA,1006129,15-Aug-23,811.2,0,174449,Phys/Sens Placements - East,DIRECT PAYMENTS,R,2023,5
1088,Community and Housing,ALPENBEST LIMITED,SAW13082023,24-Aug-23,624.87,0,174789,Older People Placements - East,321000              Social Community Care Supplies & Services - Adult,A,2023,5
1089,Community and Housing,ALPENBEST LIMITED,YS13082023,24-Aug-23,698.32,0,174789,Older People Placements - East,321000              Social Community Care Supplies & Services - Adult,A,2023,5
1090,Community and Housing,ALPENBEST LIMITED,AS13082023,30-Aug-23,2320.64,0,174789,Older People Placements - East,321000              Social Community Care Supplies & Services - Adult,A,2023,5
1091,Community and Housing,ALPENBEST LIMITED,AT13082023-96351,31-Aug-23,2382.99,0,174789,Older People Placements - East,321000              Social Community Care Supplies & Services - Adult,A,2023,5
1092,Community and Housing,ALPENBEST LIMITED,PM13082023,31-Aug-23,513.4,0,174789,Older People Placements - East,321000              Social Community Care Supplies & Services - Adult,A,2023,5
1093,Community and Housing,SUTTON COURT CARE CENTRE,1000138,03-Aug-23,4139.36,0,174833,Phys/Sens Placements - East,321017              Nursing & Residential Care Homes,A,2023,5
1094,Community and Housing,SUTTON COURT CARE CENTRE,999860,03-Aug-23,2827.36,0,174833,Older People Placements - East,321017              Nursing & Residential Care Homes,A,2023,5
1095,Community and Housing,SUTTON COURT CARE CENTRE,999882,03-Aug-23,3723.24,0,174833,Older People Placements - East,321017              Nursing & Residential Care Homes,A,2023,5
1096,Community and Housing,SUTTON COURT CARE CENTRE,999962,03-Aug-23,3163.36,0,174833,Older People Placements - East,321017              Nursing & Residential Care Homes,A,2023,5
1097,Community and Housing,SUTTON COURT CARE CENTRE,999989,03-Aug-23,4049.6,0,174833,Phys/Sens Placements - East,321017              Nursing & Residential Care Homes,A,2023,5
1098,Community and Housing,SUTTON COURT CARE CENTRE,1014343,30-Aug-23,3723.24,0,174833,Older People Placements - East,321017              Nursing & Residential Care Homes,A,2023,5
1099,Community and Housing,SUTTON COURT CARE CENTRE,1014422,30-Aug-23,3163.36,0,174833,Older People Placements - East,321017              Nursing & Residential Care Homes,A,2023,5
1100,Community and Housing,SUTTON COURT CARE CENTRE,1014451,30-Aug-23,4049.6,0,174833,Phys/Sens Placements - East,321017              Nursing & Residential Care Homes,A,2023,5
1101,Community and Housing,SUTTON COURT CARE CENTRE,1014609,30-Aug-23,4139.36,0,174833,Phys/Sens Placements - East,321017              Nursing & Residential Care Homes,A,2023,5
1102,Community and Housing,REDACTED PERSONAL DATA,1006066,15-Aug-23,782,0,174975,Learning Disabilities Placemnt,DIRECT PAYMENTS,R,2023,5
1103,Environment and Regeneration,MERTON NEIGHBOURHOOD WATCH ASS,2020,29-Aug-23,1932.5,0,175049,MOPAC Projects,200000              Financial Services,A,2023,5
1104,"Children, Schools and Family",PROSPECT EDUC (TECH)TRUST LTD,PETTL1312,15-Aug-23,11718.66,0,175114,Non-Delegated Statements,170000              Education,A,2023,5
1105,"Children, Schools and Family",PROSPECT EDUC (TECH)TRUST LTD,PETTL1313,18-Aug-23,6431.94,0,175114,Non-Delegated Statements,170000              Education,A,2023,5
1106,"Children, Schools and Family",GLOBAL MEDIATION LTD,INV-94715,22-Aug-23,1320,220,175270,Non-Delegated Statements,260000              Human Resources                                                                           Confirmed,A,2023,5
1107,Community and Housing,KISIMUL SCHOOL,1000031,03-Aug-23,17689.84,0,175545,Learning Disabilities Placemnt,321017              Nursing & Residential Care Homes,A,2023,5
1108,Community and Housing,KISIMUL SCHOOL,999782,03-Aug-23,14008.68,0,175545,Learning Disabilities Placemnt,321017              Nursing & Residential Care Homes,A,2023,5
1109,Community and Housing,KISIMUL SCHOOL,1014241,30-Aug-23,14008.68,0,175545,Learning Disabilities Placemnt,321017              Nursing & Residential Care Homes,A,2023,5
1110,Community and Housing,KISIMUL SCHOOL,1014494,30-Aug-23,17689.84,0,175545,Learning Disabilities Placemnt,321017              Nursing & Residential Care Homes,A,2023,5
1111,Corporate Services,UBIQUS UK LTD,1057164,23-Aug-23,8844,1474,175713,SLLP - Disbursements,TRANSLATIONS                                                                                                  Confirmed,A,2023,5
1112,Corporate Services,UBIQUS UK LTD,1032187,23-Aug-23,799.49,133.25,175713,SLLP - Disbursements,TRANSLATIONS                                                                                                  Confirmed,A,2023,5
1113,Community and Housing,REDACTED PERSONAL DATA,1010366,17-Aug-23,2189.6,0,175782,Phys/Sens Placements - East,DIRECT PAYMENTS,R,2023,5
1114,Community and Housing,REDACTED PERSONAL DATA,1009600,16-Aug-23,1600.6,0,175960,Learning Disabilities Placemnt,DIRECT PAYMENTS,R,2023,5
1115,Unassigned,A.J.OAKES AND PARTNERS,2023/097,23-Aug-23,24000,4000,176052,Corporate Services,"390000              Works - Construction, Repair & Maintenance",A,2023,5
1116,Unassigned,A.J.OAKES AND PARTNERS,2023/098,23-Aug-23,24000,4000,176052,Corporate Services,"390000              Works - Construction, Repair & Maintenance",A,2023,5
1117,Unassigned,A.J.OAKES AND PARTNERS,2023/099,30-Aug-23,12000,2000,176052,Corporate Services,"390000              Works - Construction, Repair & Maintenance",A,2023,5
1118,Community and Housing,REDACTED PERSONAL DATA,1006251,15-Aug-23,552.44,0,176619,Phys/Sens Placements - East,DIRECT PAYMENTS,R,2023,5
1119,Community and Housing,REDACTED PERSONAL DATA,1009597,16-Aug-23,6410.36,0,176783,Phys/Sens Placements - East,DIRECT PAYMENTS,R,2023,5
1120,"Children, Schools and Family",THE PRE-SCHOOL GROUP LTD,P1 23 ADJUSTMENT,24-Aug-23,2034,0,176785,EARLY YEARS NURSERY GRANTS,200000              Financial Services,A,2023,5
1121,Community and Housing,REDACTED PERSONAL DATA,1006336,15-Aug-23,1800.4,0,176868,Phys/Sens Placements - East,DIRECT PAYMENTS,R,2023,5
1122,Community and Housing,SPRING LAKE CARE HOME LTD,1000133,03-Aug-23,6468,0,177067,Learning Disabilities Placemnt,321017              Nursing & Residential Care Homes,A,2023,5
1123,Community and Housing,SPRING LAKE CARE HOME LTD,999933,03-Aug-23,11418,0,177067,Learning Disabilities Placemnt,321017              Nursing & Residential Care Homes,A,2023,5
1124,Community and Housing,SPRING LAKE CARE HOME LTD,1014391,30-Aug-23,11418,0,177067,Learning Disabilities Placemnt,321017              Nursing & Residential Care Homes,A,2023,5
1125,Community and Housing,SPRING LAKE CARE HOME LTD,1014604,30-Aug-23,6468,0,177067,Learning Disabilities Placemnt,321017              Nursing & Residential Care Homes,A,2023,5
1126,Community and Housing,REDACTED PERSONAL DATA,1006324,15-Aug-23,801.56,0,177115,Older People Placements - East,DIRECT PAYMENTS,R,2023,5
1127,"Children, Schools and Family",HA TUTORS LTD,INV-13991,15-Aug-23,3750.2,625.03,177219,Non-Delegated Statements,170000              Education,A,2023,5
1128,"Children, Schools and Family",HA TUTORS LTD,INV-13994,15-Aug-23,2234.4,372.4,177219,Non-Delegated Statements,170000              Education,A,2023,5
1129,"Children, Schools and Family",HA TUTORS LTD,INV-13995,15-Aug-23,1275.9,212.65,177219,Non-Delegated Statements,170000              Education,A,2023,5
1130,"Children, Schools and Family",HA TUTORS LTD,INV-13993,15-Aug-23,2568,428,177219,Non-Delegated Statements,170000              Education,A,2023,5
1131,"Children, Schools and Family",HA TUTORS LTD,INV-13992,15-Aug-23,1474.8,245.8,177219,Non-Delegated Statements,170000              Education,A,2023,5
1132,"Children, Schools and Family",HA TUTORS LTD,INV-13986,18-Aug-23,3613.2,602.2,177219,Non-Delegated Statements,170000              Education,A,2023,5
1133,"Children, Schools and Family",HA TUTORS LTD,INV-13989,18-Aug-23,556.8,92.8,177219,Non-Delegated Statements,170000              Education,A,2023,5
1134,"Children, Schools and Family",HA TUTORS LTD,INV-13987,18-Aug-23,5838,973,177219,Non-Delegated Statements,170000              Education,A,2023,5
1135,"Children, Schools and Family",HA TUTORS LTD,INV-13990,18-Aug-23,3672,612,177219,Non-Delegated Statements,170000              Education,A,2023,5
1136,"Children, Schools and Family",HA TUTORS LTD,INV-13988,18-Aug-23,1279.2,213.2,177219,Non-Delegated Statements,170000              Education,A,2023,5
1137,Corporate Services,EXPERT IN MIND,41486,23-Aug-23,1656.72,276.12,177342,SLLP - Disbursements,280000              Legal Services                                                                            Confirmed,A,2023,5
1138,Corporate Services,EXPERT IN MIND,41614,23-Aug-23,1207.44,201.24,177342,SLLP - Disbursements,280000              Legal Services                                                                            Confirmed,A,2023,5
1139,Corporate Services,EXPERT IN MIND,41239,25-Aug-23,839.29,139.88,177342,SLLP - Disbursements,280000              Legal Services                                                                            Confirmed,A,2023,5
1140,Community and Housing,HYTYME B AND B,27035,14-Aug-23,12100.8,2016.8,177425,Bed & Breakfast - accomm,321000              Social Community Care Supplies & Services - Adult,A,2023,5
1141,"Children, Schools and Family",HYTYME B AND B,27069,14-Aug-23,1205.28,200.88,177425,Family Assessmt & Intervention,321000              Social Community Care Supplies & Services - Adult,A,2023,5
1142,"Children, Schools and Family",HYTYME B AND B,27049,14-Aug-23,1432.2,238.7,177425,Family Assessmt & Intervention,321000              Social Community Care Supplies & Services - Adult,A,2023,5
1143,"Children, Schools and Family",HYTYME B AND B,27072,14-Aug-23,1490.4,248.4,177425,Family Assessmt & Intervention,321000              Social Community Care Supplies & Services - Adult,A,2023,5
1144,Community and Housing,REDACTED PERSONAL DATA,1009561,16-Aug-23,856.72,0,177453,Phys/Sens Placements - East,DIRECT PAYMENTS,R,2023,5
1145,Community and Housing,REDACTED PERSONAL DATA,1009557,16-Aug-23,724.72,0,177476,Learning Disabilities Placemnt,DIRECT PAYMENTS,R,2023,5
1146,Community and Housing,REDACTED PERSONAL DATA,1006069,15-Aug-23,1444.8,0,177502,Phys/Sens Placements - East,DIRECT PAYMENTS,R,2023,5
1147,"Children, Schools and Family",BUTTERFLIES CHILDCARE LIMITED,P1 23 ADJUSTMENT,29-Aug-23,955.8,0,177504,EARLY YEARS NURSERY GRANTS,200000              Financial Services,A,2023,5
1148,Corporate Services,HPI LIMITED,6160-001865650,18-Aug-23,936.77,156.13,177649,Local Taxation Bailiffs,200000              Financial Services,A,2023,5
1149,"Children, Schools and Family",Catch 22 Charity Ltd,CSI0001629,24-Aug-23,113400,18900,177705, Young Person Substance Misuse,321100              Social Community Care Supplies & Services - Children,A,2023,5
1150,Community and Housing,REDACTED PERSONAL DATA,1006138,15-Aug-23,703.8,0,177739,Phys/Sens Placements - East,DIRECT PAYMENTS,R,2023,5
1151,Community and Housing,GREENHAM,01/470517,29-Aug-23,784.38,130.73,177744,Libraries Service-Civic Centre,130000              Cleaning & Janitorial,A,2023,5
1152,Community and Housing,REDACTED PERSONAL DATA,1006150,15-Aug-23,821.12,0,177785,Phys/Sens Placements - East,DIRECT PAYMENTS,R,2023,5
1153,Community and Housing,WORKSHOP 305,WJON168,18-Aug-23,855.96,0,177941,Learning Disabilities Placemnt,321000              Social Community Care Supplies & Services - Adult,A,2023,5
1154,Community and Housing,WORKSHOP 305,SLAP168,18-Aug-23,570.6,0,177941,Learning Disabilities Placemnt,321000              Social Community Care Supplies & Services - Adult,A,2023,5
1155,Community and Housing,WORKSHOP 305,RAG168,18-Aug-23,855.96,0,177941,Learning Disabilities Placemnt,321000              Social Community Care Supplies & Services - Adult,A,2023,5
1156,Community and Housing,WORKSHOP 305,IALA168,18-Aug-23,570.64,0,177941,Learning Disabilities Placemnt,321000              Social Community Care Supplies & Services - Adult,A,2023,5
1157,Community and Housing,WORKSHOP 305,AGAR168,18-Aug-23,570.65,0,177941,Learning Disabilities Placemnt,321000              Social Community Care Supplies & Services - Adult,A,2023,5
1158,Community and Housing,WORKSHOP 305,AGAR167,18-Aug-23,570.65,0,177941,Learning Disabilities Placemnt,321000              Social Community Care Supplies & Services - Adult,A,2023,5
1159,Community and Housing,WORKSHOP 305,ASCO168,18-Aug-23,855.96,0,177941,Learning Disabilities Placemnt,321000              Social Community Care Supplies & Services - Adult,A,2023,5
1160,Community and Housing,REDACTED PERSONAL DATA,1009537,16-Aug-23,812.4,0,177967,Learning Disabilities Placemnt,DIRECT PAYMENTS,R,2023,5
1161,Community and Housing,REDACTED PERSONAL DATA,1006187,15-Aug-23,1094.8,0,177999,Learning Disabilities Placemnt,DIRECT PAYMENTS,R,2023,5
1162,"Children, Schools and Family",ISLINGTON COUNCIL,HP01022,03-Aug-23,3306,551,178323,Head - Help & Family Assessmnt,260000              Human Resources,A,2023,5
1163,Community and Housing,REDACTED PERSONAL DATA,1006125,15-Aug-23,1212.28,0,178412,Learning Disabilities Placemnt,DIRECT PAYMENTS,R,2023,5
1164,Community and Housing,REDACTED PERSONAL DATA,1006305,15-Aug-23,5439,0,178412,Learning Disabilities Placemnt,DIRECT PAYMENTS,R,2023,5
1165,Community and Housing,BRAMBLEDOWN CARE HOME,999942,03-Aug-23,7448.8,0,178465,Phys/Sens Placements - East,321017              Nursing & Residential Care Homes,A,2023,5
1166,Community and Housing,BRAMBLEDOWN CARE HOME,1006038,15-Aug-23,3165.8,0,178465,Phys/Sens Placements - East,321017              Nursing & Residential Care Homes,A,2023,5
